Body Name,Body,Organisational unit,Service division,Expenditure category,Date,Transacton number,Net amount,Supplier,Narrative
Tendring DC,http://statistics.data.gov.uk/id/local-authority-district/22UN,Corporate Services,6920 - Youth Initiatives,3300 - Public Transport - Officers,10/07/2012,2098324-1,102,2100768 - A2B Taxis,TYA - June 12
Tendring DC,http://statistics.data.gov.uk/id/local-authority-district/22UN,Corporate Services,1880 - Office Accommodation Expenses,2100 - Building Repairs,10/07/2012,2098296-1,94,2101609 - Adcock Refrigeration & Air Conditioning Ltd,Adcock
Tendring DC,http://statistics.data.gov.uk/id/local-authority-district/22UN,Corporate Services,1880 - Office Accommodation Expenses,2100 - Building Repairs,10/07/2012,2098297-1,60,2101609 - Adcock Refrigeration & Air Conditioning Ltd,Adcock
Tendring DC,http://statistics.data.gov.uk/id/local-authority-district/22UN,Corporate Services,1880 - Office Accommodation Expenses,2100 - Building Repairs,10/07/2012,2098298-1,184,2101609 - Adcock Refrigeration & Air Conditioning Ltd,Adcock
Tendring DC,http://statistics.data.gov.uk/id/local-authority-district/22UN,Corporate Services,1880 - Office Accommodation Expenses,2100 - Building Repairs,24/07/2012,2098704-1,69.49,2101609 - Adcock Refrigeration & Air Conditioning Ltd,Adcock
Tendring DC,http://statistics.data.gov.uk/id/local-authority-district/22UN,Corporate Services,1950 - Transport,3062 - Running Costs - Petrol,03/07/2012,2097960-1,165,2101825 - Allstar Business Solutions Ltd,Courier Fuel
Tendring DC,http://statistics.data.gov.uk/id/local-authority-district/22UN,Corporate Services,7716 - Jaywick Strategic Leadership group initiatives,3060 - Running Costs - Diesel,03/07/2012,2098174-1,42.65,2101825 - Allstar Business Solutions Ltd,Diesel
Tendring DC,http://statistics.data.gov.uk/id/local-authority-district/22UN,Corporate Services,7020 - SSCF - Crime Reduction,4900 - Grants,31/07/2012,1049347-1,72.91,2100048 - Argos Business Solutions,GAZEBO
Tendring DC,http://statistics.data.gov.uk/id/local-authority-district/22UN,Corporate Services,7025 - CDRP Support,4900 - Grants,03/07/2012,2098173-1,126.5,2100048 - Argos Business Solutions,Camcorder
Tendring DC,http://statistics.data.gov.uk/id/local-authority-district/22UN,Corporate Services,1100 - Corporate Services Manager Service Unit,4753 - Computer - Application Software,31/07/2012,1049440-1,250,2109504 - Associated Knowledge Systems Ltd,E-GENDA COMMITTEE
Tendring DC,http://statistics.data.gov.uk/id/local-authority-district/22UN,Corporate Services,6560 - Other Democratic Costs,4110 - General Provisions,03/07/2012,1049163-1,169.64,2100209 - Autobar UK (South) Ltd,AUTOBAR UK LTD
Tendring DC,http://statistics.data.gov.uk/id/local-authority-district/22UN,Corporate Services,6560 - Other Democratic Costs,4110 - General Provisions,03/07/2012,1049163-2,1.02,2100209 - Autobar UK (South) Ltd,AUTOBAR UK LTD
Tendring DC,http://statistics.data.gov.uk/id/local-authority-district/22UN,Corporate Services,7716 - Jaywick Strategic Leadership group initiatives,5036 - Insurance - All Risks,03/07/2012,2097937-1,112,2100059 - Autoglass Limited,Excess Windows Repair
Tendring DC,http://statistics.data.gov.uk/id/local-authority-district/22UN,Corporate Services,7716 - Jaywick Strategic Leadership group initiatives,5036 - Insurance - All Risks,03/07/2012,2097937-2,-37,2100059 - Autoglass Limited,Excess Windows Repair
Tendring DC,http://statistics.data.gov.uk/id/local-authority-district/22UN,Corporate Services,1320 - Print Unit Service Unit,4302 - External Print Unit Expenses,24/07/2012,2098855-1,98,2100069 - Autoprint,Job 154/155
Tendring DC,http://statistics.data.gov.uk/id/local-authority-district/22UN,Corporate Services,7716 - Jaywick Strategic Leadership group initiatives,4300 - Printing & Stationery,24/07/2012,2098678-1,72.27,2100111 - Banner Business Supplies Ltd,Stationery
Tendring DC,http://statistics.data.gov.uk/id/local-authority-district/22UN,Corporate Services,8025 - Car Parks - Off St,4300 - Printing & Stationery,24/07/2012,2098680-1,12.53,2100111 - Banner Business Supplies Ltd,Parking Whiteboard
Tendring DC,http://statistics.data.gov.uk/id/local-authority-district/22UN,Corporate Services,1210 - Facilities Management Service Unit,4300 - Printing & Stationery,24/07/2012,2098681-1,0.31,2100111 - Banner Business Supplies Ltd,Banner
Tendring DC,http://statistics.data.gov.uk/id/local-authority-district/22UN,Corporate Services,1320 - Print Unit Service Unit,4080 - Materials & Consumables,24/07/2012,2098854-1,26.95,2100111 - Banner Business Supplies Ltd,Stationery
Tendring DC,http://statistics.data.gov.uk/id/local-authority-district/22UN,Corporate Services,1880 - Office Accommodation Expenses,2100 - Building Repairs,03/07/2012,2098129-1,85,2100117 - Brian Birt Carpets Ltd,Brian Birt
Tendring DC,http://statistics.data.gov.uk/id/local-authority-district/22UN,Corporate Services,6740 - Careline,2304 - Energy Costs - Electricity,24/07/2012,2098674-1,91.07,2100197 - British Gas Trading Ltd,British gas - July
Tendring DC,http://statistics.data.gov.uk/id/local-authority-district/22UN,Corporate Services,6740 - Careline,2304 - Energy Costs - Electricity,24/07/2012,2098674-2,-25.56,2100197 - British Gas Trading Ltd,British gas - July
Tendring DC,http://statistics.data.gov.uk/id/local-authority-district/22UN,Corporate Services,1880 - Office Accommodation Expenses,2304 - Energy Costs - Electricity,31/07/2012,2098997-1,1379.89,2100197 - British Gas Trading Ltd,British Gas
Tendring DC,http://statistics.data.gov.uk/id/local-authority-district/22UN,Corporate Services,1880 - Office Accommodation Expenses,2304 - Energy Costs - Electricity,31/07/2012,2098997-10,162.83,2100197 - British Gas Trading Ltd,British Gas
Tendring DC,http://statistics.data.gov.uk/id/local-authority-district/22UN,Corporate Services,1880 - Office Accommodation Expenses,2304 - Energy Costs - Electricity,31/07/2012,2098997-11,44.05,2100197 - British Gas Trading Ltd,British Gas
Tendring DC,http://statistics.data.gov.uk/id/local-authority-district/22UN,Corporate Services,1880 - Office Accommodation Expenses,2304 - Energy Costs - Electricity,31/07/2012,2098997-12,54.64,2100197 - British Gas Trading Ltd,British Gas
Tendring DC,http://statistics.data.gov.uk/id/local-authority-district/22UN,Corporate Services,1880 - Office Accommodation Expenses,2304 - Energy Costs - Electricity,31/07/2012,2098997-13,-148.35,2100197 - British Gas Trading Ltd,British Gas
Tendring DC,http://statistics.data.gov.uk/id/local-authority-district/22UN,Corporate Services,1880 - Office Accommodation Expenses,2304 - Energy Costs - Electricity,31/07/2012,2098997-14,-1725.13,2100197 - British Gas Trading Ltd,British Gas
Tendring DC,http://statistics.data.gov.uk/id/local-authority-district/22UN,Corporate Services,1880 - Office Accommodation Expenses,2304 - Energy Costs - Electricity,31/07/2012,2098997-2,137.78,2100197 - British Gas Trading Ltd,British Gas
Tendring DC,http://statistics.data.gov.uk/id/local-authority-district/22UN,Corporate Services,1880 - Office Accommodation Expenses,2304 - Energy Costs - Electricity,31/07/2012,2098997-3,422.87,2100197 - British Gas Trading Ltd,British Gas
Tendring DC,http://statistics.data.gov.uk/id/local-authority-district/22UN,Corporate Services,1860 - Depots General,2304 - Energy Costs - Electricity,31/07/2012,2098997-4,383.06,2100197 - British Gas Trading Ltd,British Gas
Tendring DC,http://statistics.data.gov.uk/id/local-authority-district/22UN,Corporate Services,1860 - Depots General,2304 - Energy Costs - Electricity,31/07/2012,2098997-5,120.24,2100197 - British Gas Trading Ltd,British Gas
Tendring DC,http://statistics.data.gov.uk/id/local-authority-district/22UN,Corporate Services,1880 - Office Accommodation Expenses,2304 - Energy Costs - Electricity,31/07/2012,2098997-6,802.58,2100197 - British Gas Trading Ltd,British Gas
Tendring DC,http://statistics.data.gov.uk/id/local-authority-district/22UN,Corporate Services,1880 - Office Accommodation Expenses,2304 - Energy Costs - Electricity,31/07/2012,2098997-7,188.7,2100197 - British Gas Trading Ltd,British Gas
Tendring DC,http://statistics.data.gov.uk/id/local-authority-district/22UN,Corporate Services,1880 - Office Accommodation Expenses,2304 - Energy Costs - Electricity,31/07/2012,2098997-8,38.45,2100197 - British Gas Trading Ltd,British Gas
Tendring DC,http://statistics.data.gov.uk/id/local-authority-district/22UN,Corporate Services,1860 - Depots General,2304 - Energy Costs - Electricity,31/07/2012,2098997-9,45.45,2100197 - British Gas Trading Ltd,British Gas
Tendring DC,http://statistics.data.gov.uk/id/local-authority-district/22UN,Corporate Services,7716 - Jaywick Strategic Leadership group initiatives,4710 - Telephones - Charges,03/07/2012,1049164-1,141,2100168 - British Telecommunications plc,Internet
Tendring DC,http://statistics.data.gov.uk/id/local-authority-district/22UN,Corporate Services,7746 - Town Centres & Jaywick Business Support,4710 - Telephones - Charges,03/07/2012,2098075-1,61.23,2100168 - British Telecommunications plc,Rental - Aug 2012
Tendring DC,http://statistics.data.gov.uk/id/local-authority-district/22UN,Corporate Services,4680 - Abandoned Vehicles,4597 - Hired Services - Payments to Contractors,17/07/2012,2098528-1,81.71,2100168 - British Telecommunications plc,BT One Bill
Tendring DC,http://statistics.data.gov.uk/id/local-authority-district/22UN,Corporate Services,5360 - HRA - Sheltered Units,4710 - Telephones - Charges,17/07/2012,2098528-10,64.98,2100168 - British Telecommunications plc,BT One Bill
Tendring DC,http://statistics.data.gov.uk/id/local-authority-district/22UN,Corporate Services,5360 - HRA - Sheltered Units,4710 - Telephones - Charges,17/07/2012,2098528-11,64.76,2100168 - British Telecommunications plc,BT One Bill
Tendring DC,http://statistics.data.gov.uk/id/local-authority-district/22UN,Corporate Services,5360 - HRA - Sheltered Units,4710 - Telephones - Charges,17/07/2012,2098528-12,272.12,2100168 - British Telecommunications plc,BT One Bill
Tendring DC,http://statistics.data.gov.uk/id/local-authority-district/22UN,Corporate Services,5360 - HRA - Sheltered Units,4710 - Telephones - Charges,17/07/2012,2098528-13,197.07,2100168 - British Telecommunications plc,BT One Bill
Tendring DC,http://statistics.data.gov.uk/id/local-authority-district/22UN,Corporate Services,5360 - HRA - Sheltered Units,4710 - Telephones - Charges,17/07/2012,2098528-14,176.6,2100168 - British Telecommunications plc,BT One Bill
Tendring DC,http://statistics.data.gov.uk/id/local-authority-district/22UN,Corporate Services,5360 - HRA - Sheltered Units,4710 - Telephones - Charges,17/07/2012,2098528-15,64.76,2100168 - British Telecommunications plc,BT One Bill
Tendring DC,http://statistics.data.gov.uk/id/local-authority-district/22UN,Corporate Services,5360 - HRA - Sheltered Units,4710 - Telephones - Charges,17/07/2012,2098528-16,78.14,2100168 - British Telecommunications plc,BT One Bill
Tendring DC,http://statistics.data.gov.uk/id/local-authority-district/22UN,Corporate Services,5360 - HRA - Sheltered Units,4710 - Telephones - Charges,17/07/2012,2098528-17,71.18,2100168 - British Telecommunications plc,BT One Bill
Tendring DC,http://statistics.data.gov.uk/id/local-authority-district/22UN,Corporate Services,5360 - HRA - Sheltered Units,4710 - Telephones - Charges,17/07/2012,2098528-18,172.61,2100168 - British Telecommunications plc,BT One Bill
Tendring DC,http://statistics.data.gov.uk/id/local-authority-district/22UN,Corporate Services,6480 - Emergency Planning,4710 - Telephones - Charges,17/07/2012,2098528-19,214.91,2100168 - British Telecommunications plc,BT One Bill
Tendring DC,http://statistics.data.gov.uk/id/local-authority-district/22UN,Corporate Services,1880 - Office Accommodation Expenses,4623 - Hired Services - Emptying STWs,17/07/2012,2098528-2,531.35,2100168 - British Telecommunications plc,BT One Bill
Tendring DC,http://statistics.data.gov.uk/id/local-authority-district/22UN,Corporate Services,7620 - Air Show,4710 - Telephones - Charges,17/07/2012,2098528-20,153.89,2100168 - British Telecommunications plc,BT One Bill
Tendring DC,http://statistics.data.gov.uk/id/local-authority-district/22UN,Corporate Services,6740 - Careline,4710 - Telephones - Charges,17/07/2012,2098528-21,3425.27,2100168 - British Telecommunications plc,BT One Bill
Tendring DC,http://statistics.data.gov.uk/id/local-authority-district/22UN,Corporate Services,"1580 - Benefits, Revenues and Customer Contact SU",4718 - Fixed Communication Lines,17/07/2012,2098528-22,133.93,2100168 - British Telecommunications plc,BT One Bill
Tendring DC,http://statistics.data.gov.uk/id/local-authority-district/22UN,Corporate Services,6740 - Careline,4718 - Fixed Communication Lines,17/07/2012,2098528-23,171.41,2100168 - British Telecommunications plc,BT One Bill
Tendring DC,http://statistics.data.gov.uk/id/local-authority-district/22UN,Corporate Services,1040 - Regeneration Projects Service Unit,4730 - Fax Machine,17/07/2012,2098528-24,36.56,2100168 - British Telecommunications plc,BT One Bill
Tendring DC,http://statistics.data.gov.uk/id/local-authority-district/22UN,Corporate Services,1661 - Other Apportionable Overheads - Corporate Support,4700 - Postage,17/07/2012,2098528-3,36.92,2100168 - British Telecommunications plc,BT One Bill
Tendring DC,http://statistics.data.gov.uk/id/local-authority-district/22UN,Corporate Services,1320 - Print Unit Service Unit,4710 - Telephones - Charges,17/07/2012,2098528-4,50.2,2100168 - British Telecommunications plc,BT One Bill
Tendring DC,http://statistics.data.gov.uk/id/local-authority-district/22UN,Corporate Services,1560 - Cashiers Service Unit,4710 - Telephones - Charges,17/07/2012,2098528-5,388.31,2100168 - British Telecommunications plc,BT One Bill
Tendring DC,http://statistics.data.gov.uk/id/local-authority-district/22UN,Corporate Services,1560 - Cashiers Service Unit,4710 - Telephones - Charges,17/07/2012,2098528-6,36.31,2100168 - British Telecommunications plc,BT One Bill
Tendring DC,http://statistics.data.gov.uk/id/local-authority-district/22UN,Corporate Services,1840 - Central Telephone Service,4710 - Telephones - Charges,17/07/2012,2098528-7,148.29,2100168 - British Telecommunications plc,BT One Bill
Tendring DC,http://statistics.data.gov.uk/id/local-authority-district/22UN,Corporate Services,4780 - Rodent & Pest Control,4710 - Telephones - Charges,17/07/2012,2098528-8,137.52,2100168 - British Telecommunications plc,BT One Bill
Tendring DC,http://statistics.data.gov.uk/id/local-authority-district/22UN,Corporate Services,5360 - HRA - Sheltered Units,4710 - Telephones - Charges,17/07/2012,2098528-9,66.04,2100168 - British Telecommunications plc,BT One Bill
Tendring DC,http://statistics.data.gov.uk/id/local-authority-district/22UN,Corporate Services,1422 - Contact Centre Service Unit,4752 - Computer - Operating Systems Maintenance,10/07/2012,2098222-1,41130,2100119 - BT Global Services,BT Global (Apr12 -Mar 13)
Tendring DC,http://statistics.data.gov.uk/id/local-authority-district/22UN,Corporate Services,1840 - Central Telephone Service,4752 - Computer - Operating Systems Maintenance,10/07/2012,2098222-2,21110,2100119 - BT Global Services,BT Global (Apr12 -Mar 13)
Tendring DC,http://statistics.data.gov.uk/id/local-authority-district/22UN,Corporate Services,1760 - IT Direct Service Costs,4715 - Data Communication Charge,10/07/2012,2098222-3,5222.58,2100119 - BT Global Services,BT Global (Apr12 -Mar 13)
Tendring DC,http://statistics.data.gov.uk/id/local-authority-district/22UN,Corporate Services,1760 - IT Direct Service Costs,6325 - Additional ICT Services,10/07/2012,2098222-4,2338.6,2100119 - BT Global Services,BT Global (Apr12 -Mar 13)
Tendring DC,http://statistics.data.gov.uk/id/local-authority-district/22UN,Corporate Services,1760 - IT Direct Service Costs,6325 - Additional ICT Services,10/07/2012,2098222-5,1092.05,2100119 - BT Global Services,BT Global (Apr12 -Mar 13)
Tendring DC,http://statistics.data.gov.uk/id/local-authority-district/22UN,Corporate Services,7400 - Jaywick Enterprise Centre (Starter Units),2704 - Building Cleaning,31/07/2012,1049346-1,64.55,2101624 - Bunzl,CLEANING SUPPLIES
Tendring DC,http://statistics.data.gov.uk/id/local-authority-district/22UN,Corporate Services,8150 - Office Cleaning,4080 - Materials & Consumables,10/07/2012,2098299-1,567.44,2101624 - Bunzl,Bunzl
Tendring DC,http://statistics.data.gov.uk/id/local-authority-district/22UN,Corporate Services,8150 - Office Cleaning,4080 - Materials & Consumables,24/07/2012,2098706-1,41.29,2101624 - Bunzl,Bunzl
Tendring DC,http://statistics.data.gov.uk/id/local-authority-district/22UN,Corporate Services,8150 - Office Cleaning,4080 - Materials & Consumables,31/07/2012,2098985-1,60.88,2101624 - Bunzl,Bunzl
Tendring DC,http://statistics.data.gov.uk/id/local-authority-district/22UN,Corporate Services,8150 - Office Cleaning,4080 - Materials & Consumables,31/07/2012,2098986-1,414.03,2101624 - Bunzl,Bunzl
Tendring DC,http://statistics.data.gov.uk/id/local-authority-district/22UN,Corporate Services,1320 - Print Unit Service Unit,4302 - External Print Unit Expenses,10/07/2012,2098288-1,20,2104320 - C3 Imaging Colchester,Job 147
Tendring DC,http://statistics.data.gov.uk/id/local-authority-district/22UN,Corporate Services,1320 - Print Unit Service Unit,4302 - External Print Unit Expenses,10/07/2012,2098289-1,25,2104320 - C3 Imaging Colchester,Job 110
Tendring DC,http://statistics.data.gov.uk/id/local-authority-district/22UN,Corporate Services,1320 - Print Unit Service Unit,4302 - External Print Unit Expenses,24/07/2012,2098826-1,30,2104320 - C3 Imaging Colchester,Job 156
Tendring DC,http://statistics.data.gov.uk/id/local-authority-district/22UN,Corporate Services,1880 - Office Accommodation Expenses,2100 - Building Repairs,10/07/2012,2098303-1,205,2100858 - Chelmer Electrical Ltd,Chelmer Electrical
Tendring DC,http://statistics.data.gov.uk/id/local-authority-district/22UN,Corporate Services,1880 - Office Accommodation Expenses,2100 - Building Repairs,31/07/2012,2098988-1,580,2100858 - Chelmer Electrical Ltd,Chelmer Electrical
Tendring DC,http://statistics.data.gov.uk/id/local-authority-district/22UN,Corporate Services,1880 - Office Accommodation Expenses,2100 - Building Repairs,31/07/2012,2098988-2,524,2100858 - Chelmer Electrical Ltd,Chelmer Electrical
Tendring DC,http://statistics.data.gov.uk/id/local-authority-district/22UN,Corporate Services,1880 - Office Accommodation Expenses,2100 - Building Repairs,31/07/2012,2098988-3,176,2100858 - Chelmer Electrical Ltd,Chelmer Electrical
Tendring DC,http://statistics.data.gov.uk/id/local-authority-district/22UN,Corporate Services,1880 - Office Accommodation Expenses,2100 - Building Repairs,31/07/2012,2098988-4,176,2100858 - Chelmer Electrical Ltd,Chelmer Electrical
Tendring DC,http://statistics.data.gov.uk/id/local-authority-district/22UN,Corporate Services,7720 - Regeneration Projects,4900 - Grants,31/07/2012,2098984-1,6293.5,2100342 - Colne Housing Society Ltd,Foundry Court - Big Society
Tendring DC,http://statistics.data.gov.uk/id/local-authority-district/22UN,Corporate Services,1880 - Office Accommodation Expenses,2100 - Building Repairs,03/07/2012,1049094-1,1156.5,2100314 - Cooper & Brome (Plumbing & Heating) Ltd,COOPER & BROME
Tendring DC,http://statistics.data.gov.uk/id/local-authority-district/22UN,Corporate Services,1880 - Office Accommodation Expenses,2100 - Building Repairs,17/07/2012,2098539-1,39,2108384 - DC Drains & Plumbing Services,D C Drainage
Tendring DC,http://statistics.data.gov.uk/id/local-authority-district/22UN,Corporate Services,1880 - Office Accommodation Expenses,2100 - Building Repairs,17/07/2012,2098540-1,123.5,2108384 - DC Drains & Plumbing Services,D C Drainage
Tendring DC,http://statistics.data.gov.uk/id/local-authority-district/22UN,Corporate Services,1880 - Office Accommodation Expenses,2100 - Building Repairs,17/07/2012,2098541-1,58.5,2108384 - DC Drains & Plumbing Services,D C Drainage
Tendring DC,http://statistics.data.gov.uk/id/local-authority-district/22UN,Corporate Services,1880 - Office Accommodation Expenses,2100 - Building Repairs,17/07/2012,2098542-1,68.49,2108384 - DC Drains & Plumbing Services,D C Drainage
Tendring DC,http://statistics.data.gov.uk/id/local-authority-district/22UN,Corporate Services,7400 - Jaywick Enterprise Centre (Starter Units),4350 - Photocopier Hire,03/07/2012,2098168-1,66.96,2110757 - Digital Copier Systems (Eastern) Ltd,Quarterly June Sept 12
Tendring DC,http://statistics.data.gov.uk/id/local-authority-district/22UN,Corporate Services,7746 - Town Centres & Jaywick Business Support,5500 - Miscellaneous Expenses,10/07/2012,2098291-1,225,2103062 - Dods Parliamentary Communications Ltd,Portas Briefing 280612
Tendring DC,http://statistics.data.gov.uk/id/local-authority-district/22UN,Corporate Services,1880 - Office Accommodation Expenses,2304 - Energy Costs - Electricity,10/07/2012,2098372-1,4321.15,2105146 - EDF Energy 1 Ltd,EDF - June 12
Tendring DC,http://statistics.data.gov.uk/id/local-authority-district/22UN,Corporate Services,6160 - Princes Theatre,2304 - Energy Costs - Electricity,10/07/2012,2098372-2,480.13,2105146 - EDF Energy 1 Ltd,EDF - June 12
Tendring DC,http://statistics.data.gov.uk/id/local-authority-district/22UN,Corporate Services,7025 - CDRP Support,4900 - Grants,24/07/2012,2098741-1,62,2112365 - Emergency Doctors Medical Service Ltd,Cont to NOA
Tendring DC,http://statistics.data.gov.uk/id/local-authority-district/22UN,Corporate Services,7746 - Town Centres & Jaywick Business Support,2304 - Energy Costs - Electricity,24/07/2012,2098725-1,39.67,2107644 - Eon,June Usage
Tendring DC,http://statistics.data.gov.uk/id/local-authority-district/22UN,Corporate Services,7025 - CDRP Support,4900 - Grants,17/07/2012,1049228-1,200,2109136 - Essex Cares Ltd,CONT TO KEEP SAFE LAUNCH
Tendring DC,http://statistics.data.gov.uk/id/local-authority-district/22UN,Corporate Services,7400 - Jaywick Enterprise Centre (Starter Units),2704 - Building Cleaning,10/07/2012,2098340-1,120,2110579 - Fields Total Cleaning,June Clean
Tendring DC,http://statistics.data.gov.uk/id/local-authority-district/22UN,Corporate Services,7716 - Jaywick Strategic Leadership group initiatives,3050 - Vehicle Repairs,24/07/2012,1049307-1,195,2100546 - GCS Alarms,ALARM SERVICE
Tendring DC,http://statistics.data.gov.uk/id/local-authority-district/22UN,Corporate Services,7025 - CDRP Support,4900 - Grants,31/07/2012,1049422-1,100,2100546 - GCS Alarms,GCS-SECURITY SYSTEM
Tendring DC,http://statistics.data.gov.uk/id/local-authority-district/22UN,Corporate Services,1880 - Office Accommodation Expenses,4632 - Security,03/07/2012,2098039-1,50,2100546 - GCS Alarms,GCS
Tendring DC,http://statistics.data.gov.uk/id/local-authority-district/22UN,Corporate Services,1880 - Office Accommodation Expenses,4632 - Security,03/07/2012,2098040-1,85,2100546 - GCS Alarms,GCS
Tendring DC,http://statistics.data.gov.uk/id/local-authority-district/22UN,Corporate Services,1880 - Office Accommodation Expenses,4632 - Security,03/07/2012,2098041-1,63.29,2100546 - GCS Alarms,GCS
Tendring DC,http://statistics.data.gov.uk/id/local-authority-district/22UN,Corporate Services,1880 - Office Accommodation Expenses,2100 - Building Repairs,03/07/2012,2098063-1,25,2100546 - GCS Alarms,
Tendring DC,http://statistics.data.gov.uk/id/local-authority-district/22UN,Corporate Services,1880 - Office Accommodation Expenses,4632 - Security,03/07/2012,2098074-1,63.5,2100546 - GCS Alarms,GCS
Tendring DC,http://statistics.data.gov.uk/id/local-authority-district/22UN,Corporate Services,1880 - Office Accommodation Expenses,4632 - Security,03/07/2012,2098128-1,110,2100546 - GCS Alarms,GCS
Tendring DC,http://statistics.data.gov.uk/id/local-authority-district/22UN,Corporate Services,7100 - Community Health/Safety,5500 - Miscellaneous Expenses,10/07/2012,2098383-1,270.25,2100546 - GCS Alarms,Supply & Install @ Dovercourt Swim Pool
Tendring DC,http://statistics.data.gov.uk/id/local-authority-district/22UN,Corporate Services,5880 - Management Of Sport & Leisure Facilities,2100 - Building Repairs,10/07/2012,2098383-2,400,2100546 - GCS Alarms,Supply & Install @ Dovercourt Swim Pool
Tendring DC,http://statistics.data.gov.uk/id/local-authority-district/22UN,Corporate Services,1880 - Office Accommodation Expenses,4632 - Security,24/07/2012,2098699-1,50,2100546 - GCS Alarms,GCS
Tendring DC,http://statistics.data.gov.uk/id/local-authority-district/22UN,Corporate Services,1860 - Depots General,4632 - Security,24/07/2012,2098700-1,50,2100546 - GCS Alarms,GCS
Tendring DC,http://statistics.data.gov.uk/id/local-authority-district/22UN,Corporate Services,1880 - Office Accommodation Expenses,2100 - Building Repairs,10/07/2012,2098300-1,199.97,2100588 - Grantleys,Grantleys
Tendring DC,http://statistics.data.gov.uk/id/local-authority-district/22UN,Corporate Services,1880 - Office Accommodation Expenses,4446 - Bulk Bin Collection,17/07/2012,2098535-1,181.74,2111348 - Green Recycling Ltd,Green Recycling - C Tax
Tendring DC,http://statistics.data.gov.uk/id/local-authority-district/22UN,Corporate Services,1880 - Office Accommodation Expenses,4446 - Bulk Bin Collection,17/07/2012,2098536-1,90.87,2111348 - Green Recycling Ltd,Green recycling - Wleigh
Tendring DC,http://statistics.data.gov.uk/id/local-authority-district/22UN,Corporate Services,1880 - Office Accommodation Expenses,4446 - Bulk Bin Collection,17/07/2012,2098537-1,363.48,2111348 - Green Recycling Ltd,Green Recycling - Weeley
Tendring DC,http://statistics.data.gov.uk/id/local-authority-district/22UN,Corporate Services,1880 - Office Accommodation Expenses,4446 - Bulk Bin Collection,17/07/2012,2098538-1,272.61,2111348 - Green Recycling Ltd,Green Recycling
Tendring DC,http://statistics.data.gov.uk/id/local-authority-district/22UN,Corporate Services,1880 - Office Accommodation Expenses,2100 - Building Repairs,10/07/2012,2098302-1,95,2106272 - Greenleaf Pest Control Services,GPCS
Tendring DC,http://statistics.data.gov.uk/id/local-authority-district/22UN,Corporate Services,1880 - Office Accommodation Expenses,2100 - Building Repairs,17/07/2012,2098522-1,90,2106272 - Greenleaf Pest Control Services,GPCS C Tax
Tendring DC,http://statistics.data.gov.uk/id/local-authority-district/22UN,Corporate Services,1880 - Office Accommodation Expenses,2100 - Building Repairs,24/07/2012,2098705-1,90,2106272 - Greenleaf Pest Control Services,GPCS
Tendring DC,http://statistics.data.gov.uk/id/local-authority-district/22UN,Corporate Services,7040 - Civic Ceremonial Expenses,4080 - Materials & Consumables,03/07/2012,2098125-1,617,2106604 - House of Logo's Ltd,Civic Gifts
Tendring DC,http://statistics.data.gov.uk/id/local-authority-district/22UN,Corporate Services,7040 - Civic Ceremonial Expenses,4080 - Materials & Consumables,03/07/2012,2098125-2,-50,2106604 - House of Logo's Ltd,Civic Gifts
Tendring DC,http://statistics.data.gov.uk/id/local-authority-district/22UN,Corporate Services,1880 - Office Accommodation Expenses,2100 - Building Repairs,03/07/2012,2098126-1,82.31,2100619 - Hughes Electrical,Hughes
Tendring DC,http://statistics.data.gov.uk/id/local-authority-district/22UN,Corporate Services,1100 - Corporate Services Manager Service Unit,4822 - Staff Allowances - Conference,24/07/2012,2098860-1,53.63,REDACTED PERSONAL DATA,REDACTED PERSONAL DATA
Tendring DC,http://statistics.data.gov.uk/id/local-authority-district/22UN,Corporate Services,1880 - Office Accommodation Expenses,4632 - Security,24/07/2012,2098835-1,234,2100750 - ID Management Systems,ID Management
Tendring DC,http://statistics.data.gov.uk/id/local-authority-district/22UN,Corporate Services,1880 - Office Accommodation Expenses,4632 - Security,31/07/2012,2098989-1,352,2100750 - ID Management Systems,ID Management
Tendring DC,http://statistics.data.gov.uk/id/local-authority-district/22UN,Corporate Services,7400 - Jaywick Enterprise Centre (Starter Units),2704 - Building Cleaning,24/07/2012,2098842-1,5.55,2104976 - Initial Washroom Solutions,Snitact Unit 28/7/12 - 27/8/12
Tendring DC,http://statistics.data.gov.uk/id/local-authority-district/22UN,Corporate Services,7030 - Crime and Disorder - Police Grant,4900 - Grants,10/07/2012,2098292-1,340.08,2100792 - Insignia Ltd,Crucial Crew Button Badges
Tendring DC,http://statistics.data.gov.uk/id/local-authority-district/22UN,Corporate Services,1880 - Office Accommodation Expenses,4448 - Confidential Waste,10/07/2012,2098177-1,47,2110936 - IPPlus (UK) Ltd,Ancora
Tendring DC,http://statistics.data.gov.uk/id/local-authority-district/22UN,Corporate Services,1880 - Office Accommodation Expenses,4448 - Confidential Waste,10/07/2012,2098177-2,89.3,2110936 - IPPlus (UK) Ltd,Ancora
Tendring DC,http://statistics.data.gov.uk/id/local-authority-district/22UN,Corporate Services,1880 - Office Accommodation Expenses,2100 - Building Repairs,17/07/2012,1049249-1,55,2100758 - K A Hockley Ltd,HOCKLEY
Tendring DC,http://statistics.data.gov.uk/id/local-authority-district/22UN,Corporate Services,1320 - Print Unit Service Unit,4080 - Materials & Consumables,24/07/2012,2098742-1,89.7,2100864 - Leston Stationery Ltd,Paper
Tendring DC,http://statistics.data.gov.uk/id/local-authority-district/22UN,Corporate Services,1320 - Print Unit Service Unit,4080 - Materials & Consumables,24/07/2012,2098852-1,179.6,2100864 - Leston Stationery Ltd,Paper
Tendring DC,http://statistics.data.gov.uk/id/local-authority-district/22UN,Corporate Services,1320 - Print Unit Service Unit,4080 - Materials & Consumables,24/07/2012,2098853-1,11.79,2100864 - Leston Stationery Ltd,Stationery
Tendring DC,http://statistics.data.gov.uk/id/local-authority-district/22UN,Corporate Services,1880 - Office Accommodation Expenses,2100 - Building Repairs,17/07/2012,2098521-1,1750,2110096 - MRM Electrical,MRM Electrical
Tendring DC,http://statistics.data.gov.uk/id/local-authority-district/22UN,Corporate Services,7716 - Jaywick Strategic Leadership group initiatives,4800 - Hospitality,31/07/2012,2098905-1,69.15,REDACTED PERSONAL DATA,REDACTED PERSONAL DATA
Tendring DC,http://statistics.data.gov.uk/id/local-authority-district/22UN,Corporate Services,7716 - Jaywick Strategic Leadership group initiatives,4800 - Hospitality,31/07/2012,2098905-2,18.58,REDACTED PERSONAL DATA,REDACTED PERSONAL DATA
Tendring DC,http://statistics.data.gov.uk/id/local-authority-district/22UN,Corporate Services,7716 - Jaywick Strategic Leadership group initiatives,4800 - Hospitality,31/07/2012,2098905-3,0.42,REDACTED PERSONAL DATA,REDACTED PERSONAL DATA
Tendring DC,http://statistics.data.gov.uk/id/local-authority-district/22UN,Corporate Services,7716 - Jaywick Strategic Leadership group initiatives,9212 - Telephones,31/07/2012,2098905-4,24.99,REDACTED PERSONAL DATA,REDACTED PERSONAL DATA
Tendring DC,http://statistics.data.gov.uk/id/local-authority-district/22UN,Corporate Services,1880 - Office Accommodation Expenses,2100 - Building Repairs,03/07/2012,2098059-1,250,2100967 - N Rudelhoff,N R Electrical
Tendring DC,http://statistics.data.gov.uk/id/local-authority-district/22UN,Corporate Services,1880 - Office Accommodation Expenses,2100 - Building Repairs,03/07/2012,2098060-1,45,2100967 - N Rudelhoff,N R Electrical
Tendring DC,http://statistics.data.gov.uk/id/local-authority-district/22UN,Corporate Services,1860 - Depots General,2100 - Building Repairs,03/07/2012,2098060-2,49,2100967 - N Rudelhoff,N R Electrical
Tendring DC,http://statistics.data.gov.uk/id/local-authority-district/22UN,Corporate Services,1880 - Office Accommodation Expenses,2100 - Building Repairs,03/07/2012,2098060-3,33,2100967 - N Rudelhoff,N R Electrical
Tendring DC,http://statistics.data.gov.uk/id/local-authority-district/22UN,Corporate Services,1860 - Depots General,2100 - Building Repairs,03/07/2012,2098060-4,220,2100967 - N Rudelhoff,N R Electrical
Tendring DC,http://statistics.data.gov.uk/id/local-authority-district/22UN,Corporate Services,1880 - Office Accommodation Expenses,2100 - Building Repairs,03/07/2012,2098060-5,144,2100967 - N Rudelhoff,N R Electrical
Tendring DC,http://statistics.data.gov.uk/id/local-authority-district/22UN,Corporate Services,1880 - Office Accommodation Expenses,2100 - Building Repairs,03/07/2012,2098060-6,42,2100967 - N Rudelhoff,N R Electrical
Tendring DC,http://statistics.data.gov.uk/id/local-authority-district/22UN,Corporate Services,1880 - Office Accommodation Expenses,2100 - Building Repairs,03/07/2012,2098060-7,36,2100967 - N Rudelhoff,N R Electrical
Tendring DC,http://statistics.data.gov.uk/id/local-authority-district/22UN,Corporate Services,1880 - Office Accommodation Expenses,2100 - Building Repairs,03/07/2012,2098060-8,69,2100967 - N Rudelhoff,N R Electrical
Tendring DC,http://statistics.data.gov.uk/id/local-authority-district/22UN,Corporate Services,1880 - Office Accommodation Expenses,2100 - Building Repairs,03/07/2012,2098061-1,20,2100967 - N Rudelhoff,N R Electrical
Tendring DC,http://statistics.data.gov.uk/id/local-authority-district/22UN,Corporate Services,1880 - Office Accommodation Expenses,2100 - Building Repairs,03/07/2012,2098061-2,35,2100967 - N Rudelhoff,N R Electrical
Tendring DC,http://statistics.data.gov.uk/id/local-authority-district/22UN,Corporate Services,1880 - Office Accommodation Expenses,2100 - Building Repairs,03/07/2012,2098061-3,35,2100967 - N Rudelhoff,N R Electrical
Tendring DC,http://statistics.data.gov.uk/id/local-authority-district/22UN,Corporate Services,1880 - Office Accommodation Expenses,2100 - Building Repairs,03/07/2012,2098062-1,198,2100967 - N Rudelhoff,N R Electrical
Tendring DC,http://statistics.data.gov.uk/id/local-authority-district/22UN,Corporate Services,1880 - Office Accommodation Expenses,2100 - Building Repairs,10/07/2012,2098371-1,79.54,2102791 - Nantmor Blinds Ltd,Nantmor Blinds
Tendring DC,http://statistics.data.gov.uk/id/local-authority-district/22UN,Corporate Services,1880 - Office Accommodation Expenses,2100 - Building Repairs,31/07/2012,2098987-1,409.04,2102791 - Nantmor Blinds Ltd,Nantmor Blinds
Tendring DC,http://statistics.data.gov.uk/id/local-authority-district/22UN,Corporate Services,7746 - Town Centres & Jaywick Business Support,5500 - Miscellaneous Expenses,17/07/2012,2098606-1,100,2111959 - National Car Parks Ltd,Season Ticket
Tendring DC,http://statistics.data.gov.uk/id/local-authority-district/22UN,Corporate Services,7746 - Town Centres & Jaywick Business Support,5500 - Miscellaneous Expenses,03/07/2012,2098167-1,225,2100989 - Newsquest (London) Ltd,Pop Up Shop Advert
Tendring DC,http://statistics.data.gov.uk/id/local-authority-district/22UN,Corporate Services,7746 - Town Centres & Jaywick Business Support,5500 - Miscellaneous Expenses,10/07/2012,2098384-1,195,2100989 - Newsquest (London) Ltd,Eve Gaz Advert 26/06/12
Tendring DC,http://statistics.data.gov.uk/id/local-authority-district/22UN,Corporate Services,1320 - Print Unit Service Unit,4080 - Materials & Consumables,31/07/2012,2098891-1,346.81,REDACTED PERSONAL DATA,REDACTED PERSONAL DATA
Tendring DC,http://statistics.data.gov.uk/id/local-authority-district/22UN,Corporate Services,1320 - Print Unit Service Unit,4302 - External Print Unit Expenses,03/07/2012,2098073-1,850,2111844 - Optimumprint,Job 127/148
Tendring DC,http://statistics.data.gov.uk/id/local-authority-district/22UN,Corporate Services,1661 - Other Apportionable Overheads - Corporate Support,4700 - Postage,17/07/2012,1049218-1,20.15,2101075 - Parcelforce Worldwide,PARCEL FORCE
Tendring DC,http://statistics.data.gov.uk/id/local-authority-district/22UN,Corporate Services,1661 - Other Apportionable Overheads - Corporate Support,4700 - Postage,27/07/2012,2099004-1,834,2104077 - Pitney Bowes Ltd,Franking Machine Contract
Tendring DC,http://statistics.data.gov.uk/id/local-authority-district/22UN,Corporate Services,7240 - Electoral Registration Expenses,4300 - Printing & Stationery,10/07/2012,2098308-1,6890.69,2103246 - Print.uk.com,Canvass Electoral
Tendring DC,http://statistics.data.gov.uk/id/local-authority-district/22UN,Corporate Services,7716 - Jaywick Strategic Leadership group initiatives,5036 - Insurance - All Risks,24/07/2012,2098851-1,87,2111340 - RAC Motoring Services,RAC
Tendring DC,http://statistics.data.gov.uk/id/local-authority-district/22UN,Corporate Services,7746 - Town Centres & Jaywick Business Support,5500 - Miscellaneous Expenses,10/07/2012,2098246-1,5,2110692 - Rachel Fryer,
Tendring DC,http://statistics.data.gov.uk/id/local-authority-district/22UN,Corporate Services,1210 - Facilities Management Service Unit,4400 - Maintenance Under Service Agreements,10/07/2012,2098301-1,1471.89,2101090 - Ricoh UK Ltd,Ricoh
Tendring DC,http://statistics.data.gov.uk/id/local-authority-district/22UN,Corporate Services,1661 - Other Apportionable Overheads - Corporate Support,4700 - Postage,17/07/2012,1049219-1,750,2101139 - Royal Mail,WEELEY COLLECTION
Tendring DC,http://statistics.data.gov.uk/id/local-authority-district/22UN,Corporate Services,7240 - Electoral Registration Expenses,4700 - Postage,17/07/2012,1049233-1,3.97,2101139 - Royal Mail,ELECTORAL POSTAGE
Tendring DC,http://statistics.data.gov.uk/id/local-authority-district/22UN,Corporate Services,7220 - Election Expenses,4486 - Election Expenses,03/07/2012,2098077-1,413.95,2101139 - Royal Mail,Electoral by Elections
Tendring DC,http://statistics.data.gov.uk/id/local-authority-district/22UN,Corporate Services,7240 - Electoral Registration Expenses,4700 - Postage,10/07/2012,2098211-1,168.29,2101139 - Royal Mail,Electoral Postage
Tendring DC,http://statistics.data.gov.uk/id/local-authority-district/22UN,Corporate Services,7240 - Electoral Registration Expenses,4700 - Postage,24/07/2012,2098655-1,0.27,2101139 - Royal Mail,Electoral Postage
Tendring DC,http://statistics.data.gov.uk/id/local-authority-district/22UN,Corporate Services,1880 - Office Accommodation Expenses,2100 - Building Repairs,24/07/2012,2098701-1,80,2100032 - Signs Made Easy,Signs Made Easy
Tendring DC,http://statistics.data.gov.uk/id/local-authority-district/22UN,Corporate Services,1880 - Office Accommodation Expenses,2100 - Building Repairs,24/07/2012,2098702-1,150,2100032 - Signs Made Easy,Signs Made Easy
Tendring DC,http://statistics.data.gov.uk/id/local-authority-district/22UN,Corporate Services,1880 - Office Accommodation Expenses,2100 - Building Repairs,24/07/2012,2098703-1,80,2100032 - Signs Made Easy,Signs Made Easy
Tendring DC,http://statistics.data.gov.uk/id/local-authority-district/22UN,Corporate Services,7020 - SSCF - Crime Reduction,4900 - Grants,24/07/2012,1049304-1,445,2102702 - Solon Security Ltd,SAFETY EVENT
Tendring DC,http://statistics.data.gov.uk/id/local-authority-district/22UN,Corporate Services,7716 - Jaywick Strategic Leadership group initiatives,4040 - Equipment & Tools,03/07/2012,2097477-1,87.2,2101297 - SP Services,Medical Supplies
Tendring DC,http://statistics.data.gov.uk/id/local-authority-district/22UN,Corporate Services,1880 - Office Accommodation Expenses,2100 - Building Repairs,17/07/2012,1049238-1,22.17,2101370 - Stannah Lift Services Ltd,STANNAH
Tendring DC,http://statistics.data.gov.uk/id/local-authority-district/22UN,Corporate Services,7460 - Economic Promotion,5164 - Project Expenses,10/07/2012,2098357-1,7.49,2102526 - Susan Brown,Starlings Interviews
Tendring DC,http://statistics.data.gov.uk/id/local-authority-district/22UN,Corporate Services,7460 - Economic Promotion,5164 - Project Expenses,31/07/2012,2099019-1,16.38,REDACTED PERSONAL DATA,REDACTED PERSONAL DATA
Tendring DC,http://statistics.data.gov.uk/id/local-authority-district/22UN,Corporate Services,9900 - General Fund Balance Sheet,B382 - Rechargeable Works - Other,10/07/2012,2098325-1,7.5,2101314 - T V Licensing,TV Licence - Vyntoner
Tendring DC,http://statistics.data.gov.uk/id/local-authority-district/22UN,Corporate Services,1320 - Print Unit Service Unit,4080 - Materials & Consumables,24/07/2012,1049303-1,217.55,2108506 - Technology Business Services Ltd,RICOH INK
Tendring DC,http://statistics.data.gov.uk/id/local-authority-district/22UN,Corporate Services,1100 - Corporate Services Manager Service Unit,1700 - Training - Courses,10/07/2012,2098306-1,236,2104780 - The Association of Electoral Administrators,Alison Rowlands Course
Tendring DC,http://statistics.data.gov.uk/id/local-authority-district/22UN,Corporate Services,1880 - Office Accommodation Expenses,4632 - Security,03/07/2012,2098042-1,20,2101437 - Tower Security (Tendring) Ltd,Tower Security
Tendring DC,http://statistics.data.gov.uk/id/local-authority-district/22UN,Corporate Services,1880 - Office Accommodation Expenses,4632 - Security,03/07/2012,2098042-2,20,2101437 - Tower Security (Tendring) Ltd,Tower Security
Tendring DC,http://statistics.data.gov.uk/id/local-authority-district/22UN,Corporate Services,1880 - Office Accommodation Expenses,4632 - Security,03/07/2012,2098043-1,20,2101437 - Tower Security (Tendring) Ltd,Tower Security
Tendring DC,http://statistics.data.gov.uk/id/local-authority-district/22UN,Corporate Services,7400 - Jaywick Enterprise Centre (Starter Units),4446 - Bulk Bin Collection,17/07/2012,1049244-1,100.62,2101092 - Veolia ES (UK) Limited,JUNE COLLECTION
Tendring DC,http://statistics.data.gov.uk/id/local-authority-district/22UN,Corporate Services,1860 - Depots General,4446 - Bulk Bin Collection,03/07/2012,2098048-1,90,2101092 - Veolia ES (UK) Limited,
Tendring DC,http://statistics.data.gov.uk/id/local-authority-district/22UN,Corporate Services,1880 - Office Accommodation Expenses,4446 - Bulk Bin Collection,17/07/2012,2098529-1,61.34,2101092 - Veolia ES (UK) Limited,Veolia - Clay Hall
Tendring DC,http://statistics.data.gov.uk/id/local-authority-district/22UN,Corporate Services,1880 - Office Accommodation Expenses,4446 - Bulk Bin Collection,17/07/2012,2098530-1,341,2101092 - Veolia ES (UK) Limited,Veolia Weeley
Tendring DC,http://statistics.data.gov.uk/id/local-authority-district/22UN,Corporate Services,1880 - Office Accommodation Expenses,4446 - Bulk Bin Collection,17/07/2012,2098531-1,84.56,2101092 - Veolia ES (UK) Limited,Veolia Westleigh
Tendring DC,http://statistics.data.gov.uk/id/local-authority-district/22UN,Corporate Services,1880 - Office Accommodation Expenses,4446 - Bulk Bin Collection,17/07/2012,2098532-1,652.46,2101092 - Veolia ES (UK) Limited,Veolia TH
Tendring DC,http://statistics.data.gov.uk/id/local-authority-district/22UN,Corporate Services,1880 - Office Accommodation Expenses,4446 - Bulk Bin Collection,17/07/2012,2098533-1,189.09,2101092 - Veolia ES (UK) Limited,Veolia C Tax
Tendring DC,http://statistics.data.gov.uk/id/local-authority-district/22UN,Corporate Services,1860 - Depots General,4446 - Bulk Bin Collection,17/07/2012,2098534-1,78.26,2101092 - Veolia ES (UK) Limited,Veolia N'Bourne
Tendring DC,http://statistics.data.gov.uk/id/local-authority-district/22UN,Corporate Services,1090 - Management Team Service Unit,4716 - Mobile Telephone Costs,31/07/2012,2098992-1,137.93,2101522 - Vodafone Corporate,Vodafone DJA & ID Calls
Tendring DC,http://statistics.data.gov.uk/id/local-authority-district/22UN,Corporate Services,1090 - Management Team Service Unit,4716 - Mobile Telephone Costs,31/07/2012,2098993-1,343.4,2101522 - Vodafone Corporate,Vodafone
Tendring DC,http://statistics.data.gov.uk/id/local-authority-district/22UN,Corporate Services,1100 - Corporate Services Manager Service Unit,4716 - Mobile Telephone Costs,31/07/2012,2098993-2,158.25,2101522 - Vodafone Corporate,Vodafone
Tendring DC,http://statistics.data.gov.uk/id/local-authority-district/22UN,Corporate Services,1210 - Facilities Management Service Unit,4716 - Mobile Telephone Costs,31/07/2012,2098993-3,349.85,2101522 - Vodafone Corporate,Vodafone
Tendring DC,http://statistics.data.gov.uk/id/local-authority-district/22UN,Corporate Services,6580 - Member Support Cost,4716 - Mobile Telephone Costs,31/07/2012,2098993-4,514.98,2101522 - Vodafone Corporate,Vodafone
Tendring DC,http://statistics.data.gov.uk/id/local-authority-district/22UN,Corporate Services,7716 - Jaywick Strategic Leadership group initiatives,4716 - Mobile Telephone Costs,31/07/2012,2098993-5,103,2101522 - Vodafone Corporate,Vodafone
Tendring DC,http://statistics.data.gov.uk/id/local-authority-district/22UN,Corporate Services,7025 - CDRP Support,4900 - Grants,31/07/2012,2098993-6,11.59,2101522 - Vodafone Corporate,Vodafone
Tendring DC,http://statistics.data.gov.uk/id/local-authority-district/22UN,Corporate Services,1040 - Regeneration Projects Service Unit,4716 - Mobile Telephone Costs,31/07/2012,2098993-7,178.22,2101522 - Vodafone Corporate,Vodafone
Tendring DC,http://statistics.data.gov.uk/id/local-authority-district/22UN,Corporate Services,1320 - Print Unit Service Unit,4350 - Photocopier Hire,03/07/2012,2097938-1,1635.5,2101517 - Xerox (UK) Ltd,252 Copies & BC
Tendring DC,http://statistics.data.gov.uk/id/local-authority-district/22UN,Corporate Services,1320 - Print Unit Service Unit,4350 - Photocopier Hire,10/07/2012,2098290-1,522.96,2101517 - Xerox (UK) Ltd,4127 Copies
Tendring DC,http://statistics.data.gov.uk/id/local-authority-district/22UN,Corporate Services,7716 - Jaywick Strategic Leadership group initiatives,4300 - Printing & Stationery,24/07/2012,1049305-1,122.75,2107546 - XMA Limited,INKS
Tendring DC,http://statistics.data.gov.uk/id/local-authority-district/22UN,Corporate Services,7716 - Jaywick Strategic Leadership group initiatives,4300 - Printing & Stationery,24/07/2012,1049306-1,70.94,2107546 - XMA Limited,IMAGING DRUM
Tendring DC,http://statistics.data.gov.uk/id/local-authority-district/22UN,Corporate Services,1100 - Corporate Services Manager Service Unit,4300 - Printing & Stationery,10/07/2012,2098307-1,6.26,2107546 - XMA Limited,Electoral Cartridge
Tendring DC,http://statistics.data.gov.uk/id/local-authority-district/22UN,Corporate Services,1330 - Human Resources Service Unit,4300 - Printing & Stationery,03/07/2012,2098046-1,27,2111995 - Yes 2 Limited,Yes 2 Solutions
Tendring DC,http://statistics.data.gov.uk/id/local-authority-district/22UN,Corporate Services,1880 - Office Accommodation Expenses,4000 - Furniture,03/07/2012,2098047-1,74.95,2111995 - Yes 2 Limited,Yes 2 Solutions
Tendring DC,http://statistics.data.gov.uk/id/local-authority-district/22UN,Corporate Services,1330 - Human Resources Service Unit,4300 - Printing & Stationery,17/07/2012,2098603-1,27,2111995 - Yes 2 Limited,Yes 2 Solutions
Tendring DC,http://statistics.data.gov.uk/id/local-authority-district/22UN,Life Opportunities,6160 - Princes Theatre,4040 - Equipment & Tools,17/07/2012,2098409-1,50,2100091 - A Warrender,Piano Tuning
Tendring DC,http://statistics.data.gov.uk/id/local-authority-district/22UN,Life Opportunities,5480 - HRA - Repair & Maintenance,2073 - Smoke Alarm Service/Testing,10/07/2012,1049168-1,314.16,2111360 - Aaron Services Ltd,GAS SERVICE & REPAIR-NORTH AREA 12/13
Tendring DC,http://statistics.data.gov.uk/id/local-authority-district/22UN,Life Opportunities,5480 - HRA - Repair & Maintenance,2075 - Gas Service Contract Servicing/Testing (Domestic I,10/07/2012,1049168-2,6895.25,2111360 - Aaron Services Ltd,GAS SERVICE & REPAIR-NORTH AREA 12/13
Tendring DC,http://statistics.data.gov.uk/id/local-authority-district/22UN,Life Opportunities,5480 - HRA - Repair & Maintenance,2076 - Gas Service Contract Other Refurbishment/Repairs (,10/07/2012,1049168-3,9870.63,2111360 - Aaron Services Ltd,GAS SERVICE & REPAIR-NORTH AREA 12/13
Tendring DC,http://statistics.data.gov.uk/id/local-authority-district/22UN,Life Opportunities,H815 - Re-roofing,C200 - Main Contractor,17/07/2012,2098610-1,1413.85,2111627 - Acclaim Contracts,Final Payment - Belmans Court
Tendring DC,http://statistics.data.gov.uk/id/local-authority-district/22UN,Life Opportunities,5480 - HRA - Repair & Maintenance,2092 - Plumbing,31/07/2012,1049386-1,210,REDACTED PERSONAL DATA,REDACTED PERSONAL DATA
Tendring DC,http://statistics.data.gov.uk/id/local-authority-district/22UN,Life Opportunities,5480 - HRA - Repair & Maintenance,2092 - Plumbing,31/07/2012,1049387-1,379,REDACTED PERSONAL DATA,REDACTED PERSONAL DATA
Tendring DC,http://statistics.data.gov.uk/id/local-authority-district/22UN,Life Opportunities,5480 - HRA - Repair & Maintenance,2017 - Mechanical Equipment /Extract Fans,24/07/2012,1049320-1,428.3,REDACTED PERSONAL DATA,REDACTED PERSONAL DATA
Tendring DC,http://statistics.data.gov.uk/id/local-authority-district/22UN,Life Opportunities,5480 - HRA - Repair & Maintenance,2017 - Mechanical Equipment /Extract Fans,24/07/2012,1049321-1,479.6,REDACTED PERSONAL DATA,REDACTED PERSONAL DATA
Tendring DC,http://statistics.data.gov.uk/id/local-authority-district/22UN,Life Opportunities,5480 - HRA - Repair & Maintenance,2017 - Mechanical Equipment /Extract Fans,24/07/2012,1049322-1,438.3,REDACTED PERSONAL DATA,REDACTED PERSONAL DATA
Tendring DC,http://statistics.data.gov.uk/id/local-authority-district/22UN,Life Opportunities,5480 - HRA - Repair & Maintenance,2017 - Mechanical Equipment /Extract Fans,24/07/2012,1049323-1,750,REDACTED PERSONAL DATA,REDACTED PERSONAL DATA
Tendring DC,http://statistics.data.gov.uk/id/local-authority-district/22UN,Life Opportunities,5480 - HRA - Repair & Maintenance,2017 - Mechanical Equipment /Extract Fans,24/07/2012,1049324-1,478.3,REDACTED PERSONAL DATA,REDACTED PERSONAL DATA
Tendring DC,http://statistics.data.gov.uk/id/local-authority-district/22UN,Life Opportunities,5480 - HRA - Repair & Maintenance,2017 - Mechanical Equipment /Extract Fans,03/07/2012,2097983-1,611,REDACTED PERSONAL DATA,REDACTED PERSONAL DATA
Tendring DC,http://statistics.data.gov.uk/id/local-authority-district/22UN,Life Opportunities,5480 - HRA - Repair & Maintenance,2017 - Mechanical Equipment /Extract Fans,03/07/2012,2097984-1,640.5,REDACTED PERSONAL DATA,REDACTED PERSONAL DATA
Tendring DC,http://statistics.data.gov.uk/id/local-authority-district/22UN,Life Opportunities,5480 - HRA - Repair & Maintenance,2017 - Mechanical Equipment /Extract Fans,10/07/2012,2098249-1,573.4,REDACTED PERSONAL DATA,REDACTED PERSONAL DATA
Tendring DC,http://statistics.data.gov.uk/id/local-authority-district/22UN,Life Opportunities,5480 - HRA - Repair & Maintenance,2017 - Mechanical Equipment /Extract Fans,10/07/2012,2098250-1,710,REDACTED PERSONAL DATA,REDACTED PERSONAL DATA
Tendring DC,http://statistics.data.gov.uk/id/local-authority-district/22UN,Life Opportunities,6740 - Careline,3060 - Running Costs - Diesel,10/07/2012,2098343-1,382.68,2101825 - Allstar Business Solutions Ltd,Fuel Card Bill
Tendring DC,http://statistics.data.gov.uk/id/local-authority-district/22UN,Life Opportunities,5800 - Brightlingsea Sports Centre,5316 - General Provisions,17/07/2012,2098413-1,77.75,2112373 - Anglian Sports Nutrition Ltd,Anglian Sports Nutrition
Tendring DC,http://statistics.data.gov.uk/id/local-authority-district/22UN,Life Opportunities,8520 - Frinton & Walton Swimming Pool,2520 - Sewerage & Environmental Charges,31/07/2012,1049415-1,1895.63,2112315 - Anglian Water Business,FRINTON POOL
Tendring DC,http://statistics.data.gov.uk/id/local-authority-district/22UN,Life Opportunities,8510 - Dovercourt Swimming Pool & All Weather Facilities,2520 - Sewerage & Environmental Charges,24/07/2012,2098624-1,2271.76,2112315 - Anglian Water Business,Dovercourt Pool
Tendring DC,http://statistics.data.gov.uk/id/local-authority-district/22UN,Life Opportunities,5240 - HRA - Managing Tenancies,5242 - Tenant Relations,03/07/2012,2097965-1,10,REDACTED PERSONAL DATA,REDACTED PERSONAL DATA
Tendring DC,http://statistics.data.gov.uk/id/local-authority-district/22UN,Life Opportunities,5240 - HRA - Managing Tenancies,5242 - Tenant Relations,10/07/2012,2098234-1,10,REDACTED PERSONAL DATA,REDACTED PERSONAL DATA
Tendring DC,http://statistics.data.gov.uk/id/local-authority-district/22UN,Life Opportunities,5240 - HRA - Managing Tenancies,5242 - Tenant Relations,24/07/2012,2098808-1,10,REDACTED PERSONAL DATA,REDACTED PERSONAL DATA
Tendring DC,http://statistics.data.gov.uk/id/local-authority-district/22UN,Life Opportunities,H730 - Energy & Water Conservation,C200 - Main Contractor,31/07/2012,2098936-1,1200,2112317 - Aran Services Ltd,43 Alton Park Rd
Tendring DC,http://statistics.data.gov.uk/id/local-authority-district/22UN,Life Opportunities,5360 - HRA - Sheltered Units,4040 - Equipment & Tools,31/07/2012,1049405-1,28.1,REDACTED COMMERCIAL CONFIDENTIALITY,REDACTED COMMERCIAL CONFIDENTIALITY
Tendring DC,http://statistics.data.gov.uk/id/local-authority-district/22UN,Life Opportunities,5860 - Manningtree Sports Centre,4597 - Hired Services - Payments to Contractors,24/07/2012,2098672-1,286.89,2100048 - Argos Business Solutions,"TV, Bracket & Fixing Kit Fitness Suite"
Tendring DC,http://statistics.data.gov.uk/id/local-authority-district/22UN,Life Opportunities,5360 - HRA - Sheltered Units,4040 - Equipment & Tools,24/07/2012,2098673-1,11.31,2100048 - Argos Business Solutions,Rubber Bath Mat St Marys
Tendring DC,http://statistics.data.gov.uk/id/local-authority-district/22UN,Life Opportunities,5480 - HRA - Repair & Maintenance,2088 - Disabled Adaptations,03/07/2012,1049089-1,120,REDACTED PERSONAL DATA,REDACTED PERSONAL DATA
Tendring DC,http://statistics.data.gov.uk/id/local-authority-district/22UN,Life Opportunities,5480 - HRA - Repair & Maintenance,2088 - Disabled Adaptations,03/07/2012,1049089-2,350,REDACTED PERSONAL DATA,REDACTED PERSONAL DATA
Tendring DC,http://statistics.data.gov.uk/id/local-authority-district/22UN,Life Opportunities,5480 - HRA - Repair & Maintenance,2088 - Disabled Adaptations,03/07/2012,1049090-1,90,REDACTED PERSONAL DATA,REDACTED PERSONAL DATA
Tendring DC,http://statistics.data.gov.uk/id/local-authority-district/22UN,Life Opportunities,5480 - HRA - Repair & Maintenance,2088 - Disabled Adaptations,03/07/2012,1049090-2,295,REDACTED PERSONAL DATA,REDACTED PERSONAL DATA
Tendring DC,http://statistics.data.gov.uk/id/local-authority-district/22UN,Life Opportunities,5480 - HRA - Repair & Maintenance,2088 - Disabled Adaptations,09/07/2012,1049174-1,370,REDACTED PERSONAL DATA,REDACTED PERSONAL DATA
Tendring DC,http://statistics.data.gov.uk/id/local-authority-district/22UN,Life Opportunities,5480 - HRA - Repair & Maintenance,2088 - Disabled Adaptations,17/07/2012,1049177-1,90,REDACTED PERSONAL DATA,REDACTED PERSONAL DATA
Tendring DC,http://statistics.data.gov.uk/id/local-authority-district/22UN,Life Opportunities,5480 - HRA - Repair & Maintenance,2088 - Disabled Adaptations,17/07/2012,1049177-2,280,REDACTED PERSONAL DATA,REDACTED PERSONAL DATA
Tendring DC,http://statistics.data.gov.uk/id/local-authority-district/22UN,Life Opportunities,H860 - Disabled Adaptations,C200 - Main Contractor,31/07/2012,1049372-1,1250,REDACTED PERSONAL DATA,REDACTED PERSONAL DATA
Tendring DC,http://statistics.data.gov.uk/id/local-authority-district/22UN,Life Opportunities,H860 - Disabled Adaptations,C200 - Main Contractor,31/07/2012,1049372-2,6235,REDACTED PERSONAL DATA,REDACTED PERSONAL DATA
Tendring DC,http://statistics.data.gov.uk/id/local-authority-district/22UN,Life Opportunities,H860 - Disabled Adaptations,C200 - Main Contractor,24/07/2012,2098643-1,1224,REDACTED PERSONAL DATA,REDACTED PERSONAL DATA
Tendring DC,http://statistics.data.gov.uk/id/local-authority-district/22UN,Life Opportunities,H860 - Disabled Adaptations,C200 - Main Contractor,24/07/2012,2098643-2,4845,REDACTED PERSONAL DATA,REDACTED PERSONAL DATA
Tendring DC,http://statistics.data.gov.uk/id/local-authority-district/22UN,Life Opportunities,6160 - Princes Theatre,9352 - Opportunity Bookings,31/07/2012,1049413-1,5892,2112307 - Artistes International Management Ltd,JOE LONGTHORNE SETTLEMENT
Tendring DC,http://statistics.data.gov.uk/id/local-authority-district/22UN,Life Opportunities,8520 - Frinton & Walton Swimming Pool,5300 - Resaleable Items,03/07/2012,2097917-1,76.2,2100088 - ASA Merchandising Ltd,Frinton & Walton Pool
Tendring DC,http://statistics.data.gov.uk/id/local-authority-district/22UN,Life Opportunities,8520 - Frinton & Walton Swimming Pool,5300 - Resaleable Items,17/07/2012,2098560-1,73.53,2100088 - ASA Merchandising Ltd,Frinton & Walton Pool
Tendring DC,http://statistics.data.gov.uk/id/local-authority-district/22UN,Life Opportunities,8520 - Frinton & Walton Swimming Pool,5300 - Resaleable Items,17/07/2012,2098561-1,16.34,2100088 - ASA Merchandising Ltd,Frinton & Walton Pool
Tendring DC,http://statistics.data.gov.uk/id/local-authority-district/22UN,Life Opportunities,5480 - HRA - Repair & Maintenance,2012 - Responsive Maintenance - Clearance And Cleaning,24/07/2012,1049317-1,80,REDACTED PERSONAL DATA,REDACTED PERSONAL DATA
Tendring DC,http://statistics.data.gov.uk/id/local-authority-district/22UN,Life Opportunities,5480 - HRA - Repair & Maintenance,2012 - Responsive Maintenance - Clearance And Cleaning,24/07/2012,1049318-1,100,REDACTED PERSONAL DATA,REDACTED PERSONAL DATA
Tendring DC,http://statistics.data.gov.uk/id/local-authority-district/22UN,Life Opportunities,5480 - HRA - Repair & Maintenance,2012 - Responsive Maintenance - Clearance And Cleaning,03/07/2012,2097980-1,50,REDACTED PERSONAL DATA,REDACTED PERSONAL DATA
Tendring DC,http://statistics.data.gov.uk/id/local-authority-district/22UN,Life Opportunities,5480 - HRA - Repair & Maintenance,2012 - Responsive Maintenance - Clearance And Cleaning,03/07/2012,2097981-1,80,REDACTED PERSONAL DATA,REDACTED PERSONAL DATA
Tendring DC,http://statistics.data.gov.uk/id/local-authority-district/22UN,Life Opportunities,5480 - HRA - Repair & Maintenance,2012 - Responsive Maintenance - Clearance And Cleaning,31/07/2012,2098958-1,120,REDACTED PERSONAL DATA,REDACTED PERSONAL DATA
Tendring DC,http://statistics.data.gov.uk/id/local-authority-district/22UN,Life Opportunities,5480 - HRA - Repair & Maintenance,2012 - Responsive Maintenance - Clearance And Cleaning,31/07/2012,2098959-1,300,REDACTED PERSONAL DATA,REDACTED PERSONAL DATA
Tendring DC,http://statistics.data.gov.uk/id/local-authority-district/22UN,Life Opportunities,1100 - Corporate Services Manager Service Unit,4753 - Computer - Application Software,10/07/2012,2098305-1,995,2109504 - Associated Knowledge Systems Ltd,AKS Support
Tendring DC,http://statistics.data.gov.uk/id/local-authority-district/22UN,Life Opportunities,5220 - HRA - Policy & Management,5930 - Business Planning Expenses,17/07/2012,2098465-1,695,REDACTED COMMERCIAL CONFIDENTIALITY,REDACTED COMMERCIAL CONFIDENTIALITY
Tendring DC,http://statistics.data.gov.uk/id/local-authority-district/22UN,Life Opportunities,6740 - Careline,5160 - Advertising,17/07/2012,2098589-1,295,2100049 - Authorised Publications,Careline Advert in Care Guide
Tendring DC,http://statistics.data.gov.uk/id/local-authority-district/22UN,Life Opportunities,8520 - Frinton & Walton Swimming Pool,4400 - Maintenance Under Service Agreements,17/07/2012,2098559-1,81.07,2112129 - Autobar Vending Services Ltd,Frinton & Walton Pool
Tendring DC,http://statistics.data.gov.uk/id/local-authority-district/22UN,Life Opportunities,5860 - Manningtree Sports Centre,4200 - Clothing & Uniforms,31/07/2012,1049420-1,5.55,2106876 - Badgemaster Ltd,NAME BADGE
Tendring DC,http://statistics.data.gov.uk/id/local-authority-district/22UN,Life Opportunities,8540 - Leisure Centre Clacton,5500 - Miscellaneous Expenses,17/07/2012,1049196-1,68.75,2106358 - Baker Ross Ltd,
Tendring DC,http://statistics.data.gov.uk/id/local-authority-district/22UN,Life Opportunities,8540 - Leisure Centre Clacton,5500 - Miscellaneous Expenses,17/07/2012,1049196-2,11.89,2106358 - Baker Ross Ltd,
Tendring DC,http://statistics.data.gov.uk/id/local-authority-district/22UN,Life Opportunities,5860 - Manningtree Sports Centre,4040 - Equipment & Tools,31/07/2012,1049418-1,15.31,2106358 - Baker Ross Ltd,Art & craft supplies
Tendring DC,http://statistics.data.gov.uk/id/local-authority-district/22UN,Life Opportunities,5820 - Harwich Sports Centre,4300 - Printing & Stationery,31/07/2012,1049406-1,19.03,2100111 - Banner Business Supplies Ltd,STATIONERY-PAPER
Tendring DC,http://statistics.data.gov.uk/id/local-authority-district/22UN,Life Opportunities,5240 - HRA - Managing Tenancies,4312 - Tenancy Stationery,10/07/2012,2098224-1,13.33,REDACTED COMMERCIAL CONFIDENTIALITY,REDACTED COMMERCIAL CONFIDENTIALITY
Tendring DC,http://statistics.data.gov.uk/id/local-authority-district/22UN,Life Opportunities,1565 - Careline / CCTV Service Unit,4300 - Printing & Stationery,24/07/2012,2098677-1,102,2100111 - Banner Business Supplies Ltd,"Banner - Paper, Stationery"
Tendring DC,http://statistics.data.gov.uk/id/local-authority-district/22UN,Life Opportunities,5240 - HRA - Managing Tenancies,4312 - Tenancy Stationery,24/07/2012,2098683-1,0.6,2100111 - Banner Business Supplies Ltd,"Tape, Key Fobs"
Tendring DC,http://statistics.data.gov.uk/id/local-authority-district/22UN,Life Opportunities,5360 - HRA - Sheltered Units,4300 - Printing & Stationery,24/07/2012,2098683-2,10,2100111 - Banner Business Supplies Ltd,"Tape, Key Fobs"
Tendring DC,http://statistics.data.gov.uk/id/local-authority-district/22UN,Life Opportunities,1230 - Private Sector Housing Service Unit,4000 - Furniture,24/07/2012,2098684-1,45.87,REDACTED COMMERCIAL CONFIDENTIALITY,REDACTED COMMERCIAL CONFIDENTIALITY
Tendring DC,http://statistics.data.gov.uk/id/local-authority-district/22UN,Life Opportunities,5240 - HRA - Managing Tenancies,4312 - Tenancy Stationery,24/07/2012,2098684-2,2.25,REDACTED COMMERCIAL CONFIDENTIALITY,REDACTED COMMERCIAL CONFIDENTIALITY
Tendring DC,http://statistics.data.gov.uk/id/local-authority-district/22UN,Life Opportunities,5360 - HRA - Sheltered Units,4300 - Printing & Stationery,24/07/2012,2098684-3,67.04,REDACTED COMMERCIAL CONFIDENTIALITY,REDACTED COMMERCIAL CONFIDENTIALITY
Tendring DC,http://statistics.data.gov.uk/id/local-authority-district/22UN,Life Opportunities,5820 - Harwich Sports Centre,5196 - Credit Card Charges,24/07/2012,2098566-1,16.95,2100141 - Barclaycard Merchant Services,Barclaycard Payments
Tendring DC,http://statistics.data.gov.uk/id/local-authority-district/22UN,Life Opportunities,5820 - Harwich Sports Centre,5196 - Credit Card Charges,24/07/2012,2098566-2,31.95,2100141 - Barclaycard Merchant Services,Barclaycard Payments
Tendring DC,http://statistics.data.gov.uk/id/local-authority-district/22UN,Life Opportunities,6160 - Princes Theatre,5190 - Bank Commission Charges,24/07/2012,2098567-1,763.51,2100141 - Barclaycard Merchant Services,May Commission
Tendring DC,http://statistics.data.gov.uk/id/local-authority-district/22UN,Life Opportunities,8540 - Leisure Centre Clacton,5196 - Credit Card Charges,24/07/2012,2098568-1,33.9,2100141 - Barclaycard Merchant Services,June
Tendring DC,http://statistics.data.gov.uk/id/local-authority-district/22UN,Life Opportunities,8540 - Leisure Centre Clacton,5196 - Credit Card Charges,24/07/2012,2098568-2,280.38,2100141 - Barclaycard Merchant Services,June
Tendring DC,http://statistics.data.gov.uk/id/local-authority-district/22UN,Life Opportunities,8510 - Dovercourt Swimming Pool & All Weather Facilities,5196 - Credit Card Charges,24/07/2012,2098653-1,53.32,REDACTED PERSONAL DATA,REDACTED PERSONAL DATA
Tendring DC,http://statistics.data.gov.uk/id/local-authority-district/22UN,Life Opportunities,8510 - Dovercourt Swimming Pool & All Weather Facilities,5196 - Credit Card Charges,24/07/2012,2098653-2,33.9,REDACTED PERSONAL DATA,REDACTED PERSONAL DATA
Tendring DC,http://statistics.data.gov.uk/id/local-authority-district/22UN,Life Opportunities,8520 - Frinton & Walton Swimming Pool,5196 - Credit Card Charges,24/07/2012,2098784-1,47.95,2100141 - Barclaycard Merchant Services,Frinton & Walton Pool
Tendring DC,http://statistics.data.gov.uk/id/local-authority-district/22UN,Life Opportunities,8520 - Frinton & Walton Swimming Pool,5196 - Credit Card Charges,24/07/2012,2098784-2,7.86,2100141 - Barclaycard Merchant Services,Frinton & Walton Pool
Tendring DC,http://statistics.data.gov.uk/id/local-authority-district/22UN,Life Opportunities,8520 - Frinton & Walton Swimming Pool,5196 - Credit Card Charges,24/07/2012,2098784-3,16.95,2100141 - Barclaycard Merchant Services,Frinton & Walton Pool
Tendring DC,http://statistics.data.gov.uk/id/local-authority-district/22UN,Life Opportunities,5860 - Manningtree Sports Centre,5196 - Credit Card Charges,26/07/2012,2098932-1,36.54,REDACTED PERSONAL DATA,REDACTED PERSONAL DATA
Tendring DC,http://statistics.data.gov.uk/id/local-authority-district/22UN,Life Opportunities,5860 - Manningtree Sports Centre,5196 - Credit Card Charges,26/07/2012,2098932-2,16.95,REDACTED PERSONAL DATA,REDACTED PERSONAL DATA
Tendring DC,http://statistics.data.gov.uk/id/local-authority-district/22UN,Life Opportunities,5800 - Brightlingsea Sports Centre,5196 - Credit Card Charges,26/07/2012,2098933-1,20,2100141 - Barclaycard Merchant Services,Barclaycard - Credit cards
Tendring DC,http://statistics.data.gov.uk/id/local-authority-district/22UN,Life Opportunities,5800 - Brightlingsea Sports Centre,5196 - Credit Card Charges,26/07/2012,2098933-2,21.35,2100141 - Barclaycard Merchant Services,Barclaycard - Credit cards
Tendring DC,http://statistics.data.gov.uk/id/local-authority-district/22UN,Life Opportunities,5140 - Homelessness,4683 - Other Homelessness Expenses,17/07/2012,2098578-1,400,REDACTED PERSONAL DATA,REDACTED PERSONAL DATA
Tendring DC,http://statistics.data.gov.uk/id/local-authority-district/22UN,Life Opportunities,5480 - HRA - Repair & Maintenance,2088 - Disabled Adaptations,03/07/2012,2098081-1,37.46,2105729 - Benefitsnow Ltd,Window Pull
Tendring DC,http://statistics.data.gov.uk/id/local-authority-district/22UN,Life Opportunities,H805 - Major Refurbishment of Heating,C200 - Main Contractor,24/07/2012,2098864-1,16457.49,2100155 - Blue Flame (Colchester) Ltd,Heater Refurbishment
Tendring DC,http://statistics.data.gov.uk/id/local-authority-district/22UN,Life Opportunities,5480 - HRA - Repair & Maintenance,2071 - Electric Installation Testing,31/07/2012,2098977-1,1952.79,2100155 - Blue Flame (Colchester) Ltd,Works as Valuation No 16
Tendring DC,http://statistics.data.gov.uk/id/local-authority-district/22UN,Life Opportunities,5480 - HRA - Repair & Maintenance,2072 - Planned Partial Refurbishment To Electrical Instal,31/07/2012,2098977-2,4396.77,2100155 - Blue Flame (Colchester) Ltd,Works as Valuation No 16
Tendring DC,http://statistics.data.gov.uk/id/local-authority-district/22UN,Life Opportunities,5140 - Homelessness,4683 - Other Homelessness Expenses,31/07/2012,1049429-1,362,REDACTED PERSONAL DATA,REDACTED PERSONAL DATA
Tendring DC,http://statistics.data.gov.uk/id/local-authority-district/22UN,Life Opportunities,5140 - Homelessness,4683 - Other Homelessness Expenses,31/07/2012,1049430-1,580,REDACTED PERSONAL DATA,REDACTED PERSONAL DATA
Tendring DC,http://statistics.data.gov.uk/id/local-authority-district/22UN,Life Opportunities,5240 - HRA - Managing Tenancies,5242 - Tenant Relations,24/07/2012,2098814-1,10,REDACTED PERSONAL DATA,REDACTED PERSONAL DATA
Tendring DC,http://statistics.data.gov.uk/id/local-authority-district/22UN,Life Opportunities,6160 - Princes Theatre,4622 - Hired Services - Artistes and Production Companies,24/07/2012,2098660-1,3000,2100137 - Brian Shaw,Cannon & Ball Guarantee
Tendring DC,http://statistics.data.gov.uk/id/local-authority-district/22UN,Life Opportunities,5860 - Manningtree Sports Centre,4597 - Hired Services - Payments to Contractors,03/07/2012,2097947-1,166.66,2112330 - Brian's TV Aerials Ltd,New TV Aerials Fitness Suite
Tendring DC,http://statistics.data.gov.uk/id/local-authority-district/22UN,Life Opportunities,5880 - Management Of Sport & Leisure Facilities,2100 - Building Repairs,10/07/2012,2098286-1,84.76,2102522 - Brightlingsea Town Council,Pipework Repair
Tendring DC,http://statistics.data.gov.uk/id/local-authority-district/22UN,Life Opportunities,5880 - Management Of Sport & Leisure Facilities,2100 - Building Repairs,24/07/2012,2098656-1,300,REDACTED COMMERCIAL CONFIDENTIALITY,REDACTED COMMERCIAL CONFIDENTIALITY
Tendring DC,http://statistics.data.gov.uk/id/local-authority-district/22UN,Life Opportunities,5960 - Recreation Grounds,2304 - Energy Costs - Electricity,31/07/2012,1049401-1,741.37,2100197 - British Gas Trading Ltd,JUNE ELECTRIC
Tendring DC,http://statistics.data.gov.uk/id/local-authority-district/22UN,Life Opportunities,5960 - Recreation Grounds,2304 - Energy Costs - Electricity,31/07/2012,1049401-10,-255.7,2100197 - British Gas Trading Ltd,JUNE ELECTRIC
Tendring DC,http://statistics.data.gov.uk/id/local-authority-district/22UN,Life Opportunities,6080 - Shops & Kiosks,2304 - Energy Costs - Electricity,31/07/2012,1049401-2,158.13,2100197 - British Gas Trading Ltd,JUNE ELECTRIC
Tendring DC,http://statistics.data.gov.uk/id/local-authority-district/22UN,Life Opportunities,7600 - Tourist Information Centres,2304 - Energy Costs - Electricity,31/07/2012,1049401-3,13.43,2100197 - British Gas Trading Ltd,JUNE ELECTRIC
Tendring DC,http://statistics.data.gov.uk/id/local-authority-district/22UN,Life Opportunities,6040 - Miscellaneous Seafront Activities,2304 - Energy Costs - Electricity,31/07/2012,1049401-4,110.72,2100197 - British Gas Trading Ltd,JUNE ELECTRIC
Tendring DC,http://statistics.data.gov.uk/id/local-authority-district/22UN,Life Opportunities,6000 - Beach Hut Sites,2304 - Energy Costs - Electricity,31/07/2012,1049401-5,97.19,2100197 - British Gas Trading Ltd,JUNE ELECTRIC
Tendring DC,http://statistics.data.gov.uk/id/local-authority-district/22UN,Life Opportunities,5820 - Harwich Sports Centre,2304 - Energy Costs - Electricity,31/07/2012,1049401-6,102.23,2100197 - British Gas Trading Ltd,JUNE ELECTRIC
Tendring DC,http://statistics.data.gov.uk/id/local-authority-district/22UN,Life Opportunities,5860 - Manningtree Sports Centre,2304 - Energy Costs - Electricity,31/07/2012,1049401-7,595.14,2100197 - British Gas Trading Ltd,JUNE ELECTRIC
Tendring DC,http://statistics.data.gov.uk/id/local-authority-district/22UN,Life Opportunities,5960 - Recreation Grounds,2304 - Energy Costs - Electricity,31/07/2012,1049401-8,-246.36,2100197 - British Gas Trading Ltd,JUNE ELECTRIC
Tendring DC,http://statistics.data.gov.uk/id/local-authority-district/22UN,Life Opportunities,6080 - Shops & Kiosks,2304 - Energy Costs - Electricity,31/07/2012,1049401-9,-91.88,2100197 - British Gas Trading Ltd,JUNE ELECTRIC
Tendring DC,http://statistics.data.gov.uk/id/local-authority-district/22UN,Life Opportunities,8520 - Frinton & Walton Swimming Pool,2304 - Energy Costs - Electricity,03/07/2012,2098049-1,185.61,2100197 - British Gas Trading Ltd,Frinton Pool
Tendring DC,http://statistics.data.gov.uk/id/local-authority-district/22UN,Life Opportunities,8520 - Frinton & Walton Swimming Pool,2304 - Energy Costs - Electricity,24/07/2012,2098640-1,251.98,2100197 - British Gas Trading Ltd,Walton
Tendring DC,http://statistics.data.gov.uk/id/local-authority-district/22UN,Life Opportunities,7000 - CCTV,4718 - Fixed Communication Lines,03/07/2012,1049152-1,58.56,2100168 - British Telecommunications plc,BT BILL CCTV-HARWICH
Tendring DC,http://statistics.data.gov.uk/id/local-authority-district/22UN,Life Opportunities,5240 - HRA - Managing Tenancies,5249 - Housing ASB Expenses,03/07/2012,2097976-1,91.18,REDACTED COMMERCIAL CONFIDENTIALITY,REDACTED COMMERCIAL CONFIDENTIALITY
Tendring DC,http://statistics.data.gov.uk/id/local-authority-district/22UN,Life Opportunities,6740 - Careline,4710 - Telephones - Charges,10/07/2012,2098329-1,124.83,2100168 - British Telecommunications plc,BT Bill - Comms Room
Tendring DC,http://statistics.data.gov.uk/id/local-authority-district/22UN,Life Opportunities,6740 - Careline,4710 - Telephones - Charges,10/07/2012,2098330-1,312.36,2100168 - British Telecommunications plc,BT Bill PNC
Tendring DC,http://statistics.data.gov.uk/id/local-authority-district/22UN,Life Opportunities,7000 - CCTV,4718 - Fixed Communication Lines,24/07/2012,2098718-1,72,2100168 - British Telecommunications plc,CCTV Fixed Lines - June - August
Tendring DC,http://statistics.data.gov.uk/id/local-authority-district/22UN,Life Opportunities,8540 - Leisure Centre Clacton,2700 - Cleaning Materials,17/07/2012,1049190-1,17.95,2101624 - Bunzl,
Tendring DC,http://statistics.data.gov.uk/id/local-authority-district/22UN,Life Opportunities,8540 - Leisure Centre Clacton,2700 - Cleaning Materials,17/07/2012,1049191-1,28,2101624 - Bunzl,
Tendring DC,http://statistics.data.gov.uk/id/local-authority-district/22UN,Life Opportunities,8520 - Frinton & Walton Swimming Pool,2700 - Cleaning Materials,03/07/2012,2097921-1,42.7,2101624 - Bunzl,Frinton & Walton Pool
Tendring DC,http://statistics.data.gov.uk/id/local-authority-district/22UN,Life Opportunities,5820 - Harwich Sports Centre,2700 - Cleaning Materials,10/07/2012,2098183-1,10.49,2101624 - Bunzl,Cleaning Supplies
Tendring DC,http://statistics.data.gov.uk/id/local-authority-district/22UN,Life Opportunities,8540 - Leisure Centre Clacton,2700 - Cleaning Materials,10/07/2012,2098280-1,283.61,2101624 - Bunzl,
Tendring DC,http://statistics.data.gov.uk/id/local-authority-district/22UN,Life Opportunities,5800 - Brightlingsea Sports Centre,4080 - Materials & Consumables,17/07/2012,2098410-1,11.44,2101624 - Bunzl,Bunzl
Tendring DC,http://statistics.data.gov.uk/id/local-authority-district/22UN,Life Opportunities,8520 - Frinton & Walton Swimming Pool,2700 - Cleaning Materials,17/07/2012,2098562-1,70.45,2101624 - Bunzl,Frinton & Walton Pool
Tendring DC,http://statistics.data.gov.uk/id/local-authority-district/22UN,Life Opportunities,8510 - Dovercourt Swimming Pool & All Weather Facilities,2700 - Cleaning Materials,24/07/2012,2098839-1,307.49,2101624 - Bunzl,Dovercourt Pool
Tendring DC,http://statistics.data.gov.uk/id/local-authority-district/22UN,Life Opportunities,8540 - Leisure Centre Clacton,4400 - Maintenance Under Service Agreements,10/07/2012,2098278-1,1298,2100280 - C H Lindsey & Son Ltd,
Tendring DC,http://statistics.data.gov.uk/id/local-authority-district/22UN,Life Opportunities,8540 - Leisure Centre Clacton,4400 - Maintenance Under Service Agreements,10/07/2012,2098279-1,159.25,2100280 - C H Lindsey & Son Ltd,
Tendring DC,http://statistics.data.gov.uk/id/local-authority-district/22UN,Life Opportunities,8520 - Frinton & Walton Swimming Pool,2100 - Building Repairs,17/07/2012,2098558-1,353,2100280 - C H Lindsey & Son Ltd,Frinton & Walton Pool
Tendring DC,http://statistics.data.gov.uk/id/local-authority-district/22UN,Life Opportunities,8510 - Dovercourt Swimming Pool & All Weather Facilities,4400 - Maintenance Under Service Agreements,24/07/2012,2098620-1,38.49,2100281 - Cannon Hygiene,Dovercourt Pool
Tendring DC,http://statistics.data.gov.uk/id/local-authority-district/22UN,Life Opportunities,8520 - Frinton & Walton Swimming Pool,4400 - Maintenance Under Service Agreements,24/07/2012,2098732-1,108.15,2100281 - Cannon Hygiene,Frinton & Walton Pool
Tendring DC,http://statistics.data.gov.uk/id/local-authority-district/22UN,Life Opportunities,5820 - Harwich Sports Centre,4597 - Hired Services - Payments to Contractors,31/07/2012,2098944-1,58.2,2100281 - Cannon Hygiene,Sanitary Disposal Units
Tendring DC,http://statistics.data.gov.uk/id/local-authority-district/22UN,Life Opportunities,5860 - Manningtree Sports Centre,4400 - Maintenance Under Service Agreements,01/07/2012,2098554-1,49.55,2100291 - Canon (UK) Ltd,Quarterly Sanitary Disposal x 4 & Annual Duty of Care Costs
Tendring DC,http://statistics.data.gov.uk/id/local-authority-district/22UN,Life Opportunities,6160 - Princes Theatre,4000 - Furniture,03/07/2012,2097915-1,799,2100202 - Capita Business Services Ltd,PAYE NET
Tendring DC,http://statistics.data.gov.uk/id/local-authority-district/22UN,Life Opportunities,5880 - Management Of Sport & Leisure Facilities,4597 - Hired Services - Payments to Contractors,17/07/2012,2098438-1,1198.5,2100202 - Capita Business Services Ltd,PAYE Net
Tendring DC,http://statistics.data.gov.uk/id/local-authority-district/22UN,Life Opportunities,5240 - HRA - Managing Tenancies,5242 - Tenant Relations,24/07/2012,1049327-1,97.5,REDACTED COMMERCIAL CONFIDENTIALITY,REDACTED COMMERCIAL CONFIDENTIALITY
Tendring DC,http://statistics.data.gov.uk/id/local-authority-district/22UN,Life Opportunities,H825 - Refurbishment of Door Entry Systems,C200 - Main Contractor,03/07/2012,2098082-1,6220.5,REDACTED PERSONAL DATA,REDACTED PERSONAL DATA
Tendring DC,http://statistics.data.gov.uk/id/local-authority-district/22UN,Life Opportunities,H825 - Refurbishment of Door Entry Systems,C200 - Main Contractor,31/07/2012,2098888-1,60,REDACTED PERSONAL DATA,REDACTED PERSONAL DATA
Tendring DC,http://statistics.data.gov.uk/id/local-authority-district/22UN,Life Opportunities,H825 - Refurbishment of Door Entry Systems,C200 - Main Contractor,31/07/2012,2098889-1,60,REDACTED PERSONAL DATA,REDACTED PERSONAL DATA
Tendring DC,http://statistics.data.gov.uk/id/local-authority-district/22UN,Life Opportunities,1650 - Building Services Service Unit,4040 - Equipment & Tools,17/07/2012,1049172-1,-290.59,2100205 - Chelmsford Safety Supplies Ltd,HARD HATS & EQUIP
Tendring DC,http://statistics.data.gov.uk/id/local-authority-district/22UN,Life Opportunities,8520 - Frinton & Walton Swimming Pool,4200 - Clothing & Uniforms,03/07/2012,2097918-1,82.5,2100205 - Chelmsford Safety Supplies Ltd,Frinton & Walton Pool
Tendring DC,http://statistics.data.gov.uk/id/local-authority-district/22UN,Life Opportunities,1650 - Building Services Service Unit,4040 - Equipment & Tools,17/07/2012,2098456-1,290.59,2100205 - Chelmsford Safety Supplies Ltd,Hard Hats Equip
Tendring DC,http://statistics.data.gov.uk/id/local-authority-district/22UN,Life Opportunities,5360 - HRA - Sheltered Units,4040 - Equipment & Tools,31/07/2012,2098961-1,560,REDACTED PERSONAL DATA,REDACTED PERSONAL DATA
Tendring DC,http://statistics.data.gov.uk/id/local-authority-district/22UN,Life Opportunities,5220 - HRA - Policy & Management,5253 - HRA Health & Safety Expenses,31/07/2012,2098962-1,44.5,REDACTED PERSONAL DATA,REDACTED PERSONAL DATA
Tendring DC,http://statistics.data.gov.uk/id/local-authority-district/22UN,Life Opportunities,5220 - HRA - Policy & Management,5253 - HRA Health & Safety Expenses,31/07/2012,2098963-1,44.5,REDACTED PERSONAL DATA,REDACTED PERSONAL DATA
Tendring DC,http://statistics.data.gov.uk/id/local-authority-district/22UN,Life Opportunities,5140 - Homelessness,4680 - Bed & Breakfast Accommodation,24/07/2012,2098743-1,350,REDACTED PERSONAL DATA,REDACTED PERSONAL DATA
Tendring DC,http://statistics.data.gov.uk/id/local-authority-district/22UN,Life Opportunities,5140 - Homelessness,4680 - Bed & Breakfast Accommodation,24/07/2012,2098744-1,210,REDACTED PERSONAL DATA,REDACTED PERSONAL DATA
Tendring DC,http://statistics.data.gov.uk/id/local-authority-district/22UN,Life Opportunities,5140 - Homelessness,4680 - Bed & Breakfast Accommodation,24/07/2012,2098745-1,420,REDACTED PERSONAL DATA,REDACTED PERSONAL DATA
Tendring DC,http://statistics.data.gov.uk/id/local-authority-district/22UN,Life Opportunities,5140 - Homelessness,4680 - Bed & Breakfast Accommodation,24/07/2012,2098746-1,420,REDACTED PERSONAL DATA,REDACTED PERSONAL DATA
Tendring DC,http://statistics.data.gov.uk/id/local-authority-district/22UN,Life Opportunities,5140 - Homelessness,4680 - Bed & Breakfast Accommodation,24/07/2012,2098747-1,260,REDACTED PERSONAL DATA,REDACTED PERSONAL DATA
Tendring DC,http://statistics.data.gov.uk/id/local-authority-district/22UN,Life Opportunities,5140 - Homelessness,4680 - Bed & Breakfast Accommodation,24/07/2012,2098748-1,240,REDACTED PERSONAL DATA,REDACTED PERSONAL DATA
Tendring DC,http://statistics.data.gov.uk/id/local-authority-district/22UN,Life Opportunities,5140 - Homelessness,4680 - Bed & Breakfast Accommodation,24/07/2012,2098749-1,455,REDACTED PERSONAL DATA,REDACTED PERSONAL DATA
Tendring DC,http://statistics.data.gov.uk/id/local-authority-district/22UN,Life Opportunities,5140 - Homelessness,4680 - Bed & Breakfast Accommodation,24/07/2012,2098750-1,150,REDACTED PERSONAL DATA,REDACTED PERSONAL DATA
Tendring DC,http://statistics.data.gov.uk/id/local-authority-district/22UN,Life Opportunities,5140 - Homelessness,4680 - Bed & Breakfast Accommodation,24/07/2012,2098751-1,455,REDACTED PERSONAL DATA,REDACTED PERSONAL DATA
Tendring DC,http://statistics.data.gov.uk/id/local-authority-district/22UN,Life Opportunities,5140 - Homelessness,4680 - Bed & Breakfast Accommodation,24/07/2012,2098752-1,80,REDACTED PERSONAL DATA,REDACTED PERSONAL DATA
Tendring DC,http://statistics.data.gov.uk/id/local-authority-district/22UN,Life Opportunities,5140 - Homelessness,4680 - Bed & Breakfast Accommodation,24/07/2012,2098753-1,350,REDACTED PERSONAL DATA,REDACTED PERSONAL DATA
Tendring DC,http://statistics.data.gov.uk/id/local-authority-district/22UN,Life Opportunities,5140 - Homelessness,4680 - Bed & Breakfast Accommodation,24/07/2012,2098754-1,525,REDACTED PERSONAL DATA,REDACTED PERSONAL DATA
Tendring DC,http://statistics.data.gov.uk/id/local-authority-district/22UN,Life Opportunities,5140 - Homelessness,4680 - Bed & Breakfast Accommodation,24/07/2012,2098755-1,200,REDACTED PERSONAL DATA,REDACTED PERSONAL DATA
Tendring DC,http://statistics.data.gov.uk/id/local-authority-district/22UN,Life Opportunities,5140 - Homelessness,4680 - Bed & Breakfast Accommodation,24/07/2012,2098756-1,525,REDACTED PERSONAL DATA,REDACTED PERSONAL DATA
Tendring DC,http://statistics.data.gov.uk/id/local-authority-district/22UN,Life Opportunities,5140 - Homelessness,4680 - Bed & Breakfast Accommodation,24/07/2012,2098757-1,300,REDACTED PERSONAL DATA,REDACTED PERSONAL DATA
Tendring DC,http://statistics.data.gov.uk/id/local-authority-district/22UN,Life Opportunities,5140 - Homelessness,4680 - Bed & Breakfast Accommodation,24/07/2012,2098758-1,260,REDACTED PERSONAL DATA,REDACTED PERSONAL DATA
Tendring DC,http://statistics.data.gov.uk/id/local-authority-district/22UN,Life Opportunities,5140 - Homelessness,4680 - Bed & Breakfast Accommodation,31/07/2012,2098925-1,350,REDACTED PERSONAL DATA,REDACTED PERSONAL DATA
Tendring DC,http://statistics.data.gov.uk/id/local-authority-district/22UN,Life Opportunities,8025 - Car Parks - Off St,4597 - Hired Services - Payments to Contractors,24/07/2012,2098833-1,95.16,2101926 - Chipside Limited,Provision of Electronic Ticket & Staff Permit Apr-Jun 12
Tendring DC,http://statistics.data.gov.uk/id/local-authority-district/22UN,Life Opportunities,5800 - Brightlingsea Sports Centre,5160 - Advertising,03/07/2012,2098034-1,104,2100246 - Chronicle Publishing Services,Chronicle Publish Service
Tendring DC,http://statistics.data.gov.uk/id/local-authority-district/22UN,Life Opportunities,5480 - HRA - Repair & Maintenance,2019 - Repair & Maintenance - Keys,04/07/2012,2098424-1,31.75,REDACTED PERSONAL DATA,REDACTED PERSONAL DATA
Tendring DC,http://statistics.data.gov.uk/id/local-authority-district/22UN,Life Opportunities,6160 - Princes Theatre,5308 - Ice Cream,31/07/2012,1049411-1,256.9,2108623 - CICC Ltd,ICE CREAM
Tendring DC,http://statistics.data.gov.uk/id/local-authority-district/22UN,Life Opportunities,6160 - Princes Theatre,5308 - Ice Cream,10/07/2012,2098271-1,141.57,2108623 - CICC Ltd,Ice Cream
Tendring DC,http://statistics.data.gov.uk/id/local-authority-district/22UN,Life Opportunities,6160 - Princes Theatre,2308 - Energy Costs - Gas (Including LPG),17/07/2012,2098434-1,229.38,REDACTED PERSONAL DATA,REDACTED PERSONAL DATA
Tendring DC,http://statistics.data.gov.uk/id/local-authority-district/22UN,Life Opportunities,6160 - Princes Theatre,5308 - Ice Cream,24/07/2012,2098657-1,317.28,2108623 - CICC Ltd,Ice Cream
Tendring DC,http://statistics.data.gov.uk/id/local-authority-district/22UN,Life Opportunities,8540 - Leisure Centre Clacton,2100 - Building Repairs,17/07/2012,1049197-1,43.17,2100267 - City Electrical Factors Ltd Anglia Division,
Tendring DC,http://statistics.data.gov.uk/id/local-authority-district/22UN,Life Opportunities,8540 - Leisure Centre Clacton,2100 - Building Repairs,17/07/2012,1049197-2,1.11,2100267 - City Electrical Factors Ltd Anglia Division,
Tendring DC,http://statistics.data.gov.uk/id/local-authority-district/22UN,Life Opportunities,8540 - Leisure Centre Clacton,2100 - Building Repairs,10/07/2012,2098281-1,43.17,2100267 - City Electrical Factors Ltd Anglia Division,
Tendring DC,http://statistics.data.gov.uk/id/local-authority-district/22UN,Life Opportunities,8540 - Leisure Centre Clacton,2100 - Building Repairs,10/07/2012,2098281-2,1.11,2100267 - City Electrical Factors Ltd Anglia Division,
Tendring DC,http://statistics.data.gov.uk/id/local-authority-district/22UN,Life Opportunities,8510 - Dovercourt Swimming Pool & All Weather Facilities,2100 - Building Repairs,03/07/2012,2097933-1,41.67,2100218 - Clacton Electronics,
Tendring DC,http://statistics.data.gov.uk/id/local-authority-district/22UN,Life Opportunities,8540 - Leisure Centre Clacton,2100 - Building Repairs,10/07/2012,2098282-1,29.17,2100218 - Clacton Electronics,
Tendring DC,http://statistics.data.gov.uk/id/local-authority-district/22UN,Life Opportunities,5220 - HRA - Policy & Management,5930 - Business Planning Expenses,24/07/2012,1049328-1,5000,2112228 - Colchester Borough Council,GHG CONTRIBUTION
Tendring DC,http://statistics.data.gov.uk/id/local-authority-district/22UN,Life Opportunities,6160 - Princes Theatre,4622 - Hired Services - Artistes and Production Companies,03/07/2012,1049106-1,1000,2104814 - Colchester Catering,BADO WEDDING PAYMENT
Tendring DC,http://statistics.data.gov.uk/id/local-authority-district/22UN,Life Opportunities,H860 - Disabled Adaptations,C200 - Main Contractor,03/07/2012,1049166-1,2497,REDACTED PERSONAL DATA,REDACTED PERSONAL DATA
Tendring DC,http://statistics.data.gov.uk/id/local-authority-district/22UN,Life Opportunities,H860 - Disabled Adaptations,C200 - Main Contractor,03/07/2012,1049167-1,3335.75,REDACTED PERSONAL DATA,REDACTED PERSONAL DATA
Tendring DC,http://statistics.data.gov.uk/id/local-authority-district/22UN,Life Opportunities,5260 - HRA - Rent Collection And Accounting,4460 - Legal & Professional Expenses,24/07/2012,2098785-1,700,2100304 - CO-OP Bank,Credit Card June/July
Tendring DC,http://statistics.data.gov.uk/id/local-authority-district/22UN,Life Opportunities,6620 - Corporate Management - General,5190 - Bank Commission Charges,24/07/2012,2098785-2,2,2100304 - CO-OP Bank,Credit Card June/July
Tendring DC,http://statistics.data.gov.uk/id/local-authority-district/22UN,Life Opportunities,5800 - Brightlingsea Sports Centre,2100 - Building Repairs,31/07/2012,1049335-1,114.5,2108459 - Cooper & Brome (Contracts) Ltd,COOPER & BROME
Tendring DC,http://statistics.data.gov.uk/id/local-authority-district/22UN,Life Opportunities,6160 - Princes Theatre,2100 - Building Repairs,31/07/2012,1049389-1,355.5,2108459 - Cooper & Brome (Contracts) Ltd,NEW PUMP
Tendring DC,http://statistics.data.gov.uk/id/local-authority-district/22UN,Life Opportunities,5820 - Harwich Sports Centre,4597 - Hired Services - Payments to Contractors,03/07/2012,1049093-1,55.88,2100314 - Cooper & Brome (Plumbing & Heating) Ltd,PLUMBER
Tendring DC,http://statistics.data.gov.uk/id/local-authority-district/22UN,Life Opportunities,8540 - Leisure Centre Clacton,2100 - Building Repairs,17/07/2012,1049250-1,107.03,2100314 - Cooper & Brome (Plumbing & Heating) Ltd,
Tendring DC,http://statistics.data.gov.uk/id/local-authority-district/22UN,Life Opportunities,8520 - Frinton & Walton Swimming Pool,2100 - Building Repairs,17/07/2012,1049251-1,151.47,2100314 - Cooper & Brome (Plumbing & Heating) Ltd,FRINTON WALTON POOL
Tendring DC,http://statistics.data.gov.uk/id/local-authority-district/22UN,Life Opportunities,5820 - Harwich Sports Centre,2100 - Building Repairs,10/07/2012,2098323-1,84.68,REDACTED PERSONAL DATA,REDACTED PERSONAL DATA
Tendring DC,http://statistics.data.gov.uk/id/local-authority-district/22UN,Life Opportunities,5480 - HRA - Repair & Maintenance,2077 - Gas Service Contract  Servicing/Testing (Large Sca,24/07/2012,2098863-1,1538.73,REDACTED PERSONAL DATA,REDACTED PERSONAL DATA
Tendring DC,http://statistics.data.gov.uk/id/local-authority-district/22UN,Life Opportunities,5480 - HRA - Repair & Maintenance,2078 - Gas Service Contract Other Refurbishment/Repairs (,24/07/2012,2098863-2,4424.88,REDACTED PERSONAL DATA,REDACTED PERSONAL DATA
Tendring DC,http://statistics.data.gov.uk/id/local-authority-district/22UN,Life Opportunities,8540 - Leisure Centre Clacton,2308 - Energy Costs - Gas (Including LPG),03/07/2012,2097934-1,1502.89,2104620 - Corona Energy Retail 4 Limited,May
Tendring DC,http://statistics.data.gov.uk/id/local-authority-district/22UN,Life Opportunities,8510 - Dovercourt Swimming Pool & All Weather Facilities,2308 - Energy Costs - Gas (Including LPG),03/07/2012,2098032-1,2756.06,2104620 - Corona Energy Retail 4 Limited,Dovercourt Pool
Tendring DC,http://statistics.data.gov.uk/id/local-authority-district/22UN,Life Opportunities,8520 - Frinton & Walton Swimming Pool,2308 - Energy Costs - Gas (Including LPG),03/07/2012,2098033-1,3275.6,2104620 - Corona Energy Retail 4 Limited,Frinton Pool
Tendring DC,http://statistics.data.gov.uk/id/local-authority-district/22UN,Life Opportunities,8510 - Dovercourt Swimming Pool & All Weather Facilities,2308 - Energy Costs - Gas (Including LPG),24/07/2012,2098622-1,2360.45,2104620 - Corona Energy Retail 4 Limited,Dovercourt Pool
Tendring DC,http://statistics.data.gov.uk/id/local-authority-district/22UN,Life Opportunities,8520 - Frinton & Walton Swimming Pool,2308 - Energy Costs - Gas (Including LPG),24/07/2012,2098623-1,2948.41,2104620 - Corona Energy Retail 4 Limited,Frinton Pool
Tendring DC,http://statistics.data.gov.uk/id/local-authority-district/22UN,Life Opportunities,5240 - HRA - Managing Tenancies,5242 - Tenant Relations,10/07/2012,2098261-1,1104,REDACTED COMMERCIAL CONFIDENTIALITY,REDACTED COMMERCIAL CONFIDENTIALITY
Tendring DC,http://statistics.data.gov.uk/id/local-authority-district/22UN,Life Opportunities,5240 - HRA - Managing Tenancies,5242 - Tenant Relations,17/07/2012,2098457-1,1218,REDACTED PERSONAL DATA,REDACTED PERSONAL DATA
Tendring DC,http://statistics.data.gov.uk/id/local-authority-district/22UN,Life Opportunities,5240 - HRA - Managing Tenancies,5242 - Tenant Relations,17/07/2012,2098458-1,1662,REDACTED PERSONAL DATA,REDACTED PERSONAL DATA
Tendring DC,http://statistics.data.gov.uk/id/local-authority-district/22UN,Life Opportunities,8510 - Dovercourt Swimming Pool & All Weather Facilities,4400 - Maintenance Under Service Agreements,31/07/2012,2098968-1,145,REDACTED PERSONAL DATA,REDACTED PERSONAL DATA
Tendring DC,http://statistics.data.gov.uk/id/local-authority-district/22UN,Life Opportunities,H920 - DFGs,C400 - Grant payments,03/07/2012,2098112-1,2948.78,REDACTED PERSONAL DATA,REDACTED PERSONAL DATA
Tendring DC,http://statistics.data.gov.uk/id/local-authority-district/22UN,Life Opportunities,H920 - DFGs,C400 - Grant payments,10/07/2012,2098327-1,590,REDACTED PERSONAL DATA,REDACTED PERSONAL DATA
Tendring DC,http://statistics.data.gov.uk/id/local-authority-district/22UN,Life Opportunities,H920 - DFGs,C400 - Grant payments,31/07/2012,2098898-1,2048,REDACTED PERSONAL DATA,REDACTED PERSONAL DATA
Tendring DC,http://statistics.data.gov.uk/id/local-authority-district/22UN,Life Opportunities,8540 - Leisure Centre Clacton,9275 - Lifestyles Plus - DD,03/07/2012,2098150-1,35.83,REDACTED PERSONAL DATA,REDACTED PERSONAL DATA
Tendring DC,http://statistics.data.gov.uk/id/local-authority-district/22UN,Life Opportunities,5360 - HRA - Sheltered Units,4710 - Telephones - Charges,24/07/2012,2098710-1,65.97,2106704 - Daisy Communications Ltd,Daisy Bill - June 2012
Tendring DC,http://statistics.data.gov.uk/id/local-authority-district/22UN,Life Opportunities,6160 - Princes Theatre,4220 - Laundry,17/07/2012,1049202-1,11.7,2100397 - Danes of Colchester Ltd,THEATRE LAUNDRY
Tendring DC,http://statistics.data.gov.uk/id/local-authority-district/22UN,Life Opportunities,6160 - Princes Theatre,4220 - Laundry,17/07/2012,1049202-2,0.18,2100397 - Danes of Colchester Ltd,THEATRE LAUNDRY
Tendring DC,http://statistics.data.gov.uk/id/local-authority-district/22UN,Life Opportunities,6160 - Princes Theatre,4220 - Laundry,17/07/2012,1049203-1,40.3,2100397 - Danes of Colchester Ltd,THEATRE LAUNDRY
Tendring DC,http://statistics.data.gov.uk/id/local-authority-district/22UN,Life Opportunities,6160 - Princes Theatre,4220 - Laundry,17/07/2012,1049203-2,0.62,2100397 - Danes of Colchester Ltd,THEATRE LAUNDRY
Tendring DC,http://statistics.data.gov.uk/id/local-authority-district/22UN,Life Opportunities,6160 - Princes Theatre,4220 - Laundry,17/07/2012,1049204-1,14.3,2100397 - Danes of Colchester Ltd,THEATRE LAUNDRY
Tendring DC,http://statistics.data.gov.uk/id/local-authority-district/22UN,Life Opportunities,6160 - Princes Theatre,4220 - Laundry,17/07/2012,1049204-2,0.22,2100397 - Danes of Colchester Ltd,THEATRE LAUNDRY
Tendring DC,http://statistics.data.gov.uk/id/local-authority-district/22UN,Life Opportunities,8540 - Leisure Centre Clacton,4400 - Maintenance Under Service Agreements,03/07/2012,2097922-1,73.9,2107840 - Digital Office Systems Ltd,
Tendring DC,http://statistics.data.gov.uk/id/local-authority-district/22UN,Life Opportunities,1240 - Housing Services Service Unit,1700 - Training - Courses,03/07/2012,2097975-1,225,REDACTED COMMERCIAL CONFIDENTIALITY,REDACTED COMMERCIAL CONFIDENTIALITY
Tendring DC,http://statistics.data.gov.uk/id/local-authority-district/22UN,Life Opportunities,H860 - Disabled Adaptations,C200 - Main Contractor,03/07/2012,2097977-1,5472.33,REDACTED COMMERCIAL CONFIDENTIALITY,REDACTED COMMERCIAL CONFIDENTIALITY
Tendring DC,http://statistics.data.gov.uk/id/local-authority-district/22UN,Life Opportunities,5800 - Brightlingsea Sports Centre,2100 - Building Repairs,03/07/2012,2098035-1,304.47,2100490 - DORMA UK Ltd - Service Division,Dorma UK Ltd
Tendring DC,http://statistics.data.gov.uk/id/local-authority-district/22UN,Life Opportunities,H860 - Disabled Adaptations,C200 - Main Contractor,31/07/2012,2098878-1,6474.75,REDACTED PERSONAL DATA,REDACTED PERSONAL DATA
Tendring DC,http://statistics.data.gov.uk/id/local-authority-district/22UN,Life Opportunities,H815 - Re-roofing,C200 - Main Contractor,03/07/2012,2098080-1,850,2100422 - DTA Consultants Analytical Chemists,Kate Daniels SHU
Tendring DC,http://statistics.data.gov.uk/id/local-authority-district/22UN,Life Opportunities,H815 - Re-roofing,C200 - Main Contractor,17/07/2012,2098455-1,230,2100422 - DTA Consultants Analytical Chemists,Kate Daniels SHU
Tendring DC,http://statistics.data.gov.uk/id/local-authority-district/22UN,Life Opportunities,H800 - Structural Repairs,C200 - Main Contractor,31/07/2012,2098880-1,800,2100422 - DTA Consultants Analytical Chemists,Hastinsg Place
Tendring DC,http://statistics.data.gov.uk/id/local-authority-district/22UN,Life Opportunities,H705 - Window/Door Replacement,C200 - Main Contractor,17/07/2012,2098449-1,125,REDACTED PERSONAL DATA,REDACTED PERSONAL DATA
Tendring DC,http://statistics.data.gov.uk/id/local-authority-district/22UN,Life Opportunities,H705 - Window/Door Replacement,C200 - Main Contractor,17/07/2012,2098450-1,125,REDACTED PERSONAL DATA,REDACTED PERSONAL DATA
Tendring DC,http://statistics.data.gov.uk/id/local-authority-district/22UN,Life Opportunities,H810 - Electrical Re-wiring,C200 - Main Contractor,31/07/2012,2098885-1,7950,REDACTED PERSONAL DATA,REDACTED PERSONAL DATA
Tendring DC,http://statistics.data.gov.uk/id/local-authority-district/22UN,Life Opportunities,7520 - Tourism Publicity Marketing Promotion,5160 - Advertising,03/07/2012,2097986-1,402,2100404 - Easy Tigernet,Air Show Banners
Tendring DC,http://statistics.data.gov.uk/id/local-authority-district/22UN,Life Opportunities,7520 - Tourism Publicity Marketing Promotion,5160 - Advertising,03/07/2012,2097987-1,40,2100404 - Easy Tigernet,ESC Advert
Tendring DC,http://statistics.data.gov.uk/id/local-authority-district/22UN,Life Opportunities,7520 - Tourism Publicity Marketing Promotion,5160 - Advertising,03/07/2012,2097988-1,160,2100404 - Easy Tigernet,Web banner
Tendring DC,http://statistics.data.gov.uk/id/local-authority-district/22UN,Life Opportunities,8510 - Dovercourt Swimming Pool & All Weather Facilities,2304 - Energy Costs - Electricity,17/07/2012,1049207-1,2481.91,2105146 - EDF Energy 1 Ltd,DOVERCOURT POOL
Tendring DC,http://statistics.data.gov.uk/id/local-authority-district/22UN,Life Opportunities,8510 - Dovercourt Swimming Pool & All Weather Facilities,2304 - Energy Costs - Electricity,17/07/2012,1049207-2,1.86,2105146 - EDF Energy 1 Ltd,DOVERCOURT POOL
Tendring DC,http://statistics.data.gov.uk/id/local-authority-district/22UN,Life Opportunities,8540 - Leisure Centre Clacton,2304 - Energy Costs - Electricity,17/07/2012,2098447-1,6394.73,2105146 - EDF Energy 1 Ltd,June
Tendring DC,http://statistics.data.gov.uk/id/local-authority-district/22UN,Life Opportunities,8540 - Leisure Centre Clacton,2304 - Energy Costs - Electricity,17/07/2012,2098447-2,4.74,2105146 - EDF Energy 1 Ltd,June
Tendring DC,http://statistics.data.gov.uk/id/local-authority-district/22UN,Life Opportunities,5860 - Manningtree Sports Centre,2100 - Building Repairs,17/07/2012,2098556-1,70,2103477 - Entrac Electrical,Call Out Loss of Power Fitness Suite
Tendring DC,http://statistics.data.gov.uk/id/local-authority-district/22UN,Life Opportunities,C265 - Clacton seafront improvements,C200 - Main Contractor,10/07/2012,2098179-1,100,2108194 - Environmental Design,Pier Gap
Tendring DC,http://statistics.data.gov.uk/id/local-authority-district/22UN,Life Opportunities,5480 - HRA - Repair & Maintenance,2017 - Mechanical Equipment /Extract Fans,17/07/2012,1049252-1,630,REDACTED PERSONAL DATA,REDACTED PERSONAL DATA
Tendring DC,http://statistics.data.gov.uk/id/local-authority-district/22UN,Life Opportunities,5480 - HRA - Repair & Maintenance,2017 - Mechanical Equipment /Extract Fans,17/07/2012,1049253-1,949.73,REDACTED PERSONAL DATA,REDACTED PERSONAL DATA
Tendring DC,http://statistics.data.gov.uk/id/local-authority-district/22UN,Life Opportunities,6740 - Careline,2304 - Energy Costs - Electricity,17/07/2012,1049211-1,33.14,2107644 - Eon,E-ON BILL MAY-JUNE 2012
Tendring DC,http://statistics.data.gov.uk/id/local-authority-district/22UN,Life Opportunities,8530 - Brightlingsea Swimming Pool,2304 - Energy Costs - Electricity,03/07/2012,2097910-1,5000,2107644 - Eon,Brightlingsea Pool
Tendring DC,http://statistics.data.gov.uk/id/local-authority-district/22UN,Life Opportunities,5440 - HRA - Communal Electricity,2304 - Energy Costs - Electricity,17/07/2012,2098453-1,25.12,2107644 - Eon,TV Amplifiers
Tendring DC,http://statistics.data.gov.uk/id/local-authority-district/22UN,Life Opportunities,7520 - Tourism Publicity Marketing Promotion,5160 - Advertising,03/07/2012,2097989-1,250,2100498 - Essex County Council,Greater Anglia Times
Tendring DC,http://statistics.data.gov.uk/id/local-authority-district/22UN,Life Opportunities,8540 - Leisure Centre Clacton,4400 - Maintenance Under Service Agreements,17/07/2012,2098605-1,240,2105226 - Essex Inflatables,
Tendring DC,http://statistics.data.gov.uk/id/local-authority-district/22UN,Life Opportunities,7520 - Tourism Publicity Marketing Promotion,5160 - Advertising,17/07/2012,2098431-1,200,REDACTED PERSONAL DATA,REDACTED PERSONAL DATA
Tendring DC,http://statistics.data.gov.uk/id/local-authority-district/22UN,Life Opportunities,7600 - Tourist Information Centres,4307 - Attractions Leaflet Printing,17/07/2012,7103736-1,1683,2112393 - Express Newspapers,Express Newspaper
Tendring DC,http://statistics.data.gov.uk/id/local-authority-district/22UN,Life Opportunities,1230 - Private Sector Housing Service Unit,4753 - Computer - Application Software,31/07/2012,2098927-1,190,REDACTED PERSONAL DATA,REDACTED PERSONAL DATA
Tendring DC,http://statistics.data.gov.uk/id/local-authority-district/22UN,Life Opportunities,5480 - HRA - Repair & Maintenance,2057 - Fire Alarms Servicing,10/07/2012,2098253-1,150,REDACTED PERSONAL DATA,REDACTED PERSONAL DATA
Tendring DC,http://statistics.data.gov.uk/id/local-authority-district/22UN,Life Opportunities,5480 - HRA - Repair & Maintenance,2058 - Fire Alarms Repairs,10/07/2012,2098254-1,120,REDACTED PERSONAL DATA,REDACTED PERSONAL DATA
Tendring DC,http://statistics.data.gov.uk/id/local-authority-district/22UN,Life Opportunities,5480 - HRA - Repair & Maintenance,2058 - Fire Alarms Repairs,10/07/2012,2098255-1,100,REDACTED PERSONAL DATA,REDACTED PERSONAL DATA
Tendring DC,http://statistics.data.gov.uk/id/local-authority-district/22UN,Life Opportunities,5480 - HRA - Repair & Maintenance,2058 - Fire Alarms Repairs,17/07/2012,2098425-1,50,REDACTED PERSONAL DATA,REDACTED PERSONAL DATA
Tendring DC,http://statistics.data.gov.uk/id/local-authority-district/22UN,Life Opportunities,5480 - HRA - Repair & Maintenance,2058 - Fire Alarms Repairs,17/07/2012,2098426-1,50,REDACTED PERSONAL DATA,REDACTED PERSONAL DATA
Tendring DC,http://statistics.data.gov.uk/id/local-authority-district/22UN,Life Opportunities,5480 - HRA - Repair & Maintenance,2058 - Fire Alarms Repairs,17/07/2012,2098427-1,126,REDACTED PERSONAL DATA,REDACTED PERSONAL DATA
Tendring DC,http://statistics.data.gov.uk/id/local-authority-district/22UN,Life Opportunities,5480 - HRA - Repair & Maintenance,2058 - Fire Alarms Repairs,17/07/2012,2098428-1,70,REDACTED PERSONAL DATA,REDACTED PERSONAL DATA
Tendring DC,http://statistics.data.gov.uk/id/local-authority-district/22UN,Life Opportunities,7600 - Tourist Information Centres,9356 - Commission Sales,24/07/2012,2098818-1,1797.3,REDACTED PERSONAL DATA,REDACTED PERSONAL DATA
Tendring DC,http://statistics.data.gov.uk/id/local-authority-district/22UN,Life Opportunities,8540 - Leisure Centre Clacton,5500 - Miscellaneous Expenses,17/07/2012,1049195-1,455,2103353 - Fitness Industry Association Limited,AUG12-JULY13
Tendring DC,http://statistics.data.gov.uk/id/local-authority-district/22UN,Life Opportunities,8510 - Dovercourt Swimming Pool & All Weather Facilities,4880 - Subscriptions Paid,17/07/2012,1049195-2,200,2103353 - Fitness Industry Association Limited,AUG12-JULY13
Tendring DC,http://statistics.data.gov.uk/id/local-authority-district/22UN,Life Opportunities,5800 - Brightlingsea Sports Centre,2100 - Building Repairs,17/07/2012,1049195-3,200,2103353 - Fitness Industry Association Limited,AUG12-JULY13
Tendring DC,http://statistics.data.gov.uk/id/local-authority-district/22UN,Life Opportunities,8540 - Leisure Centre Clacton,2904 - Premises Licensing - Other,27/07/2012,2099006-1,284.68,2107806 - Fitness Professionals Ltd,Body Training System
Tendring DC,http://statistics.data.gov.uk/id/local-authority-district/22UN,Life Opportunities,7600 - Tourist Information Centres,9356 - Commission Sales,17/07/2012,2098444-1,382.5,2107423 - Fizz Coach Trips,June Commission
Tendring DC,http://statistics.data.gov.uk/id/local-authority-district/22UN,Life Opportunities,5140 - Homelessness,4683 - Other Homelessness Expenses,17/07/2012,2098581-1,300,REDACTED PERSONAL DATA,REDACTED PERSONAL DATA
Tendring DC,http://statistics.data.gov.uk/id/local-authority-district/22UN,Life Opportunities,5860 - Manningtree Sports Centre,1700 - Training - Courses,24/07/2012,2098665-1,95,2107351 - Frinton Training Services Ltd,1st Aid Course Bethany Irwin
Tendring DC,http://statistics.data.gov.uk/id/local-authority-district/22UN,Life Opportunities,5140 - Homelessness,4683 - Other Homelessness Expenses,24/07/2012,2098800-1,575,REDACTED PERSONAL DATA,REDACTED PERSONAL DATA
Tendring DC,http://statistics.data.gov.uk/id/local-authority-district/22UN,Life Opportunities,H920 - DFGs,C400 - Grant payments,03/07/2012,2098109-1,2377.75,REDACTED PERSONAL DATA,REDACTED PERSONAL DATA
Tendring DC,http://statistics.data.gov.uk/id/local-authority-district/22UN,Life Opportunities,H920 - DFGs,C400 - Grant payments,24/07/2012,2098804-1,4314.38,REDACTED PERSONAL DATA,REDACTED PERSONAL DATA
Tendring DC,http://statistics.data.gov.uk/id/local-authority-district/22UN,Life Opportunities,8540 - Leisure Centre Clacton,2100 - Building Repairs,03/07/2012,2097924-1,420,2100546 - GCS Alarms,
Tendring DC,http://statistics.data.gov.uk/id/local-authority-district/22UN,Life Opportunities,5480 - HRA - Repair & Maintenance,2018 - Other Responsive Repairs,31/07/2012,2098929-1,89.2,REDACTED PERSONAL DATA,REDACTED PERSONAL DATA
Tendring DC,http://statistics.data.gov.uk/id/local-authority-district/22UN,Life Opportunities,5480 - HRA - Repair & Maintenance,2018 - Other Responsive Repairs,31/07/2012,2098930-1,80,REDACTED PERSONAL DATA,REDACTED PERSONAL DATA
Tendring DC,http://statistics.data.gov.uk/id/local-authority-district/22UN,Life Opportunities,5480 - HRA - Repair & Maintenance,2018 - Other Responsive Repairs,31/07/2012,2098931-1,23.8,REDACTED PERSONAL DATA,REDACTED PERSONAL DATA
Tendring DC,http://statistics.data.gov.uk/id/local-authority-district/22UN,Life Opportunities,8540 - Leisure Centre Clacton,4597 - Hired Services - Payments to Contractors,10/07/2012,2098385-1,400,REDACTED PERSONAL DATA,REDACTED PERSONAL DATA
Tendring DC,http://statistics.data.gov.uk/id/local-authority-district/22UN,Life Opportunities,5800 - Brightlingsea Sports Centre,1180 - Instructors / Coaches Fee,10/07/2012,2098385-2,400,REDACTED PERSONAL DATA,REDACTED PERSONAL DATA
Tendring DC,http://statistics.data.gov.uk/id/local-authority-district/22UN,Life Opportunities,6160 - Princes Theatre,4622 - Hired Services - Artistes and Production Companies,03/07/2012,2097913-1,2010.95,2112320 - Glenn Povey Management Ltd,Dusty Settlement
Tendring DC,http://statistics.data.gov.uk/id/local-authority-district/22UN,Life Opportunities,8540 - Leisure Centre Clacton,2900 - Premises Licensing - Public Entertainment,27/07/2012,2099007-1,50,2110331 - GMS Recordings,Music Broadcasting - Lifestyles
Tendring DC,http://statistics.data.gov.uk/id/local-authority-district/22UN,Life Opportunities,5240 - HRA - Managing Tenancies,5242 - Tenant Relations,24/07/2012,2098816-1,10,REDACTED PERSONAL DATA,REDACTED PERSONAL DATA
Tendring DC,http://statistics.data.gov.uk/id/local-authority-district/22UN,Life Opportunities,5240 - HRA - Managing Tenancies,5242 - Tenant Relations,03/07/2012,2097964-1,250,REDACTED PERSONAL DATA,REDACTED PERSONAL DATA
Tendring DC,http://statistics.data.gov.uk/id/local-authority-district/22UN,Life Opportunities,5480 - HRA - Repair & Maintenance,2017 - Mechanical Equipment /Extract Fans,24/07/2012,1049314-1,45,REDACTED PERSONAL DATA,REDACTED PERSONAL DATA
Tendring DC,http://statistics.data.gov.uk/id/local-authority-district/22UN,Life Opportunities,5480 - HRA - Repair & Maintenance,2017 - Mechanical Equipment /Extract Fans,24/07/2012,1049315-1,45,REDACTED PERSONAL DATA,REDACTED PERSONAL DATA
Tendring DC,http://statistics.data.gov.uk/id/local-authority-district/22UN,Life Opportunities,5480 - HRA - Repair & Maintenance,2017 - Mechanical Equipment /Extract Fans,24/07/2012,1049316-1,45,REDACTED PERSONAL DATA,REDACTED PERSONAL DATA
Tendring DC,http://statistics.data.gov.uk/id/local-authority-district/22UN,Life Opportunities,5480 - HRA - Repair & Maintenance,2017 - Mechanical Equipment /Extract Fans,17/07/2012,2098421-1,45,REDACTED PERSONAL DATA,REDACTED PERSONAL DATA
Tendring DC,http://statistics.data.gov.uk/id/local-authority-district/22UN,Life Opportunities,5480 - HRA - Repair & Maintenance,2017 - Mechanical Equipment /Extract Fans,17/07/2012,2098422-1,45,REDACTED PERSONAL DATA,REDACTED PERSONAL DATA
Tendring DC,http://statistics.data.gov.uk/id/local-authority-district/22UN,Life Opportunities,5480 - HRA - Repair & Maintenance,2017 - Mechanical Equipment /Extract Fans,17/07/2012,2098423-1,465,REDACTED PERSONAL DATA,REDACTED PERSONAL DATA
Tendring DC,http://statistics.data.gov.uk/id/local-authority-district/22UN,Life Opportunities,5480 - HRA - Repair & Maintenance,2017 - Mechanical Equipment /Extract Fans,31/07/2012,2098911-1,90,REDACTED PERSONAL DATA,REDACTED PERSONAL DATA
Tendring DC,http://statistics.data.gov.uk/id/local-authority-district/22UN,Life Opportunities,8540 - Leisure Centre Clacton,5300 - Resaleable Items,03/07/2012,2097927-1,59.5,2100641 - Gymnastic Enterprises Ltd,
Tendring DC,http://statistics.data.gov.uk/id/local-authority-district/22UN,Life Opportunities,5800 - Brightlingsea Sports Centre,5300 - Resaleable Items,03/07/2012,2097927-2,42,2100641 - Gymnastic Enterprises Ltd,
Tendring DC,http://statistics.data.gov.uk/id/local-authority-district/22UN,Life Opportunities,5820 - Harwich Sports Centre,2100 - Building Repairs,17/07/2012,2098549-1,70,2100653 - Harwich Glass & Window Co Ltd,Reglazed Window
Tendring DC,http://statistics.data.gov.uk/id/local-authority-district/22UN,Life Opportunities,8510 - Dovercourt Swimming Pool & All Weather Facilities,2100 - Building Repairs,24/07/2012,2098625-1,690,2100653 - Harwich Glass & Window Co Ltd,Dovercourt Pool
Tendring DC,http://statistics.data.gov.uk/id/local-authority-district/22UN,Life Opportunities,8510 - Dovercourt Swimming Pool & All Weather Facilities,2100 - Building Repairs,24/07/2012,2098626-1,690,2100653 - Harwich Glass & Window Co Ltd,Dovercourt Pool
Tendring DC,http://statistics.data.gov.uk/id/local-authority-district/22UN,Life Opportunities,6355 - Community Activity Network,4597 - Hired Services - Payments to Contractors,31/07/2012,1049414-1,216,2104857 - Harwich Runners,RUNNING COACH
Tendring DC,http://statistics.data.gov.uk/id/local-authority-district/22UN,Life Opportunities,5240 - HRA - Managing Tenancies,5242 - Tenant Relations,17/07/2012,2098491-1,44,REDACTED PERSONAL DATA,REDACTED PERSONAL DATA
Tendring DC,http://statistics.data.gov.uk/id/local-authority-district/22UN,Life Opportunities,8530 - Brightlingsea Swimming Pool,2100 - Building Repairs,17/07/2012,1049198-1,108.57,2100615 - Healey Tool Hire & Sales Limited,1/6/12-19/6/12
Tendring DC,http://statistics.data.gov.uk/id/local-authority-district/22UN,Life Opportunities,7520 - Tourism Publicity Marketing Promotion,5160 - Advertising,17/07/2012,2098432-1,95,REDACTED PERSONAL DATA,REDACTED PERSONAL DATA
Tendring DC,http://statistics.data.gov.uk/id/local-authority-district/22UN,Life Opportunities,8510 - Dovercourt Swimming Pool & All Weather Facilities,4597 - Hired Services - Payments to Contractors,03/07/2012,2098164-1,26,2103448 - Health Protection Agency,Tendring Pools
Tendring DC,http://statistics.data.gov.uk/id/local-authority-district/22UN,Life Opportunities,8520 - Frinton & Walton Swimming Pool,4597 - Hired Services - Payments to Contractors,03/07/2012,2098164-2,26,2103448 - Health Protection Agency,Tendring Pools
Tendring DC,http://statistics.data.gov.uk/id/local-authority-district/22UN,Life Opportunities,8520 - Frinton & Walton Swimming Pool,4597 - Hired Services - Payments to Contractors,03/07/2012,2098164-3,52,2103448 - Health Protection Agency,Tendring Pools
Tendring DC,http://statistics.data.gov.uk/id/local-authority-district/22UN,Life Opportunities,7600 - Tourist Information Centres,9356 - Commission Sales,17/07/2012,2098445-1,962.09,2100635 - Hedingham & District Omnibuses Ltd,June Commission
Tendring DC,http://statistics.data.gov.uk/id/local-authority-district/22UN,Life Opportunities,H920 - DFGs,C400 - Grant payments,03/07/2012,2098110-1,2186.98,REDACTED PERSONAL DATA,REDACTED PERSONAL DATA
Tendring DC,http://statistics.data.gov.uk/id/local-authority-district/22UN,Life Opportunities,8520 - Frinton & Walton Swimming Pool,2100 - Building Repairs,10/07/2012,2098273-1,46,2101848 - Homecraft Contracts Ltd,Frinton & Walton Pool
Tendring DC,http://statistics.data.gov.uk/id/local-authority-district/22UN,Life Opportunities,8510 - Dovercourt Swimming Pool & All Weather Facilities,2100 - Building Repairs,10/07/2012,2098274-1,749.67,2101848 - Homecraft Contracts Ltd,Dovercourt Pool
Tendring DC,http://statistics.data.gov.uk/id/local-authority-district/22UN,Life Opportunities,8510 - Dovercourt Swimming Pool & All Weather Facilities,2100 - Building Repairs,10/07/2012,2098275-1,370,2101848 - Homecraft Contracts Ltd,Dovercourt Pool
Tendring DC,http://statistics.data.gov.uk/id/local-authority-district/22UN,Life Opportunities,8540 - Leisure Centre Clacton,2100 - Building Repairs,10/07/2012,2098377-1,235,2101848 - Homecraft Contracts Ltd,
Tendring DC,http://statistics.data.gov.uk/id/local-authority-district/22UN,Life Opportunities,8520 - Frinton & Walton Swimming Pool,2100 - Building Repairs,17/07/2012,2098557-1,66,2101848 - Homecraft Contracts Ltd,Frinton & Walton Pool
Tendring DC,http://statistics.data.gov.uk/id/local-authority-district/22UN,Life Opportunities,H920 - DFGs,C400 - Grant payments,31/07/2012,2098902-1,6027.55,REDACTED PERSONAL DATA,REDACTED PERSONAL DATA
Tendring DC,http://statistics.data.gov.uk/id/local-authority-district/22UN,Life Opportunities,5220 - HRA - Policy & Management,5930 - Business Planning Expenses,31/07/2012,2098957-1,5172.5,REDACTED PERSONAL DATA,REDACTED PERSONAL DATA
Tendring DC,http://statistics.data.gov.uk/id/local-authority-district/22UN,Life Opportunities,5240 - HRA - Managing Tenancies,4460 - Legal & Professional Expenses,10/07/2012,2098248-1,394.8,REDACTED PERSONAL DATA,REDACTED PERSONAL DATA
Tendring DC,http://statistics.data.gov.uk/id/local-authority-district/22UN,Life Opportunities,5480 - HRA - Repair & Maintenance,2014 - Decoration Allowances,24/07/2012,1049319-1,456.94,REDACTED PERSONAL DATA,REDACTED PERSONAL DATA
Tendring DC,http://statistics.data.gov.uk/id/local-authority-district/22UN,Life Opportunities,5480 - HRA - Repair & Maintenance,2014 - Decoration Allowances,17/07/2012,2098429-1,379.13,REDACTED PERSONAL DATA,REDACTED PERSONAL DATA
Tendring DC,http://statistics.data.gov.uk/id/local-authority-district/22UN,Life Opportunities,5860 - Manningtree Sports Centre,4090 - Lease of Vending Machines,31/07/2012,2098937-1,356.2,2100702 - ING Lease (UK) Ltd,Quarterly Lease Vending Machines x 2
Tendring DC,http://statistics.data.gov.uk/id/local-authority-district/22UN,Life Opportunities,8540 - Leisure Centre Clacton,4597 - Hired Services - Payments to Contractors,10/07/2012,2098373-1,832,2107101 - Inspiring Communities Ltd,
Tendring DC,http://statistics.data.gov.uk/id/local-authority-district/22UN,Life Opportunities,5820 - Harwich Sports Centre,4597 - Hired Services - Payments to Contractors,17/07/2012,2098416-1,780,2107101 - Inspiring Communities Ltd,Soccer Classes
Tendring DC,http://statistics.data.gov.uk/id/local-authority-district/22UN,Life Opportunities,1000 - Community Services Service Unit,4448 - Confidential Waste,24/07/2012,2098709-1,11.75,2110936 - IPPlus (UK) Ltd,Confidential Waste Collection April 2012
Tendring DC,http://statistics.data.gov.uk/id/local-authority-district/22UN,Life Opportunities,8510 - Dovercourt Swimming Pool & All Weather Facilities,5300 - Resaleable Items,10/07/2012,2098272-1,430,2100724 - IQL UK Ltd,Dovercourt Pool
Tendring DC,http://statistics.data.gov.uk/id/local-authority-district/22UN,Life Opportunities,5140 - Homelessness,4683 - Other Homelessness Expenses,17/07/2012,2098579-1,375.45,REDACTED PERSONAL DATA,REDACTED PERSONAL DATA
Tendring DC,http://statistics.data.gov.uk/id/local-authority-district/22UN,Life Opportunities,5140 - Homelessness,4683 - Other Homelessness Expenses,31/07/2012,1049427-1,500,REDACTED PERSONAL DATA,REDACTED PERSONAL DATA
Tendring DC,http://statistics.data.gov.uk/id/local-authority-district/22UN,Life Opportunities,5140 - Homelessness,4689 - Special Homelessness Projects Expenses,10/07/2012,1049171-1,79.5,REDACTED COMMERCIAL CONFIDENTIALITY,REDACTED COMMERCIAL CONFIDENTIALITY
Tendring DC,http://statistics.data.gov.uk/id/local-authority-district/22UN,Life Opportunities,8510 - Dovercourt Swimming Pool & All Weather Facilities,5300 - Resaleable Items,03/07/2012,1049002-1,-5.5,2100755 - J P Lennard Ltd,DOVERCOURT POOL
Tendring DC,http://statistics.data.gov.uk/id/local-authority-district/22UN,Life Opportunities,8520 - Frinton & Walton Swimming Pool,5300 - Resaleable Items,03/07/2012,2097919-1,241.3,2100755 - J P Lennard Ltd,Frinton & Walton Pool
Tendring DC,http://statistics.data.gov.uk/id/local-authority-district/22UN,Life Opportunities,8520 - Frinton & Walton Swimming Pool,5300 - Resaleable Items,03/07/2012,2097919-2,5.1,2100755 - J P Lennard Ltd,Frinton & Walton Pool
Tendring DC,http://statistics.data.gov.uk/id/local-authority-district/22UN,Life Opportunities,8520 - Frinton & Walton Swimming Pool,4000 - Furniture,03/07/2012,2097920-1,79.7,2100755 - J P Lennard Ltd,Frinton & Walton Pool
Tendring DC,http://statistics.data.gov.uk/id/local-authority-district/22UN,Life Opportunities,8540 - Leisure Centre Clacton,4000 - Furniture,03/07/2012,2097932-1,68.1,2100755 - J P Lennard Ltd,
Tendring DC,http://statistics.data.gov.uk/id/local-authority-district/22UN,Life Opportunities,8530 - Brightlingsea Swimming Pool,4000 - Furniture,03/07/2012,2098036-1,10.75,2100755 - J P Lennard Ltd,J P Lennard
Tendring DC,http://statistics.data.gov.uk/id/local-authority-district/22UN,Life Opportunities,8510 - Dovercourt Swimming Pool & All Weather Facilities,4200 - Clothing & Uniforms,10/07/2012,2098277-1,42.7,2100755 - J P Lennard Ltd,Dovercourt Pool
Tendring DC,http://statistics.data.gov.uk/id/local-authority-district/22UN,Life Opportunities,5800 - Brightlingsea Sports Centre,4080 - Materials & Consumables,17/07/2012,2098412-1,104.17,2100755 - J P Lennard Ltd,J P Lennard
Tendring DC,http://statistics.data.gov.uk/id/local-authority-district/22UN,Life Opportunities,8510 - Dovercourt Swimming Pool & All Weather Facilities,4000 - Furniture,24/07/2012,2098837-1,90.13,2100755 - J P Lennard Ltd,Dovercourt Pool
Tendring DC,http://statistics.data.gov.uk/id/local-authority-district/22UN,Life Opportunities,8520 - Frinton & Walton Swimming Pool,4200 - Clothing & Uniforms,31/07/2012,2098965-1,62,REDACTED PERSONAL DATA,REDACTED PERSONAL DATA
Tendring DC,http://statistics.data.gov.uk/id/local-authority-district/22UN,Life Opportunities,8520 - Frinton & Walton Swimming Pool,4000 - Furniture,31/07/2012,2098966-1,11.8,REDACTED PERSONAL DATA,REDACTED PERSONAL DATA
Tendring DC,http://statistics.data.gov.uk/id/local-authority-district/22UN,Life Opportunities,8540 - Leisure Centre Clacton,4597 - Hired Services - Payments to Contractors,17/07/2012,1049193-1,72,2100785 - J W Goding,JUNE
Tendring DC,http://statistics.data.gov.uk/id/local-authority-district/22UN,Life Opportunities,5240 - HRA - Managing Tenancies,5242 - Tenant Relations,23/07/2012,1049402-1,167,REDACTED PERSONAL DATA,REDACTED PERSONAL DATA
Tendring DC,http://statistics.data.gov.uk/id/local-authority-district/22UN,Life Opportunities,8520 - Frinton & Walton Swimming Pool,5311 - General Provisions - Vending,31/07/2012,1049404-1,384.88,2109088 - JC Vending Services,FRINTON WALTON POOL
Tendring DC,http://statistics.data.gov.uk/id/local-authority-district/22UN,Life Opportunities,H810 - Electrical Re-wiring,C200 - Main Contractor,10/07/2012,2098213-1,950,REDACTED PERSONAL DATA,REDACTED PERSONAL DATA
Tendring DC,http://statistics.data.gov.uk/id/local-authority-district/22UN,Life Opportunities,5140 - Homelessness,4683 - Other Homelessness Expenses,31/07/2012,1049431-1,330,REDACTED PERSONAL DATA,REDACTED PERSONAL DATA
Tendring DC,http://statistics.data.gov.uk/id/local-authority-district/22UN,Life Opportunities,5240 - HRA - Managing Tenancies,5242 - Tenant Relations,24/07/2012,2098813-1,10,REDACTED PERSONAL DATA,REDACTED PERSONAL DATA
Tendring DC,http://statistics.data.gov.uk/id/local-authority-district/22UN,Life Opportunities,5240 - HRA - Managing Tenancies,5242 - Tenant Relations,10/07/2012,2098232-1,10,2112372 - John Reid,
Tendring DC,http://statistics.data.gov.uk/id/local-authority-district/22UN,Life Opportunities,5480 - HRA - Repair & Maintenance,2062 - Communal TV Aerials Repairs,10/07/2012,2098252-1,45,REDACTED PERSONAL DATA,REDACTED PERSONAL DATA
Tendring DC,http://statistics.data.gov.uk/id/local-authority-district/22UN,Life Opportunities,H920 - DFGs,C400 - Grant payments,31/07/2012,2098903-1,4195.04,REDACTED PERSONAL DATA,REDACTED PERSONAL DATA
Tendring DC,http://statistics.data.gov.uk/id/local-authority-district/22UN,Life Opportunities,H920 - DFGs,C400 - Grant payments,31/07/2012,2098904-1,850,REDACTED PERSONAL DATA,REDACTED PERSONAL DATA
Tendring DC,http://statistics.data.gov.uk/id/local-authority-district/22UN,Life Opportunities,5240 - HRA - Managing Tenancies,5242 - Tenant Relations,24/07/2012,2098810-1,10,REDACTED PERSONAL DATA,REDACTED PERSONAL DATA
Tendring DC,http://statistics.data.gov.uk/id/local-authority-district/22UN,Life Opportunities,8540 - Leisure Centre Clacton,4597 - Hired Services - Payments to Contractors,17/07/2012,1049199-1,223.75,2107243 - Juice for Life Ltd,W/E 1.7.12
Tendring DC,http://statistics.data.gov.uk/id/local-authority-district/22UN,Life Opportunities,8540 - Leisure Centre Clacton,5500 - Miscellaneous Expenses,17/07/2012,1049200-1,115.41,2107243 - Juice for Life Ltd,18.2.12
Tendring DC,http://statistics.data.gov.uk/id/local-authority-district/22UN,Life Opportunities,8540 - Leisure Centre Clacton,5500 - Miscellaneous Expenses,17/07/2012,1049201-1,55.95,2107243 - Juice for Life Ltd,W/E 1.7.12
Tendring DC,http://statistics.data.gov.uk/id/local-authority-district/22UN,Life Opportunities,8540 - Leisure Centre Clacton,5500 - Miscellaneous Expenses,03/07/2012,2097928-1,51.7,2107243 - Juice for Life Ltd,w/e 17-6-12
Tendring DC,http://statistics.data.gov.uk/id/local-authority-district/22UN,Life Opportunities,8540 - Leisure Centre Clacton,4597 - Hired Services - Payments to Contractors,03/07/2012,2097929-1,176.25,2107243 - Juice for Life Ltd,w/e 17-6-12
Tendring DC,http://statistics.data.gov.uk/id/local-authority-district/22UN,Life Opportunities,8540 - Leisure Centre Clacton,4597 - Hired Services - Payments to Contractors,10/07/2012,2098283-1,223.75,2107243 - Juice for Life Ltd,w/e 24/6/12
Tendring DC,http://statistics.data.gov.uk/id/local-authority-district/22UN,Life Opportunities,8540 - Leisure Centre Clacton,5500 - Miscellaneous Expenses,10/07/2012,2098284-1,67.95,2107243 - Juice for Life Ltd,w/e 24/6/12
Tendring DC,http://statistics.data.gov.uk/id/local-authority-district/22UN,Life Opportunities,5240 - HRA - Managing Tenancies,5242 - Tenant Relations,03/07/2012,2097946-1,30,2100728 - Just Flowers,Flowers For TP
Tendring DC,http://statistics.data.gov.uk/id/local-authority-district/22UN,Life Opportunities,7040 - Civic Ceremonial Expenses,4080 - Materials & Consumables,03/07/2012,2097946-2,40,2100728 - Just Flowers,Flowers For TP
Tendring DC,http://statistics.data.gov.uk/id/local-authority-district/22UN,Life Opportunities,H860 - Disabled Adaptations,C200 - Main Contractor,17/07/2012,1049181-1,2400,REDACTED PERSONAL DATA,REDACTED PERSONAL DATA
Tendring DC,http://statistics.data.gov.uk/id/local-authority-district/22UN,Life Opportunities,H860 - Disabled Adaptations,C200 - Main Contractor,17/07/2012,1049181-2,2405,REDACTED PERSONAL DATA,REDACTED PERSONAL DATA
Tendring DC,http://statistics.data.gov.uk/id/local-authority-district/22UN,Life Opportunities,H860 - Disabled Adaptations,C200 - Main Contractor,31/07/2012,1049375-1,389,REDACTED PERSONAL DATA,REDACTED PERSONAL DATA
Tendring DC,http://statistics.data.gov.uk/id/local-authority-district/22UN,Life Opportunities,H860 - Disabled Adaptations,C200 - Main Contractor,31/07/2012,1049375-2,305,REDACTED PERSONAL DATA,REDACTED PERSONAL DATA
Tendring DC,http://statistics.data.gov.uk/id/local-authority-district/22UN,Life Opportunities,H705 - Window/Door Replacement,C200 - Main Contractor,17/07/2012,1049186-1,7312.5,REDACTED PERSONAL DATA,REDACTED PERSONAL DATA
Tendring DC,http://statistics.data.gov.uk/id/local-authority-district/22UN,Life Opportunities,8540 - Leisure Centre Clacton,2100 - Building Repairs,17/07/2012,1049248-1,280,2100758 - K A Hockley Ltd,
Tendring DC,http://statistics.data.gov.uk/id/local-authority-district/22UN,Life Opportunities,8540 - Leisure Centre Clacton,4597 - Hired Services - Payments to Contractors,03/07/2012,2097925-1,60,2111123 - K Dwan,June
Tendring DC,http://statistics.data.gov.uk/id/local-authority-district/22UN,Life Opportunities,6160 - Princes Theatre,4040 - Equipment & Tools,10/07/2012,2098269-1,85,2103413 - K H Catering Equipment Hire,Table Cloth Hire
Tendring DC,http://statistics.data.gov.uk/id/local-authority-district/22UN,Life Opportunities,5140 - Homelessness,4683 - Other Homelessness Expenses,03/07/2012,2098095-1,71.84,REDACTED PERSONAL DATA,REDACTED PERSONAL DATA
Tendring DC,http://statistics.data.gov.uk/id/local-authority-district/22UN,Life Opportunities,H800 - Structural Repairs,C200 - Main Contractor,31/07/2012,2098884-1,225,REDACTED PERSONAL DATA,REDACTED PERSONAL DATA
Tendring DC,http://statistics.data.gov.uk/id/local-authority-district/22UN,Life Opportunities,5820 - Harwich Sports Centre,2308 - Energy Costs - Gas (Including LPG),03/07/2012,2097972-1,405.4,2105075 - Kent County Council,Gas Invoice
Tendring DC,http://statistics.data.gov.uk/id/local-authority-district/22UN,Life Opportunities,5820 - Harwich Sports Centre,2308 - Energy Costs - Gas (Including LPG),31/07/2012,2098943-1,189.51,2105075 - Kent County Council,Gas Utility Bill
Tendring DC,http://statistics.data.gov.uk/id/local-authority-district/22UN,Life Opportunities,7520 - Tourism Publicity Marketing Promotion,5160 - Advertising,17/07/2012,2098430-1,301.5,REDACTED PERSONAL DATA,REDACTED PERSONAL DATA
Tendring DC,http://statistics.data.gov.uk/id/local-authority-district/22UN,Life Opportunities,5820 - Harwich Sports Centre,4040 - Equipment & Tools,10/07/2012,2098287-1,82.95,2100870 - Kingswood Leisure Services Ltd,Sports Equipt
Tendring DC,http://statistics.data.gov.uk/id/local-authority-district/22UN,Life Opportunities,5860 - Manningtree Sports Centre,4601 - Hired services - Cleaning,31/07/2012,1049391-1,-38.25,2100851 - KO-SHEEN Contract Cleaning Ltd,CREDIT FOR CONTRACT CLEANING
Tendring DC,http://statistics.data.gov.uk/id/local-authority-district/22UN,Life Opportunities,5860 - Manningtree Sports Centre,4601 - Hired services - Cleaning,31/07/2012,1049419-1,229.5,2100851 - KO-SHEEN Contract Cleaning Ltd,CONTRACT CLEANING
Tendring DC,http://statistics.data.gov.uk/id/local-authority-district/22UN,Life Opportunities,H920 - DFGs,C400 - Grant payments,31/07/2012,2099017-1,1686,REDACTED PERSONAL DATA,REDACTED PERSONAL DATA
Tendring DC,http://statistics.data.gov.uk/id/local-authority-district/22UN,Life Opportunities,5480 - HRA - Repair & Maintenance,2018 - Other Responsive Repairs,31/07/2012,2098910-1,185,REDACTED PERSONAL DATA,REDACTED PERSONAL DATA
Tendring DC,http://statistics.data.gov.uk/id/local-authority-district/22UN,Life Opportunities,5800 - Brightlingsea Sports Centre,9250 - Premium Option Card,10/07/2012,2098354-1,70,REDACTED PERSONAL DATA,REDACTED PERSONAL DATA
Tendring DC,http://statistics.data.gov.uk/id/local-authority-district/22UN,Life Opportunities,5240 - HRA - Managing Tenancies,5242 - Tenant Relations,10/07/2012,2098238-1,10,REDACTED PERSONAL DATA,REDACTED PERSONAL DATA
Tendring DC,http://statistics.data.gov.uk/id/local-authority-district/22UN,Life Opportunities,5800 - Brightlingsea Sports Centre,4000 - Furniture,31/07/2012,1049334-1,122.2,2103500 - Liquidline,LIQUIDLINE
Tendring DC,http://statistics.data.gov.uk/id/local-authority-district/22UN,Life Opportunities,8540 - Leisure Centre Clacton,5160 - Advertising,17/07/2012,2098448-1,596,2107277 - Look 5 Ltd,
Tendring DC,http://statistics.data.gov.uk/id/local-authority-district/22UN,Life Opportunities,5860 - Manningtree Sports Centre,4597 - Hired Services - Payments to Contractors,31/07/2012,1049416-1,110,2112059 - Louise Sanders,PILATES INSTRUCTOR
Tendring DC,http://statistics.data.gov.uk/id/local-authority-district/22UN,Life Opportunities,5820 - Harwich Sports Centre,4597 - Hired Services - Payments to Contractors,17/07/2012,2098415-1,120,2112059 - Louise Sanders,Pilates Classes
Tendring DC,http://statistics.data.gov.uk/id/local-authority-district/22UN,Life Opportunities,5860 - Manningtree Sports Centre,4597 - Hired Services - Payments to Contractors,17/07/2012,2098555-1,220,2112059 - Louise Sanders,Pilates Instructor
Tendring DC,http://statistics.data.gov.uk/id/local-authority-district/22UN,Life Opportunities,5820 - Harwich Sports Centre,4597 - Hired Services - Payments to Contractors,31/07/2012,2098946-1,60,2112059 - Louise Sanders,Pilates Classes
Tendring DC,http://statistics.data.gov.uk/id/local-authority-district/22UN,Life Opportunities,6160 - Princes Theatre,4080 - Materials & Consumables,24/07/2012,2098658-1,20.07,2105052 - Maddisons,Cups Coffee
Tendring DC,http://statistics.data.gov.uk/id/local-authority-district/22UN,Life Opportunities,6160 - Princes Theatre,4080 - Materials & Consumables,24/07/2012,2098658-2,32.49,2105052 - Maddisons,Cups Coffee
Tendring DC,http://statistics.data.gov.uk/id/local-authority-district/22UN,Life Opportunities,5240 - HRA - Managing Tenancies,5242 - Tenant Relations,10/07/2012,2098230-1,10,2109350 - Madeline Pound,POUND
Tendring DC,http://statistics.data.gov.uk/id/local-authority-district/22UN,Life Opportunities,6160 - Princes Theatre,2100 - Building Repairs,31/07/2012,1049396-1,285.53,2112396 - Maldon Electrical Services,THEATRE-NEW TANK
Tendring DC,http://statistics.data.gov.uk/id/local-authority-district/22UN,Life Opportunities,5860 - Manningtree Sports Centre,2308 - Energy Costs - Gas (Including LPG),17/07/2012,2098441-1,2631.7,2105903 - Manningtree High School,Manningtree Recharges
Tendring DC,http://statistics.data.gov.uk/id/local-authority-district/22UN,Life Opportunities,5860 - Manningtree Sports Centre,2510 - Water Services - Unmetered,17/07/2012,2098441-2,584.04,2105903 - Manningtree High School,Manningtree Recharges
Tendring DC,http://statistics.data.gov.uk/id/local-authority-district/22UN,Life Opportunities,5860 - Manningtree Sports Centre,2410 - National Non Domestic Rates,17/07/2012,2098441-3,244.99,2105903 - Manningtree High School,Manningtree Recharges
Tendring DC,http://statistics.data.gov.uk/id/local-authority-district/22UN,Life Opportunities,5860 - Manningtree Sports Centre,4597 - Hired Services - Payments to Contractors,17/07/2012,2098441-4,1061.4,2105903 - Manningtree High School,Manningtree Recharges
Tendring DC,http://statistics.data.gov.uk/id/local-authority-district/22UN,Life Opportunities,5240 - HRA - Managing Tenancies,5248 - Estate Management Expenses,17/07/2012,2098459-1,119,REDACTED COMMERCIAL CONFIDENTIALITY,REDACTED COMMERCIAL CONFIDENTIALITY
Tendring DC,http://statistics.data.gov.uk/id/local-authority-district/22UN,Life Opportunities,5140 - Homelessness,4680 - Bed & Breakfast Accommodation,03/07/2012,2097948-1,100,REDACTED PERSONAL DATA,REDACTED PERSONAL DATA
Tendring DC,http://statistics.data.gov.uk/id/local-authority-district/22UN,Life Opportunities,5140 - Homelessness,9032 - Homelessness Accommodation Charges,03/07/2012,2097948-2,-11.75,REDACTED PERSONAL DATA,REDACTED PERSONAL DATA
Tendring DC,http://statistics.data.gov.uk/id/local-authority-district/22UN,Life Opportunities,5140 - Homelessness,4680 - Bed & Breakfast Accommodation,03/07/2012,2097949-1,40,REDACTED PERSONAL DATA,REDACTED PERSONAL DATA
Tendring DC,http://statistics.data.gov.uk/id/local-authority-district/22UN,Life Opportunities,5140 - Homelessness,9032 - Homelessness Accommodation Charges,03/07/2012,2097949-2,-4.7,REDACTED PERSONAL DATA,REDACTED PERSONAL DATA
Tendring DC,http://statistics.data.gov.uk/id/local-authority-district/22UN,Life Opportunities,5140 - Homelessness,4680 - Bed & Breakfast Accommodation,03/07/2012,2097950-1,80,REDACTED PERSONAL DATA,REDACTED PERSONAL DATA
Tendring DC,http://statistics.data.gov.uk/id/local-authority-district/22UN,Life Opportunities,5140 - Homelessness,9032 - Homelessness Accommodation Charges,03/07/2012,2097950-2,-9.4,REDACTED PERSONAL DATA,REDACTED PERSONAL DATA
Tendring DC,http://statistics.data.gov.uk/id/local-authority-district/22UN,Life Opportunities,5140 - Homelessness,4680 - Bed & Breakfast Accommodation,03/07/2012,2097951-1,140,REDACTED PERSONAL DATA,REDACTED PERSONAL DATA
Tendring DC,http://statistics.data.gov.uk/id/local-authority-district/22UN,Life Opportunities,5140 - Homelessness,9032 - Homelessness Accommodation Charges,03/07/2012,2097951-2,-16.45,REDACTED PERSONAL DATA,REDACTED PERSONAL DATA
Tendring DC,http://statistics.data.gov.uk/id/local-authority-district/22UN,Life Opportunities,5140 - Homelessness,4680 - Bed & Breakfast Accommodation,03/07/2012,2097952-1,160,REDACTED PERSONAL DATA,REDACTED PERSONAL DATA
Tendring DC,http://statistics.data.gov.uk/id/local-authority-district/22UN,Life Opportunities,5140 - Homelessness,9032 - Homelessness Accommodation Charges,03/07/2012,2097952-2,-2.35,REDACTED PERSONAL DATA,REDACTED PERSONAL DATA
Tendring DC,http://statistics.data.gov.uk/id/local-authority-district/22UN,Life Opportunities,5140 - Homelessness,4680 - Bed & Breakfast Accommodation,03/07/2012,2097953-1,160,REDACTED PERSONAL DATA,REDACTED PERSONAL DATA
Tendring DC,http://statistics.data.gov.uk/id/local-authority-district/22UN,Life Opportunities,5140 - Homelessness,9032 - Homelessness Accommodation Charges,03/07/2012,2097953-2,-9.4,REDACTED PERSONAL DATA,REDACTED PERSONAL DATA
Tendring DC,http://statistics.data.gov.uk/id/local-authority-district/22UN,Life Opportunities,5140 - Homelessness,4680 - Bed & Breakfast Accommodation,03/07/2012,2097954-1,40,REDACTED PERSONAL DATA,REDACTED PERSONAL DATA
Tendring DC,http://statistics.data.gov.uk/id/local-authority-district/22UN,Life Opportunities,5140 - Homelessness,4680 - Bed & Breakfast Accommodation,03/07/2012,2097955-1,140,REDACTED PERSONAL DATA,REDACTED PERSONAL DATA
Tendring DC,http://statistics.data.gov.uk/id/local-authority-district/22UN,Life Opportunities,5140 - Homelessness,9032 - Homelessness Accommodation Charges,03/07/2012,2097955-2,-16.45,REDACTED PERSONAL DATA,REDACTED PERSONAL DATA
Tendring DC,http://statistics.data.gov.uk/id/local-authority-district/22UN,Life Opportunities,5140 - Homelessness,4680 - Bed & Breakfast Accommodation,03/07/2012,2097956-1,20,REDACTED PERSONAL DATA,REDACTED PERSONAL DATA
Tendring DC,http://statistics.data.gov.uk/id/local-authority-district/22UN,Life Opportunities,5140 - Homelessness,4680 - Bed & Breakfast Accommodation,03/07/2012,2097957-1,140,REDACTED PERSONAL DATA,REDACTED PERSONAL DATA
Tendring DC,http://statistics.data.gov.uk/id/local-authority-district/22UN,Life Opportunities,5140 - Homelessness,9032 - Homelessness Accommodation Charges,03/07/2012,2097957-2,-16.45,REDACTED PERSONAL DATA,REDACTED PERSONAL DATA
Tendring DC,http://statistics.data.gov.uk/id/local-authority-district/22UN,Life Opportunities,5140 - Homelessness,4680 - Bed & Breakfast Accommodation,17/07/2012,2098590-1,100,REDACTED PERSONAL DATA,REDACTED PERSONAL DATA
Tendring DC,http://statistics.data.gov.uk/id/local-authority-district/22UN,Life Opportunities,5140 - Homelessness,9032 - Homelessness Accommodation Charges,17/07/2012,2098590-2,-11.75,REDACTED PERSONAL DATA,REDACTED PERSONAL DATA
Tendring DC,http://statistics.data.gov.uk/id/local-authority-district/22UN,Life Opportunities,5140 - Homelessness,4680 - Bed & Breakfast Accommodation,17/07/2012,2098591-1,140,REDACTED PERSONAL DATA,REDACTED PERSONAL DATA
Tendring DC,http://statistics.data.gov.uk/id/local-authority-district/22UN,Life Opportunities,5140 - Homelessness,9032 - Homelessness Accommodation Charges,17/07/2012,2098591-2,-16.45,REDACTED PERSONAL DATA,REDACTED PERSONAL DATA
Tendring DC,http://statistics.data.gov.uk/id/local-authority-district/22UN,Life Opportunities,5140 - Homelessness,4680 - Bed & Breakfast Accommodation,17/07/2012,2098592-1,420,REDACTED PERSONAL DATA,REDACTED PERSONAL DATA
Tendring DC,http://statistics.data.gov.uk/id/local-authority-district/22UN,Life Opportunities,5140 - Homelessness,9032 - Homelessness Accommodation Charges,17/07/2012,2098592-2,-16.45,REDACTED PERSONAL DATA,REDACTED PERSONAL DATA
Tendring DC,http://statistics.data.gov.uk/id/local-authority-district/22UN,Life Opportunities,5140 - Homelessness,4680 - Bed & Breakfast Accommodation,17/07/2012,2098593-1,140,REDACTED PERSONAL DATA,REDACTED PERSONAL DATA
Tendring DC,http://statistics.data.gov.uk/id/local-authority-district/22UN,Life Opportunities,5140 - Homelessness,9032 - Homelessness Accommodation Charges,17/07/2012,2098593-2,-16.45,REDACTED PERSONAL DATA,REDACTED PERSONAL DATA
Tendring DC,http://statistics.data.gov.uk/id/local-authority-district/22UN,Life Opportunities,5140 - Homelessness,4680 - Bed & Breakfast Accommodation,17/07/2012,2098594-1,140,REDACTED PERSONAL DATA,REDACTED PERSONAL DATA
Tendring DC,http://statistics.data.gov.uk/id/local-authority-district/22UN,Life Opportunities,5140 - Homelessness,9032 - Homelessness Accommodation Charges,17/07/2012,2098594-2,-16.45,REDACTED PERSONAL DATA,REDACTED PERSONAL DATA
Tendring DC,http://statistics.data.gov.uk/id/local-authority-district/22UN,Life Opportunities,5140 - Homelessness,4680 - Bed & Breakfast Accommodation,17/07/2012,2098595-1,140,REDACTED PERSONAL DATA,REDACTED PERSONAL DATA
Tendring DC,http://statistics.data.gov.uk/id/local-authority-district/22UN,Life Opportunities,5140 - Homelessness,9032 - Homelessness Accommodation Charges,17/07/2012,2098595-2,-16.45,REDACTED PERSONAL DATA,REDACTED PERSONAL DATA
Tendring DC,http://statistics.data.gov.uk/id/local-authority-district/22UN,Life Opportunities,5140 - Homelessness,4680 - Bed & Breakfast Accommodation,17/07/2012,2098596-1,40,REDACTED PERSONAL DATA,REDACTED PERSONAL DATA
Tendring DC,http://statistics.data.gov.uk/id/local-authority-district/22UN,Life Opportunities,5140 - Homelessness,9032 - Homelessness Accommodation Charges,17/07/2012,2098596-2,-4.7,REDACTED PERSONAL DATA,REDACTED PERSONAL DATA
Tendring DC,http://statistics.data.gov.uk/id/local-authority-district/22UN,Life Opportunities,5140 - Homelessness,4680 - Bed & Breakfast Accommodation,17/07/2012,2098597-1,360,REDACTED PERSONAL DATA,REDACTED PERSONAL DATA
Tendring DC,http://statistics.data.gov.uk/id/local-authority-district/22UN,Life Opportunities,5140 - Homelessness,9032 - Homelessness Accommodation Charges,17/07/2012,2098597-2,-14.1,REDACTED PERSONAL DATA,REDACTED PERSONAL DATA
Tendring DC,http://statistics.data.gov.uk/id/local-authority-district/22UN,Life Opportunities,5140 - Homelessness,4680 - Bed & Breakfast Accommodation,17/07/2012,2098598-1,100,REDACTED PERSONAL DATA,REDACTED PERSONAL DATA
Tendring DC,http://statistics.data.gov.uk/id/local-authority-district/22UN,Life Opportunities,5140 - Homelessness,9032 - Homelessness Accommodation Charges,17/07/2012,2098598-2,-11.15,REDACTED PERSONAL DATA,REDACTED PERSONAL DATA
Tendring DC,http://statistics.data.gov.uk/id/local-authority-district/22UN,Life Opportunities,5140 - Homelessness,4680 - Bed & Breakfast Accommodation,17/07/2012,2098599-1,140,REDACTED PERSONAL DATA,REDACTED PERSONAL DATA
Tendring DC,http://statistics.data.gov.uk/id/local-authority-district/22UN,Life Opportunities,5140 - Homelessness,9032 - Homelessness Accommodation Charges,17/07/2012,2098599-2,-16.45,REDACTED PERSONAL DATA,REDACTED PERSONAL DATA
Tendring DC,http://statistics.data.gov.uk/id/local-authority-district/22UN,Life Opportunities,5140 - Homelessness,4680 - Bed & Breakfast Accommodation,24/07/2012,2098690-1,400,REDACTED PERSONAL DATA,REDACTED PERSONAL DATA
Tendring DC,http://statistics.data.gov.uk/id/local-authority-district/22UN,Life Opportunities,5140 - Homelessness,9032 - Homelessness Accommodation Charges,24/07/2012,2098690-2,-9.4,REDACTED PERSONAL DATA,REDACTED PERSONAL DATA
Tendring DC,http://statistics.data.gov.uk/id/local-authority-district/22UN,Life Opportunities,5140 - Homelessness,4680 - Bed & Breakfast Accommodation,24/07/2012,2098691-1,100,REDACTED PERSONAL DATA,REDACTED PERSONAL DATA
Tendring DC,http://statistics.data.gov.uk/id/local-authority-district/22UN,Life Opportunities,5140 - Homelessness,9032 - Homelessness Accommodation Charges,24/07/2012,2098691-2,-11.75,REDACTED PERSONAL DATA,REDACTED PERSONAL DATA
Tendring DC,http://statistics.data.gov.uk/id/local-authority-district/22UN,Life Opportunities,5140 - Homelessness,4680 - Bed & Breakfast Accommodation,24/07/2012,2098692-1,420,REDACTED PERSONAL DATA,REDACTED PERSONAL DATA
Tendring DC,http://statistics.data.gov.uk/id/local-authority-district/22UN,Life Opportunities,5140 - Homelessness,9032 - Homelessness Accommodation Charges,24/07/2012,2098692-2,-16.45,REDACTED PERSONAL DATA,REDACTED PERSONAL DATA
Tendring DC,http://statistics.data.gov.uk/id/local-authority-district/22UN,Life Opportunities,5140 - Homelessness,4680 - Bed & Breakfast Accommodation,24/07/2012,2098693-1,60,REDACTED PERSONAL DATA,REDACTED PERSONAL DATA
Tendring DC,http://statistics.data.gov.uk/id/local-authority-district/22UN,Life Opportunities,5140 - Homelessness,9032 - Homelessness Accommodation Charges,24/07/2012,2098693-2,-2.35,REDACTED PERSONAL DATA,REDACTED PERSONAL DATA
Tendring DC,http://statistics.data.gov.uk/id/local-authority-district/22UN,Life Opportunities,7520 - Tourism Publicity Marketing Promotion,5160 - Advertising,31/07/2012,2098976-1,250,REDACTED PERSONAL DATA,REDACTED PERSONAL DATA
Tendring DC,http://statistics.data.gov.uk/id/local-authority-district/22UN,Life Opportunities,5140 - Homelessness,4683 - Other Homelessness Expenses,31/07/2012,1049428-1,550,REDACTED PERSONAL DATA,REDACTED PERSONAL DATA
Tendring DC,http://statistics.data.gov.uk/id/local-authority-district/22UN,Life Opportunities,5140 - Homelessness,4683 - Other Homelessness Expenses,03/07/2012,2098105-1,130.15,REDACTED PERSONAL DATA,REDACTED PERSONAL DATA
Tendring DC,http://statistics.data.gov.uk/id/local-authority-district/22UN,Life Opportunities,5140 - Homelessness,4683 - Other Homelessness Expenses,17/07/2012,2098580-1,675,REDACTED PERSONAL DATA,REDACTED PERSONAL DATA
Tendring DC,http://statistics.data.gov.uk/id/local-authority-district/22UN,Life Opportunities,8510 - Dovercourt Swimming Pool & All Weather Facilities,9250 - Premium Option Card,17/07/2012,2098573-1,58.33,REDACTED PERSONAL DATA,REDACTED PERSONAL DATA
Tendring DC,http://statistics.data.gov.uk/id/local-authority-district/22UN,Life Opportunities,5360 - HRA - Sheltered Units,2208 - Wardens' Allowance,24/07/2012,2098819-1,206.09,REDACTED PERSONAL DATA,REDACTED PERSONAL DATA
Tendring DC,http://statistics.data.gov.uk/id/local-authority-district/22UN,Life Opportunities,9920 - HRA Balance Sheet,B860 - Housing Rents - Cash,10/07/2012,2098365-1,14.2,REDACTED PERSONAL DATA,REDACTED PERSONAL DATA
Tendring DC,http://statistics.data.gov.uk/id/local-authority-district/22UN,Life Opportunities,9920 - HRA Balance Sheet,B860 - Housing Rents - Cash,10/07/2012,2098360-1,14.2,REDACTED PERSONAL DATA,REDACTED PERSONAL DATA
Tendring DC,http://statistics.data.gov.uk/id/local-authority-district/22UN,Life Opportunities,5480 - HRA - Repair & Maintenance,2073 - Smoke Alarm Service/Testing,31/07/2012,1049445-1,3034.8,2111370 - Morrison Facilities Services,GAS SERVICE & REPAIR - SOUTH AREA 12/13
Tendring DC,http://statistics.data.gov.uk/id/local-authority-district/22UN,Life Opportunities,5480 - HRA - Repair & Maintenance,2075 - Gas Service Contract Servicing/Testing (Domestic I,31/07/2012,1049445-2,9996.67,2111370 - Morrison Facilities Services,GAS SERVICE & REPAIR - SOUTH AREA 12/13
Tendring DC,http://statistics.data.gov.uk/id/local-authority-district/22UN,Life Opportunities,5480 - HRA - Repair & Maintenance,2076 - Gas Service Contract Other Refurbishment/Repairs (,31/07/2012,1049445-3,7431.12,2111370 - Morrison Facilities Services,GAS SERVICE & REPAIR - SOUTH AREA 12/13
Tendring DC,http://statistics.data.gov.uk/id/local-authority-district/22UN,Life Opportunities,5480 - HRA - Repair & Maintenance,2073 - Smoke Alarm Service/Testing,03/07/2012,2098157-1,1551.12,2111370 - Morrison Facilities Services,Gas Service & Repair
Tendring DC,http://statistics.data.gov.uk/id/local-authority-district/22UN,Life Opportunities,5480 - HRA - Repair & Maintenance,2075 - Gas Service Contract Servicing/Testing (Domestic I,03/07/2012,2098157-2,5082.59,2111370 - Morrison Facilities Services,Gas Service & Repair
Tendring DC,http://statistics.data.gov.uk/id/local-authority-district/22UN,Life Opportunities,5480 - HRA - Repair & Maintenance,2076 - Gas Service Contract Other Refurbishment/Repairs (,03/07/2012,2098157-3,7518.9,2111370 - Morrison Facilities Services,Gas Service & Repair
Tendring DC,http://statistics.data.gov.uk/id/local-authority-district/22UN,Life Opportunities,H800 - Structural Repairs,C200 - Main Contractor,03/07/2012,2098083-1,370,REDACTED PERSONAL DATA,REDACTED PERSONAL DATA
Tendring DC,http://statistics.data.gov.uk/id/local-authority-district/22UN,Life Opportunities,5140 - Homelessness,4683 - Other Homelessness Expenses,03/07/2012,2098100-1,475,REDACTED PERSONAL DATA,REDACTED PERSONAL DATA
Tendring DC,http://statistics.data.gov.uk/id/local-authority-district/22UN,Life Opportunities,5240 - HRA - Managing Tenancies,5242 - Tenant Relations,10/07/2012,2098239-1,10,REDACTED PERSONAL DATA,REDACTED PERSONAL DATA
Tendring DC,http://statistics.data.gov.uk/id/local-authority-district/22UN,Life Opportunities,9920 - HRA Balance Sheet,B860 - Housing Rents - Cash,10/07/2012,2098364-1,14.2,REDACTED PERSONAL DATA,REDACTED PERSONAL DATA
Tendring DC,http://statistics.data.gov.uk/id/local-authority-district/22UN,Life Opportunities,9920 - HRA Balance Sheet,B860 - Housing Rents - Cash,10/07/2012,2098358-1,35.85,REDACTED PERSONAL DATA,REDACTED PERSONAL DATA
Tendring DC,http://statistics.data.gov.uk/id/local-authority-district/22UN,Life Opportunities,9920 - HRA Balance Sheet,B860 - Housing Rents - Cash,17/07/2012,2098571-1,57.76,REDACTED PERSONAL DATA,REDACTED PERSONAL DATA
Tendring DC,http://statistics.data.gov.uk/id/local-authority-district/22UN,Life Opportunities,5140 - Homelessness,4683 - Other Homelessness Expenses,17/07/2012,2098584-1,495,REDACTED PERSONAL DATA,REDACTED PERSONAL DATA
Tendring DC,http://statistics.data.gov.uk/id/local-authority-district/22UN,Life Opportunities,5140 - Homelessness,4683 - Other Homelessness Expenses,24/07/2012,2098798-1,450,REDACTED PERSONAL DATA,REDACTED PERSONAL DATA
Tendring DC,http://statistics.data.gov.uk/id/local-authority-district/22UN,Life Opportunities,8540 - Leisure Centre Clacton,4597 - Hired Services - Payments to Contractors,10/07/2012,2098370-1,523.04,REDACTED PERSONAL DATA,REDACTED PERSONAL DATA
Tendring DC,http://statistics.data.gov.uk/id/local-authority-district/22UN,Life Opportunities,9920 - HRA Balance Sheet,B860 - Housing Rents - Cash,10/07/2012,2098363-1,14.2,REDACTED PERSONAL DATA,REDACTED PERSONAL DATA
Tendring DC,http://statistics.data.gov.uk/id/local-authority-district/22UN,Life Opportunities,5140 - Homelessness,4683 - Other Homelessness Expenses,03/07/2012,2098106-1,1000,REDACTED PERSONAL DATA,REDACTED PERSONAL DATA
Tendring DC,http://statistics.data.gov.uk/id/local-authority-district/22UN,Life Opportunities,9920 - HRA Balance Sheet,B860 - Housing Rents - Cash,17/07/2012,2098576-1,504,REDACTED PERSONAL DATA,REDACTED PERSONAL DATA
Tendring DC,http://statistics.data.gov.uk/id/local-authority-district/22UN,Life Opportunities,9920 - HRA Balance Sheet,B860 - Housing Rents - Cash,03/07/2012,2098122-1,1140.38,REDACTED PERSONAL DATA,REDACTED PERSONAL DATA
Tendring DC,http://statistics.data.gov.uk/id/local-authority-district/22UN,Life Opportunities,H710 - Selected Improvements,C200 - Main Contractor,10/07/2012,2098182-1,435.32,REDACTED COMMERCIAL CONFIDENTIALITY,REDACTED COMMERCIAL CONFIDENTIALITY
Tendring DC,http://statistics.data.gov.uk/id/local-authority-district/22UN,Life Opportunities,9920 - HRA Balance Sheet,B860 - Housing Rents - Cash,10/07/2012,2098359-1,13.2,REDACTED PERSONAL DATA,REDACTED PERSONAL DATA
Tendring DC,http://statistics.data.gov.uk/id/local-authority-district/22UN,Life Opportunities,9920 - HRA Balance Sheet,B860 - Housing Rents - Cash,03/07/2012,2098120-1,887.96,REDACTED PERSONAL DATA,REDACTED PERSONAL DATA
Tendring DC,http://statistics.data.gov.uk/id/local-authority-district/22UN,Life Opportunities,5240 - HRA - Managing Tenancies,5242 - Tenant Relations,10/07/2012,2098237-1,10,REDACTED PERSONAL DATA,REDACTED PERSONAL DATA
Tendring DC,http://statistics.data.gov.uk/id/local-authority-district/22UN,Life Opportunities,5240 - HRA - Managing Tenancies,5242 - Tenant Relations,24/07/2012,2098811-1,10,REDACTED PERSONAL DATA,REDACTED PERSONAL DATA
Tendring DC,http://statistics.data.gov.uk/id/local-authority-district/22UN,Life Opportunities,9920 - HRA Balance Sheet,B860 - Housing Rents - Cash,03/07/2012,2098119-1,459.23,REDACTED PERSONAL DATA,REDACTED PERSONAL DATA
Tendring DC,http://statistics.data.gov.uk/id/local-authority-district/22UN,Life Opportunities,6160 - Princes Theatre,4080 - Materials & Consumables,31/07/2012,1049412-1,16.65,2103915 - MRL Productions,BATTERIES
Tendring DC,http://statistics.data.gov.uk/id/local-authority-district/22UN,Life Opportunities,6160 - Princes Theatre,4040 - Equipment & Tools,17/07/2012,2098442-1,121.4,2103915 - MRL Productions,Batteries/Lamps
Tendring DC,http://statistics.data.gov.uk/id/local-authority-district/22UN,Life Opportunities,6160 - Princes Theatre,4040 - Equipment & Tools,24/07/2012,2098659-1,508,2103915 - MRL Productions,Radio hire
Tendring DC,http://statistics.data.gov.uk/id/local-authority-district/22UN,Life Opportunities,5140 - Homelessness,4683 - Other Homelessness Expenses,03/07/2012,2098097-1,229.25,REDACTED PERSONAL DATA,REDACTED PERSONAL DATA
Tendring DC,http://statistics.data.gov.uk/id/local-authority-district/22UN,Life Opportunities,5240 - HRA - Managing Tenancies,5242 - Tenant Relations,10/07/2012,2098241-1,10,REDACTED PERSONAL DATA,REDACTED PERSONAL DATA
Tendring DC,http://statistics.data.gov.uk/id/local-authority-district/22UN,Life Opportunities,5240 - HRA - Managing Tenancies,5242 - Tenant Relations,24/07/2012,2098815-1,10,REDACTED PERSONAL DATA,REDACTED PERSONAL DATA
Tendring DC,http://statistics.data.gov.uk/id/local-authority-district/22UN,Life Opportunities,8540 - Leisure Centre Clacton,9228 - Swimming Lessons,10/07/2012,2098344-1,21.5,REDACTED PERSONAL DATA,REDACTED PERSONAL DATA
Tendring DC,http://statistics.data.gov.uk/id/local-authority-district/22UN,Life Opportunities,5240 - HRA - Managing Tenancies,6620 - Under Occupation Incentive Scheme,03/07/2012,2097967-1,1000,REDACTED PERSONAL DATA,REDACTED PERSONAL DATA
Tendring DC,http://statistics.data.gov.uk/id/local-authority-district/22UN,Life Opportunities,5140 - Homelessness,4680 - Bed & Breakfast Accommodation,03/07/2012,2098104-1,450,REDACTED PERSONAL DATA,REDACTED PERSONAL DATA
Tendring DC,http://statistics.data.gov.uk/id/local-authority-district/22UN,Life Opportunities,9920 - HRA Balance Sheet,B860 - Housing Rents - Cash,31/07/2012,2098895-1,47.55,REDACTED PERSONAL DATA,REDACTED PERSONAL DATA
Tendring DC,http://statistics.data.gov.uk/id/local-authority-district/22UN,Life Opportunities,9920 - HRA Balance Sheet,B860 - Housing Rents - Cash,17/07/2012,2098577-1,8.87,REDACTED PERSONAL DATA,REDACTED PERSONAL DATA
Tendring DC,http://statistics.data.gov.uk/id/local-authority-district/22UN,Life Opportunities,5140 - Homelessness,4683 - Other Homelessness Expenses,24/07/2012,2098797-1,575,REDACTED PERSONAL DATA,REDACTED PERSONAL DATA
Tendring DC,http://statistics.data.gov.uk/id/local-authority-district/22UN,Life Opportunities,9920 - HRA Balance Sheet,B860 - Housing Rents - Cash,31/07/2012,2098894-1,214.22,REDACTED PERSONAL DATA,REDACTED PERSONAL DATA
Tendring DC,http://statistics.data.gov.uk/id/local-authority-district/22UN,Life Opportunities,5140 - Homelessness,4683 - Other Homelessness Expenses,17/07/2012,2098585-1,560,REDACTED PERSONAL DATA,REDACTED PERSONAL DATA
Tendring DC,http://statistics.data.gov.uk/id/local-authority-district/22UN,Life Opportunities,9920 - HRA Balance Sheet,B860 - Housing Rents - Cash,10/07/2012,2098362-1,14.2,REDACTED PERSONAL DATA,REDACTED PERSONAL DATA
Tendring DC,http://statistics.data.gov.uk/id/local-authority-district/22UN,Life Opportunities,9920 - HRA Balance Sheet,B860 - Housing Rents - Cash,17/07/2012,2098572-1,274.41,REDACTED PERSONAL DATA,REDACTED PERSONAL DATA
Tendring DC,http://statistics.data.gov.uk/id/local-authority-district/22UN,Life Opportunities,9920 - HRA Balance Sheet,B860 - Housing Rents - Cash,24/07/2012,2098796-1,9.34,REDACTED PERSONAL DATA,REDACTED PERSONAL DATA
Tendring DC,http://statistics.data.gov.uk/id/local-authority-district/22UN,Life Opportunities,9920 - HRA Balance Sheet,B860 - Housing Rents - Cash,03/07/2012,2098118-1,337.77,REDACTED PERSONAL DATA,REDACTED PERSONAL DATA
Tendring DC,http://statistics.data.gov.uk/id/local-authority-district/22UN,Life Opportunities,9920 - HRA Balance Sheet,B860 - Housing Rents - Cash,03/07/2012,2098176-1,588.68,REDACTED PERSONAL DATA,REDACTED PERSONAL DATA
Tendring DC,http://statistics.data.gov.uk/id/local-authority-district/22UN,Life Opportunities,9920 - HRA Balance Sheet,B860 - Housing Rents - Cash,10/07/2012,2098361-1,14.2,REDACTED PERSONAL DATA,REDACTED PERSONAL DATA
Tendring DC,http://statistics.data.gov.uk/id/local-authority-district/22UN,Life Opportunities,9920 - HRA Balance Sheet,B860 - Housing Rents - Cash,03/07/2012,2098117-1,271.86,REDACTED PERSONAL DATA,REDACTED PERSONAL DATA
Tendring DC,http://statistics.data.gov.uk/id/local-authority-district/22UN,Life Opportunities,5240 - HRA - Managing Tenancies,5242 - Tenant Relations,03/07/2012,2097966-1,10,REDACTED PERSONAL DATA,REDACTED PERSONAL DATA
Tendring DC,http://statistics.data.gov.uk/id/local-authority-district/22UN,Life Opportunities,5240 - HRA - Managing Tenancies,5242 - Tenant Relations,10/07/2012,2098235-1,10,REDACTED PERSONAL DATA,REDACTED PERSONAL DATA
Tendring DC,http://statistics.data.gov.uk/id/local-authority-district/22UN,Life Opportunities,5240 - HRA - Managing Tenancies,5242 - Tenant Relations,24/07/2012,2098809-1,10,REDACTED PERSONAL DATA,REDACTED PERSONAL DATA
Tendring DC,http://statistics.data.gov.uk/id/local-authority-district/22UN,Life Opportunities,5140 - Homelessness,4680 - Bed & Breakfast Accommodation,03/07/2012,2098091-1,300,REDACTED PERSONAL DATA,REDACTED PERSONAL DATA
Tendring DC,http://statistics.data.gov.uk/id/local-authority-district/22UN,Life Opportunities,5820 - Harwich Sports Centre,4597 - Hired Services - Payments to Contractors,10/07/2012,2098270-1,50,2112299 - My Time Fitness Ltd,Fitness Class
Tendring DC,http://statistics.data.gov.uk/id/local-authority-district/22UN,Life Opportunities,7600 - Tourist Information Centres,9356 - Commission Sales,17/07/2012,2098604-1,987.58,2110032 - National Express Ltd,June Commission
Tendring DC,http://statistics.data.gov.uk/id/local-authority-district/22UN,Life Opportunities,H920 - DFGs,C400 - Grant payments,31/07/2012,2098899-1,912,REDACTED PERSONAL DATA,REDACTED PERSONAL DATA
Tendring DC,http://statistics.data.gov.uk/id/local-authority-district/22UN,Life Opportunities,6160 - Princes Theatre,5160 - Advertising,03/07/2012,1049104-1,129.5,2100989 - Newsquest (London) Ltd,THEATRE ADS
Tendring DC,http://statistics.data.gov.uk/id/local-authority-district/22UN,Life Opportunities,8540 - Leisure Centre Clacton,5160 - Advertising,17/07/2012,1049192-1,450,2100989 - Newsquest (London) Ltd,
Tendring DC,http://statistics.data.gov.uk/id/local-authority-district/22UN,Life Opportunities,6160 - Princes Theatre,5160 - Advertising,31/07/2012,1049392-1,-31,2100989 - Newsquest (London) Ltd,THEATRE ADS
Tendring DC,http://statistics.data.gov.uk/id/local-authority-district/22UN,Life Opportunities,6160 - Princes Theatre,5160 - Advertising,31/07/2012,1049410-1,129.5,2100989 - Newsquest (London) Ltd,THEATRE ADS
Tendring DC,http://statistics.data.gov.uk/id/local-authority-district/22UN,Life Opportunities,6160 - Princes Theatre,5160 - Advertising,17/07/2012,2098437-1,129.5,REDACTED PERSONAL DATA,REDACTED PERSONAL DATA
Tendring DC,http://statistics.data.gov.uk/id/local-authority-district/22UN,Life Opportunities,6160 - Princes Theatre,5160 - Advertising,31/07/2012,2098973-1,130.95,REDACTED PERSONAL DATA,REDACTED PERSONAL DATA
Tendring DC,http://statistics.data.gov.uk/id/local-authority-district/22UN,Life Opportunities,5140 - Homelessness,4682 - Rent Deposit Guarantees,03/07/2012,2098094-1,296.77,REDACTED PERSONAL DATA,REDACTED PERSONAL DATA
Tendring DC,http://statistics.data.gov.uk/id/local-authority-district/22UN,Life Opportunities,5140 - Homelessness,4682 - Rent Deposit Guarantees,03/07/2012,2098103-1,700,REDACTED PERSONAL DATA,REDACTED PERSONAL DATA
Tendring DC,http://statistics.data.gov.uk/id/local-authority-district/22UN,Life Opportunities,7520 - Tourism Publicity Marketing Promotion,4880 - Subscriptions Paid,03/07/2012,2097969-1,205,2112380 - NOEA,NOEA Membership
Tendring DC,http://statistics.data.gov.uk/id/local-authority-district/22UN,Life Opportunities,5140 - Homelessness,4683 - Other Homelessness Expenses,03/07/2012,2098102-1,210,REDACTED PERSONAL DATA,REDACTED PERSONAL DATA
Tendring DC,http://statistics.data.gov.uk/id/local-authority-district/22UN,Life Opportunities,5140 - Homelessness,4683 - Other Homelessness Expenses,24/07/2012,2098805-1,5,REDACTED PERSONAL DATA,REDACTED PERSONAL DATA
Tendring DC,http://statistics.data.gov.uk/id/local-authority-district/22UN,Life Opportunities,5260 - HRA - Rent Collection And Accounting,4757 - IT External Charges,31/07/2012,1049390-1,-1087.43,REDACTED PERSONAL DATA,REDACTED PERSONAL DATA
Tendring DC,http://statistics.data.gov.uk/id/local-authority-district/22UN,Life Opportunities,5220 - HRA - Policy & Management,5930 - Business Planning Expenses,31/07/2012,2098928-1,1194.86,REDACTED COMMERCIAL CONFIDENTIALITY,REDACTED COMMERCIAL CONFIDENTIALITY
Tendring DC,http://statistics.data.gov.uk/id/local-authority-district/22UN,Life Opportunities,5260 - HRA - Rent Collection And Accounting,4757 - IT External Charges,31/07/2012,2098945-1,21120.47,REDACTED PERSONAL DATA,REDACTED PERSONAL DATA
Tendring DC,http://statistics.data.gov.uk/id/local-authority-district/22UN,Life Opportunities,6160 - Princes Theatre,2100 - Building Repairs,24/07/2012,2098669-1,300.75,2104748 - Novar Systems Ltd,Fire Safety Service Charge
Tendring DC,http://statistics.data.gov.uk/id/local-authority-district/22UN,Life Opportunities,5140 - Homelessness,4683 - Other Homelessness Expenses,17/07/2012,2098464-1,280,REDACTED COMMERCIAL CONFIDENTIALITY,REDACTED COMMERCIAL CONFIDENTIALITY
Tendring DC,http://statistics.data.gov.uk/id/local-authority-district/22UN,Life Opportunities,5240 - HRA - Managing Tenancies,4644 - Energy Performance Certificate Costs,10/07/2012,2098262-1,495,REDACTED COMMERCIAL CONFIDENTIALITY,REDACTED COMMERCIAL CONFIDENTIALITY
Tendring DC,http://statistics.data.gov.uk/id/local-authority-district/22UN,Life Opportunities,8520 - Frinton & Walton Swimming Pool,2100 - Building Repairs,31/07/2012,2098964-1,163.32,REDACTED PERSONAL DATA,REDACTED PERSONAL DATA
Tendring DC,http://statistics.data.gov.uk/id/local-authority-district/22UN,Life Opportunities,1650 - Building Services Service Unit,4400 - Maintenance Under Service Agreements,17/07/2012,2098452-1,81.17,2107118 - Oce Finance,TCD500 Rental
Tendring DC,http://statistics.data.gov.uk/id/local-authority-district/22UN,Life Opportunities,1670 - Engineering Services Manager,4400 - Maintenance Under Service Agreements,17/07/2012,2098452-2,405.83,2107118 - Oce Finance,TCD500 Rental
Tendring DC,http://statistics.data.gov.uk/id/local-authority-district/22UN,Life Opportunities,5140 - Homelessness,4683 - Other Homelessness Expenses,03/07/2012,2098088-1,320,REDACTED PERSONAL DATA,REDACTED PERSONAL DATA
Tendring DC,http://statistics.data.gov.uk/id/local-authority-district/22UN,Life Opportunities,5140 - Homelessness,4683 - Other Homelessness Expenses,03/07/2012,2098089-1,240,REDACTED PERSONAL DATA,REDACTED PERSONAL DATA
Tendring DC,http://statistics.data.gov.uk/id/local-authority-district/22UN,Life Opportunities,5140 - Homelessness,4683 - Other Homelessness Expenses,03/07/2012,2098090-1,240,REDACTED PERSONAL DATA,REDACTED PERSONAL DATA
Tendring DC,http://statistics.data.gov.uk/id/local-authority-district/22UN,Life Opportunities,5140 - Homelessness,4683 - Other Homelessness Expenses,03/07/2012,2098092-1,240,REDACTED PERSONAL DATA,REDACTED PERSONAL DATA
Tendring DC,http://statistics.data.gov.uk/id/local-authority-district/22UN,Life Opportunities,5140 - Homelessness,4683 - Other Homelessness Expenses,03/07/2012,2098096-1,466.63,REDACTED PERSONAL DATA,REDACTED PERSONAL DATA
Tendring DC,http://statistics.data.gov.uk/id/local-authority-district/22UN,Life Opportunities,5140 - Homelessness,4683 - Other Homelessness Expenses,17/07/2012,2098582-1,67.57,REDACTED PERSONAL DATA,REDACTED PERSONAL DATA
Tendring DC,http://statistics.data.gov.uk/id/local-authority-district/22UN,Life Opportunities,5140 - Homelessness,4683 - Other Homelessness Expenses,17/07/2012,2098583-1,650,REDACTED PERSONAL DATA,REDACTED PERSONAL DATA
Tendring DC,http://statistics.data.gov.uk/id/local-authority-district/22UN,Life Opportunities,5820 - Harwich Sports Centre,5311 - General Provisions - Vending,03/07/2012,1049095-1,-27.68,2101083 - Osgood Smith,CHARGING ERROR ON GOODS
Tendring DC,http://statistics.data.gov.uk/id/local-authority-district/22UN,Life Opportunities,5860 - Manningtree Sports Centre,5311 - General Provisions - Vending,31/07/2012,1049417-1,34.98,2101083 - Osgood Smith,VENDING SUPPLIES
Tendring DC,http://statistics.data.gov.uk/id/local-authority-district/22UN,Life Opportunities,5860 - Manningtree Sports Centre,5311 - General Provisions - Vending,03/07/2012,2097909-1,81.46,2101083 - Osgood Smith,Vending Supplies
Tendring DC,http://statistics.data.gov.uk/id/local-authority-district/22UN,Life Opportunities,5820 - Harwich Sports Centre,5311 - General Provisions - Vending,03/07/2012,2097936-1,82.67,2101083 - Osgood Smith,Canteen Goods
Tendring DC,http://statistics.data.gov.uk/id/local-authority-district/22UN,Life Opportunities,5860 - Manningtree Sports Centre,5311 - General Provisions - Vending,03/07/2012,2097970-1,331.68,2101083 - Osgood Smith,Vending Supplies
Tendring DC,http://statistics.data.gov.uk/id/local-authority-district/22UN,Life Opportunities,8510 - Dovercourt Swimming Pool & All Weather Facilities,5311 - General Provisions - Vending,03/07/2012,2098030-1,24.5,2101083 - Osgood Smith,Dovercourt Pool
Tendring DC,http://statistics.data.gov.uk/id/local-authority-district/22UN,Life Opportunities,8510 - Dovercourt Swimming Pool & All Weather Facilities,5311 - General Provisions - Vending,03/07/2012,2098031-1,143.18,2101083 - Osgood Smith,Dovercourt Pool
Tendring DC,http://statistics.data.gov.uk/id/local-authority-district/22UN,Life Opportunities,5800 - Brightlingsea Sports Centre,5316 - General Provisions,03/07/2012,2098050-1,155.26,2101083 - Osgood Smith,Osgood Smith
Tendring DC,http://statistics.data.gov.uk/id/local-authority-district/22UN,Life Opportunities,5820 - Harwich Sports Centre,5311 - General Provisions - Vending,10/07/2012,2098184-1,39.6,2101083 - Osgood Smith,Canteen goods
Tendring DC,http://statistics.data.gov.uk/id/local-authority-district/22UN,Life Opportunities,5860 - Manningtree Sports Centre,5311 - General Provisions - Vending,10/07/2012,2098185-1,100.56,2101083 - Osgood Smith,Vending Supplier
Tendring DC,http://statistics.data.gov.uk/id/local-authority-district/22UN,Life Opportunities,8510 - Dovercourt Swimming Pool & All Weather Facilities,5311 - General Provisions - Vending,10/07/2012,2098268-1,26.94,2101083 - Osgood Smith,Dovercourt Pool
Tendring DC,http://statistics.data.gov.uk/id/local-authority-district/22UN,Life Opportunities,6160 - Princes Theatre,5306 - Confectionary,17/07/2012,2098435-1,24.03,REDACTED PERSONAL DATA,REDACTED PERSONAL DATA
Tendring DC,http://statistics.data.gov.uk/id/local-authority-district/22UN,Life Opportunities,6160 - Princes Theatre,5306 - Confectionary,17/07/2012,2098436-1,15.58,REDACTED PERSONAL DATA,REDACTED PERSONAL DATA
Tendring DC,http://statistics.data.gov.uk/id/local-authority-district/22UN,Life Opportunities,8520 - Frinton & Walton Swimming Pool,5311 - General Provisions - Vending,17/07/2012,2098550-1,346.32,2101083 - Osgood Smith,Frinton & Walton Pool
Tendring DC,http://statistics.data.gov.uk/id/local-authority-district/22UN,Life Opportunities,8520 - Frinton & Walton Swimming Pool,5311 - General Provisions - Vending,17/07/2012,2098551-1,67.43,2101083 - Osgood Smith,Frinton & Walton Pool
Tendring DC,http://statistics.data.gov.uk/id/local-authority-district/22UN,Life Opportunities,8520 - Frinton & Walton Swimming Pool,5311 - General Provisions - Vending,17/07/2012,2098552-1,21.98,2101083 - Osgood Smith,Frinton & Walton Pool
Tendring DC,http://statistics.data.gov.uk/id/local-authority-district/22UN,Life Opportunities,5860 - Manningtree Sports Centre,5311 - General Provisions - Vending,17/07/2012,2098553-1,279.62,2101083 - Osgood Smith,Vending Supplies
Tendring DC,http://statistics.data.gov.uk/id/local-authority-district/22UN,Life Opportunities,5820 - Harwich Sports Centre,5311 - General Provisions - Vending,24/07/2012,2098667-1,149.7,2101083 - Osgood Smith,Canteen Goods
Tendring DC,http://statistics.data.gov.uk/id/local-authority-district/22UN,Life Opportunities,5860 - Manningtree Sports Centre,5311 - General Provisions - Vending,24/07/2012,2098668-1,246.77,2101083 - Osgood Smith,Vending Supplies
Tendring DC,http://statistics.data.gov.uk/id/local-authority-district/22UN,Life Opportunities,5820 - Harwich Sports Centre,5311 - General Provisions - Vending,31/07/2012,2098938-1,113.42,2101083 - Osgood Smith,Canteen Supplies
Tendring DC,http://statistics.data.gov.uk/id/local-authority-district/22UN,Life Opportunities,5820 - Harwich Sports Centre,5311 - General Provisions - Vending,31/07/2012,2098939-1,76.72,2101083 - Osgood Smith,Canteen Goods
Tendring DC,http://statistics.data.gov.uk/id/local-authority-district/22UN,Life Opportunities,5820 - Harwich Sports Centre,5311 - General Provisions - Vending,31/07/2012,2098940-1,38.67,2101083 - Osgood Smith,Canteen goods
Tendring DC,http://statistics.data.gov.uk/id/local-authority-district/22UN,Life Opportunities,5820 - Harwich Sports Centre,5311 - General Provisions - Vending,31/07/2012,2098941-1,12.5,2101083 - Osgood Smith,Canteen goods
Tendring DC,http://statistics.data.gov.uk/id/local-authority-district/22UN,Life Opportunities,8510 - Dovercourt Swimming Pool & All Weather Facilities,5311 - General Provisions - Vending,31/07/2012,2098969-1,46.12,REDACTED PERSONAL DATA,REDACTED PERSONAL DATA
Tendring DC,http://statistics.data.gov.uk/id/local-authority-district/22UN,Life Opportunities,8510 - Dovercourt Swimming Pool & All Weather Facilities,5311 - General Provisions - Vending,31/07/2012,2098970-1,573.31,REDACTED PERSONAL DATA,REDACTED PERSONAL DATA
Tendring DC,http://statistics.data.gov.uk/id/local-authority-district/22UN,Life Opportunities,8540 - Leisure Centre Clacton,2300 - Energy Costs - Fuel Oil,03/07/2012,2097931-1,1777.7,2107113 - Pace Fuelcare Ltd,
Tendring DC,http://statistics.data.gov.uk/id/local-authority-district/22UN,Life Opportunities,8540 - Leisure Centre Clacton,2300 - Energy Costs - Fuel Oil,10/07/2012,2098366-1,1522.5,2107113 - Pace Fuelcare Ltd,
Tendring DC,http://statistics.data.gov.uk/id/local-authority-district/22UN,Life Opportunities,5240 - HRA - Managing Tenancies,5242 - Tenant Relations,10/07/2012,2098240-1,10,REDACTED PERSONAL DATA,REDACTED PERSONAL DATA
Tendring DC,http://statistics.data.gov.uk/id/local-authority-district/22UN,Life Opportunities,5860 - Manningtree Sports Centre,2100 - Building Repairs,03/07/2012,2097971-1,149,2110984 - Paul Wareing Plumbing & Heating Ltd,New Radiator - Fitness Suite
Tendring DC,http://statistics.data.gov.uk/id/local-authority-district/22UN,Life Opportunities,5140 - Homelessness,4683 - Other Homelessness Expenses,03/07/2012,2098098-1,80,REDACTED PERSONAL DATA,REDACTED PERSONAL DATA
Tendring DC,http://statistics.data.gov.uk/id/local-authority-district/22UN,Life Opportunities,8540 - Leisure Centre Clacton,9246 - Lifestyles Card - Monthly DD,10/07/2012,2098345-1,16.88,REDACTED PERSONAL DATA,REDACTED PERSONAL DATA
Tendring DC,http://statistics.data.gov.uk/id/local-authority-district/22UN,Life Opportunities,H920 - DFGs,C400 - Grant payments,31/07/2012,2098901-1,180,REDACTED PERSONAL DATA,REDACTED PERSONAL DATA
Tendring DC,http://statistics.data.gov.uk/id/local-authority-district/22UN,Life Opportunities,8540 - Leisure Centre Clacton,5160 - Advertising,10/07/2012,2098375-1,150,2101097 - Peter Lockyer Advertising Ltd,
Tendring DC,http://statistics.data.gov.uk/id/local-authority-district/22UN,Life Opportunities,8540 - Leisure Centre Clacton,5160 - Advertising,10/07/2012,2098376-1,150,2101097 - Peter Lockyer Advertising Ltd,
Tendring DC,http://statistics.data.gov.uk/id/local-authority-district/22UN,Life Opportunities,H710 - Selected Improvements,C200 - Main Contractor,03/07/2012,2098175-1,861.9,2101837 - Phelan Construction Ltd,Works to stair towers as valuation 7
Tendring DC,http://statistics.data.gov.uk/id/local-authority-district/22UN,Life Opportunities,5420 - HRA - Communal Cleaning,2706 - Communal Areas Cleaning Expenses,10/07/2012,2098256-1,3521.58,REDACTED PERSONAL DATA,REDACTED PERSONAL DATA
Tendring DC,http://statistics.data.gov.uk/id/local-authority-district/22UN,Life Opportunities,5240 - HRA - Managing Tenancies,5248 - Estate Management Expenses,24/07/2012,2098762-1,50,2107884 - Pinnacle Essex,Cleaning @ 14 Churchill Ct
Tendring DC,http://statistics.data.gov.uk/id/local-authority-district/22UN,Life Opportunities,H720 - Environmental Improvements,C200 - Main Contractor,10/07/2012,1049169-1,7650.85,2110537 - Plasufix Ltd,EXTERNAL CLADDING REPLACEMENT @ POLSTEAD & SEAVIEW
Tendring DC,http://statistics.data.gov.uk/id/local-authority-district/22UN,Life Opportunities,7520 - Tourism Publicity Marketing Promotion,5160 - Advertising,03/07/2012,2097911-1,90,2102483 - Plum Publishing Ltd,Bus & Coach Professional
Tendring DC,http://statistics.data.gov.uk/id/local-authority-district/22UN,Life Opportunities,7520 - Tourism Publicity Marketing Promotion,5160 - Advertising,31/07/2012,2098975-1,90,REDACTED PERSONAL DATA,REDACTED PERSONAL DATA
Tendring DC,http://statistics.data.gov.uk/id/local-authority-district/22UN,Life Opportunities,5480 - HRA - Repair & Maintenance,2018 - Other Responsive Repairs,24/07/2012,1049269-1,310,REDACTED PERSONAL DATA,REDACTED PERSONAL DATA
Tendring DC,http://statistics.data.gov.uk/id/local-authority-district/22UN,Life Opportunities,5480 - HRA - Repair & Maintenance,2001 - Responsive Maintenance - Concrete And Other Extern,24/07/2012,1049309-1,755,REDACTED PERSONAL DATA,REDACTED PERSONAL DATA
Tendring DC,http://statistics.data.gov.uk/id/local-authority-district/22UN,Life Opportunities,5480 - HRA - Repair & Maintenance,2018 - Other Responsive Repairs,24/07/2012,1049310-1,310,REDACTED PERSONAL DATA,REDACTED PERSONAL DATA
Tendring DC,http://statistics.data.gov.uk/id/local-authority-district/22UN,Life Opportunities,5480 - HRA - Repair & Maintenance,2018 - Other Responsive Repairs,24/07/2012,1049311-1,310,REDACTED PERSONAL DATA,REDACTED PERSONAL DATA
Tendring DC,http://statistics.data.gov.uk/id/local-authority-district/22UN,Life Opportunities,5480 - HRA - Repair & Maintenance,2018 - Other Responsive Repairs,24/07/2012,1049312-1,310,REDACTED PERSONAL DATA,REDACTED PERSONAL DATA
Tendring DC,http://statistics.data.gov.uk/id/local-authority-district/22UN,Life Opportunities,5480 - HRA - Repair & Maintenance,2018 - Other Responsive Repairs,24/07/2012,1049313-1,2125,REDACTED PERSONAL DATA,REDACTED PERSONAL DATA
Tendring DC,http://statistics.data.gov.uk/id/local-authority-district/22UN,Life Opportunities,5480 - HRA - Repair & Maintenance,2018 - Other Responsive Repairs,17/07/2012,2098420-1,1175,REDACTED PERSONAL DATA,REDACTED PERSONAL DATA
Tendring DC,http://statistics.data.gov.uk/id/local-authority-district/22UN,Life Opportunities,6160 - Princes Theatre,5160 - Advertising,03/07/2012,1049105-1,150,2111649 - Polka Dot Pantomimes,DONATION FOR SCHOOLS
Tendring DC,http://statistics.data.gov.uk/id/local-authority-district/22UN,Life Opportunities,7520 - Tourism Publicity Marketing Promotion,5160 - Advertising,03/07/2012,2097916-1,235.28,2105923 - Portfolio Display,Bunting
Tendring DC,http://statistics.data.gov.uk/id/local-authority-district/22UN,Life Opportunities,7520 - Tourism Publicity Marketing Promotion,5160 - Advertising,17/07/2012,2098440-1,486,2102789 - Primary Times in Essex,Primary Times
Tendring DC,http://statistics.data.gov.uk/id/local-authority-district/22UN,Life Opportunities,6160 - Princes Theatre,5160 - Advertising,03/07/2012,2097914-1,336,2107459 - Prospector,Poster Distribution
Tendring DC,http://statistics.data.gov.uk/id/local-authority-district/22UN,Life Opportunities,5880 - Management Of Sport & Leisure Facilities,2100 - Building Repairs,03/07/2012,2097973-1,15700,2101172 - Pulse Fitness plc,Gym Equipment
Tendring DC,http://statistics.data.gov.uk/id/local-authority-district/22UN,Life Opportunities,7520 - Tourism Publicity Marketing Promotion,5160 - Advertising,03/07/2012,2097968-1,1680,2112212 - Quantum Theatre,Final Payment - Theatre Production
Tendring DC,http://statistics.data.gov.uk/id/local-authority-district/22UN,Life Opportunities,5820 - Harwich Sports Centre,4400 - Maintenance Under Service Agreements,24/07/2012,2098666-1,187.4,2104698 - Rentokil Initial UK Ltd,Watersafe Contract
Tendring DC,http://statistics.data.gov.uk/id/local-authority-district/22UN,Life Opportunities,1240 - Housing Services Service Unit,4300 - Printing & Stationery,10/07/2012,2098258-1,276.8,REDACTED PERSONAL DATA,REDACTED PERSONAL DATA
Tendring DC,http://statistics.data.gov.uk/id/local-authority-district/22UN,Life Opportunities,8510 - Dovercourt Swimming Pool & All Weather Facilities,4300 - Printing & Stationery,10/07/2012,2098276-1,34.41,2101090 - Ricoh UK Ltd,Dovercourt Pool
Tendring DC,http://statistics.data.gov.uk/id/local-authority-district/22UN,Life Opportunities,1240 - Housing Services Service Unit,4300 - Printing & Stationery,17/07/2012,2098460-1,98.7,REDACTED COMMERCIAL CONFIDENTIALITY,REDACTED COMMERCIAL CONFIDENTIALITY
Tendring DC,http://statistics.data.gov.uk/id/local-authority-district/22UN,Life Opportunities,5480 - HRA - Repair & Maintenance,2088 - Disabled Adaptations,03/07/2012,1049091-1,121.63,REDACTED PERSONAL DATA,REDACTED PERSONAL DATA
Tendring DC,http://statistics.data.gov.uk/id/local-authority-district/22UN,Life Opportunities,H795 - Upgrade Fire Alarms (SHUs),C200 - Main Contractor,17/07/2012,1049182-1,154.88,REDACTED PERSONAL DATA,REDACTED PERSONAL DATA
Tendring DC,http://statistics.data.gov.uk/id/local-authority-district/22UN,Life Opportunities,H805 - Major Refurbishment of Heating,C200 - Main Contractor,31/07/2012,1049376-1,1724.4,REDACTED PERSONAL DATA,REDACTED PERSONAL DATA
Tendring DC,http://statistics.data.gov.uk/id/local-authority-district/22UN,Life Opportunities,5480 - HRA - Repair & Maintenance,2088 - Disabled Adaptations,31/07/2012,1049377-1,63.4,REDACTED PERSONAL DATA,REDACTED PERSONAL DATA
Tendring DC,http://statistics.data.gov.uk/id/local-authority-district/22UN,Life Opportunities,5480 - HRA - Repair & Maintenance,2088 - Disabled Adaptations,31/07/2012,1049378-1,91.22,REDACTED PERSONAL DATA,REDACTED PERSONAL DATA
Tendring DC,http://statistics.data.gov.uk/id/local-authority-district/22UN,Life Opportunities,5480 - HRA - Repair & Maintenance,2088 - Disabled Adaptations,31/07/2012,1049379-1,105.89,REDACTED PERSONAL DATA,REDACTED PERSONAL DATA
Tendring DC,http://statistics.data.gov.uk/id/local-authority-district/22UN,Life Opportunities,5480 - HRA - Repair & Maintenance,2088 - Disabled Adaptations,31/07/2012,1049380-1,58.76,REDACTED PERSONAL DATA,REDACTED PERSONAL DATA
Tendring DC,http://statistics.data.gov.uk/id/local-authority-district/22UN,Life Opportunities,5480 - HRA - Repair & Maintenance,2088 - Disabled Adaptations,31/07/2012,1049381-1,269.85,REDACTED PERSONAL DATA,REDACTED PERSONAL DATA
Tendring DC,http://statistics.data.gov.uk/id/local-authority-district/22UN,Life Opportunities,5480 - HRA - Repair & Maintenance,2088 - Disabled Adaptations,31/07/2012,1049382-1,35.13,REDACTED PERSONAL DATA,REDACTED PERSONAL DATA
Tendring DC,http://statistics.data.gov.uk/id/local-authority-district/22UN,Life Opportunities,5480 - HRA - Repair & Maintenance,2088 - Disabled Adaptations,10/07/2012,2098312-1,121.63,REDACTED PERSONAL DATA,REDACTED PERSONAL DATA
Tendring DC,http://statistics.data.gov.uk/id/local-authority-district/22UN,Life Opportunities,5480 - HRA - Repair & Maintenance,2088 - Disabled Adaptations,10/07/2012,2098313-1,38.44,REDACTED PERSONAL DATA,REDACTED PERSONAL DATA
Tendring DC,http://statistics.data.gov.uk/id/local-authority-district/22UN,Life Opportunities,5480 - HRA - Repair & Maintenance,2088 - Disabled Adaptations,10/07/2012,2098314-1,121.63,REDACTED PERSONAL DATA,REDACTED PERSONAL DATA
Tendring DC,http://statistics.data.gov.uk/id/local-authority-district/22UN,Life Opportunities,5480 - HRA - Repair & Maintenance,2088 - Disabled Adaptations,10/07/2012,2098315-1,211.95,REDACTED PERSONAL DATA,REDACTED PERSONAL DATA
Tendring DC,http://statistics.data.gov.uk/id/local-authority-district/22UN,Life Opportunities,5480 - HRA - Repair & Maintenance,2000 - Responsive Maintenance - Miscellaneous,17/07/2012,2098609-1,160136.76,2101187 - Roalco Limited,
Tendring DC,http://statistics.data.gov.uk/id/local-authority-district/22UN,Life Opportunities,5480 - HRA - Repair & Maintenance,2088 - Disabled Adaptations,24/07/2012,2098639-1,165.29,REDACTED PERSONAL DATA,REDACTED PERSONAL DATA
Tendring DC,http://statistics.data.gov.uk/id/local-authority-district/22UN,Life Opportunities,5480 - HRA - Repair & Maintenance,2088 - Disabled Adaptations,24/07/2012,2098645-1,58.76,REDACTED PERSONAL DATA,REDACTED PERSONAL DATA
Tendring DC,http://statistics.data.gov.uk/id/local-authority-district/22UN,Life Opportunities,5480 - HRA - Repair & Maintenance,2088 - Disabled Adaptations,24/07/2012,2098646-1,105.89,REDACTED PERSONAL DATA,REDACTED PERSONAL DATA
Tendring DC,http://statistics.data.gov.uk/id/local-authority-district/22UN,Life Opportunities,5480 - HRA - Repair & Maintenance,2088 - Disabled Adaptations,24/07/2012,2098647-1,243.26,REDACTED PERSONAL DATA,REDACTED PERSONAL DATA
Tendring DC,http://statistics.data.gov.uk/id/local-authority-district/22UN,Life Opportunities,5480 - HRA - Repair & Maintenance,2088 - Disabled Adaptations,24/07/2012,2098648-1,121.63,REDACTED PERSONAL DATA,REDACTED PERSONAL DATA
Tendring DC,http://statistics.data.gov.uk/id/local-authority-district/22UN,Life Opportunities,5480 - HRA - Repair & Maintenance,2088 - Disabled Adaptations,24/07/2012,2098649-1,121.63,REDACTED PERSONAL DATA,REDACTED PERSONAL DATA
Tendring DC,http://statistics.data.gov.uk/id/local-authority-district/22UN,Life Opportunities,H800 - Structural Repairs,C200 - Main Contractor,17/07/2012,1049184-1,5809,REDACTED PERSONAL DATA,REDACTED PERSONAL DATA
Tendring DC,http://statistics.data.gov.uk/id/local-authority-district/22UN,Life Opportunities,5880 - Management Of Sport & Leisure Facilities,2100 - Building Repairs,17/07/2012,1049185-1,576,2101893 - Rose Builders Ltd,CLACTON LEISURE CENTRE
Tendring DC,http://statistics.data.gov.uk/id/local-authority-district/22UN,Life Opportunities,H800 - Structural Repairs,C200 - Main Contractor,10/07/2012,2098322-1,2263,REDACTED PERSONAL DATA,REDACTED PERSONAL DATA
Tendring DC,http://statistics.data.gov.uk/id/local-authority-district/22UN,Life Opportunities,5240 - HRA - Managing Tenancies,5242 - Tenant Relations,10/07/2012,2098236-1,10,REDACTED PERSONAL DATA,REDACTED PERSONAL DATA
Tendring DC,http://statistics.data.gov.uk/id/local-authority-district/22UN,Life Opportunities,5240 - HRA - Managing Tenancies,5242 - Tenant Relations,24/07/2012,2098807-1,10,REDACTED PERSONAL DATA,REDACTED PERSONAL DATA
Tendring DC,http://statistics.data.gov.uk/id/local-authority-district/22UN,Life Opportunities,5240 - HRA - Managing Tenancies,5242 - Tenant Relations,10/07/2012,2098233-1,10,2101129 - Roy Payne,PAYNE
Tendring DC,http://statistics.data.gov.uk/id/local-authority-district/22UN,Life Opportunities,5240 - HRA - Managing Tenancies,5242 - Tenant Relations,24/07/2012,2098812-1,10,REDACTED PERSONAL DATA,REDACTED PERSONAL DATA
Tendring DC,http://statistics.data.gov.uk/id/local-authority-district/22UN,Life Opportunities,7240 - Electoral Registration Expenses,4700 - Postage,03/07/2012,2098076-1,1.32,2101139 - Royal Mail,Electoral Postage
Tendring DC,http://statistics.data.gov.uk/id/local-authority-district/22UN,Life Opportunities,5240 - HRA - Managing Tenancies,5242 - Tenant Relations,10/07/2012,2098260-1,30.14,REDACTED PERSONAL DATA,REDACTED PERSONAL DATA
Tendring DC,http://statistics.data.gov.uk/id/local-authority-district/22UN,Life Opportunities,6740 - Careline,4700 - Postage,10/07/2012,2098328-1,11.17,2101139 - Royal Mail,Prepaid Postage
Tendring DC,http://statistics.data.gov.uk/id/local-authority-district/22UN,Life Opportunities,5240 - HRA - Managing Tenancies,5242 - Tenant Relations,17/07/2012,2098466-1,2812.98,REDACTED COMMERCIAL CONFIDENTIALITY,REDACTED COMMERCIAL CONFIDENTIALITY
Tendring DC,http://statistics.data.gov.uk/id/local-authority-district/22UN,Life Opportunities,5260 - HRA - Rent Collection And Accounting,4700 - Postage,17/07/2012,2098467-1,49.55,REDACTED COMMERCIAL CONFIDENTIALITY,REDACTED COMMERCIAL CONFIDENTIALITY
Tendring DC,http://statistics.data.gov.uk/id/local-authority-district/22UN,Life Opportunities,5240 - HRA - Managing Tenancies,5242 - Tenant Relations,17/07/2012,2098468-1,70,REDACTED COMMERCIAL CONFIDENTIALITY,REDACTED COMMERCIAL CONFIDENTIALITY
Tendring DC,http://statistics.data.gov.uk/id/local-authority-district/22UN,Life Opportunities,5240 - HRA - Managing Tenancies,5242 - Tenant Relations,17/07/2012,2098490-1,48,REDACTED COMMERCIAL CONFIDENTIALITY,REDACTED COMMERCIAL CONFIDENTIALITY
Tendring DC,http://statistics.data.gov.uk/id/local-authority-district/22UN,Life Opportunities,8540 - Leisure Centre Clacton,2100 - Building Repairs,17/07/2012,1049180-1,360,2109169 - S J Leisure Contractors Ltd,
Tendring DC,http://statistics.data.gov.uk/id/local-authority-district/22UN,Life Opportunities,H860 - Disabled Adaptations,C200 - Main Contractor,03/07/2012,1049086-1,650,REDACTED PERSONAL DATA,REDACTED PERSONAL DATA
Tendring DC,http://statistics.data.gov.uk/id/local-authority-district/22UN,Life Opportunities,H860 - Disabled Adaptations,C200 - Main Contractor,03/07/2012,1049086-2,100,REDACTED PERSONAL DATA,REDACTED PERSONAL DATA
Tendring DC,http://statistics.data.gov.uk/id/local-authority-district/22UN,Life Opportunities,5480 - HRA - Repair & Maintenance,2088 - Disabled Adaptations,03/07/2012,1049087-1,325,REDACTED PERSONAL DATA,REDACTED PERSONAL DATA
Tendring DC,http://statistics.data.gov.uk/id/local-authority-district/22UN,Life Opportunities,5480 - HRA - Repair & Maintenance,2088 - Disabled Adaptations,03/07/2012,1049087-2,59.55,REDACTED PERSONAL DATA,REDACTED PERSONAL DATA
Tendring DC,http://statistics.data.gov.uk/id/local-authority-district/22UN,Life Opportunities,H860 - Disabled Adaptations,C200 - Main Contractor,03/07/2012,1049088-1,1950,REDACTED COMMERCIAL CONFIDENTIALITY,REDACTED COMMERCIAL CONFIDENTIALITY
Tendring DC,http://statistics.data.gov.uk/id/local-authority-district/22UN,Life Opportunities,H860 - Disabled Adaptations,C200 - Main Contractor,03/07/2012,1049088-2,700,REDACTED COMMERCIAL CONFIDENTIALITY,REDACTED COMMERCIAL CONFIDENTIALITY
Tendring DC,http://statistics.data.gov.uk/id/local-authority-district/22UN,Life Opportunities,5480 - HRA - Repair & Maintenance,2088 - Disabled Adaptations,31/07/2012,1049373-1,193.77,REDACTED PERSONAL DATA,REDACTED PERSONAL DATA
Tendring DC,http://statistics.data.gov.uk/id/local-authority-district/22UN,Life Opportunities,5480 - HRA - Repair & Maintenance,2088 - Disabled Adaptations,31/07/2012,1049373-2,32,REDACTED PERSONAL DATA,REDACTED PERSONAL DATA
Tendring DC,http://statistics.data.gov.uk/id/local-authority-district/22UN,Life Opportunities,5480 - HRA - Repair & Maintenance,2088 - Disabled Adaptations,31/07/2012,1049374-1,365.35,REDACTED PERSONAL DATA,REDACTED PERSONAL DATA
Tendring DC,http://statistics.data.gov.uk/id/local-authority-district/22UN,Life Opportunities,5480 - HRA - Repair & Maintenance,2088 - Disabled Adaptations,31/07/2012,1049374-2,62,REDACTED PERSONAL DATA,REDACTED PERSONAL DATA
Tendring DC,http://statistics.data.gov.uk/id/local-authority-district/22UN,Life Opportunities,H920 - DFGs,C400 - Grant payments,03/07/2012,2098107-1,5282.94,REDACTED PERSONAL DATA,REDACTED PERSONAL DATA
Tendring DC,http://statistics.data.gov.uk/id/local-authority-district/22UN,Life Opportunities,5860 - Manningtree Sports Centre,4597 - Hired Services - Payments to Contractors,17/07/2012,2098443-1,500,2105993 - SAFE,Child Protection
Tendring DC,http://statistics.data.gov.uk/id/local-authority-district/22UN,Life Opportunities,H860 - Disabled Adaptations,C200 - Main Contractor,31/07/2012,1049385-1,6320.75,REDACTED PERSONAL DATA,REDACTED PERSONAL DATA
Tendring DC,http://statistics.data.gov.uk/id/local-authority-district/22UN,Life Opportunities,H705 - Window/Door Replacement,C200 - Main Contractor,31/07/2012,1049383-1,250,REDACTED PERSONAL DATA,REDACTED PERSONAL DATA
Tendring DC,http://statistics.data.gov.uk/id/local-authority-district/22UN,Life Opportunities,H705 - Window/Door Replacement,C200 - Main Contractor,31/07/2012,1049384-1,2176,REDACTED PERSONAL DATA,REDACTED PERSONAL DATA
Tendring DC,http://statistics.data.gov.uk/id/local-authority-district/22UN,Life Opportunities,9900 - General Fund Balance Sheet,B382 - Rechargeable Works - Other,10/07/2012,2098181-1,120,REDACTED PERSONAL DATA,REDACTED PERSONAL DATA
Tendring DC,http://statistics.data.gov.uk/id/local-authority-district/22UN,Life Opportunities,6160 - Princes Theatre,4080 - Materials & Consumables,24/07/2012,2098671-1,990,2112345 - Scenic Projects Ltd,Wizard of Oz Scene hire
Tendring DC,http://statistics.data.gov.uk/id/local-authority-district/22UN,Life Opportunities,5140 - Homelessness,4683 - Other Homelessness Expenses,03/07/2012,2098099-1,650,REDACTED PERSONAL DATA,REDACTED PERSONAL DATA
Tendring DC,http://statistics.data.gov.uk/id/local-authority-district/22UN,Life Opportunities,5480 - HRA - Repair & Maintenance,2096 - Asbestos testing/removal,10/07/2012,2098309-1,180,REDACTED PERSONAL DATA,REDACTED PERSONAL DATA
Tendring DC,http://statistics.data.gov.uk/id/local-authority-district/22UN,Life Opportunities,5480 - HRA - Repair & Maintenance,2096 - Asbestos testing/removal,10/07/2012,2098309-2,180,REDACTED PERSONAL DATA,REDACTED PERSONAL DATA
Tendring DC,http://statistics.data.gov.uk/id/local-authority-district/22UN,Life Opportunities,5480 - HRA - Repair & Maintenance,2096 - Asbestos testing/removal,10/07/2012,2098310-1,130,REDACTED PERSONAL DATA,REDACTED PERSONAL DATA
Tendring DC,http://statistics.data.gov.uk/id/local-authority-district/22UN,Life Opportunities,5480 - HRA - Repair & Maintenance,2096 - Asbestos testing/removal,10/07/2012,2098310-2,250,REDACTED PERSONAL DATA,REDACTED PERSONAL DATA
Tendring DC,http://statistics.data.gov.uk/id/local-authority-district/22UN,Life Opportunities,5480 - HRA - Repair & Maintenance,2096 - Asbestos testing/removal,10/07/2012,2098311-1,120,REDACTED PERSONAL DATA,REDACTED PERSONAL DATA
Tendring DC,http://statistics.data.gov.uk/id/local-authority-district/22UN,Life Opportunities,5480 - HRA - Repair & Maintenance,2096 - Asbestos testing/removal,10/07/2012,2098311-2,180,REDACTED PERSONAL DATA,REDACTED PERSONAL DATA
Tendring DC,http://statistics.data.gov.uk/id/local-authority-district/22UN,Life Opportunities,8540 - Leisure Centre Clacton,5500 - Miscellaneous Expenses,10/07/2012,2098378-1,118.95,2100032 - Signs Made Easy,
Tendring DC,http://statistics.data.gov.uk/id/local-authority-district/22UN,Life Opportunities,7520 - Tourism Publicity Marketing Promotion,5160 - Advertising,31/07/2012,2098971-1,720,REDACTED PERSONAL DATA,REDACTED PERSONAL DATA
Tendring DC,http://statistics.data.gov.uk/id/local-authority-district/22UN,Life Opportunities,7520 - Tourism Publicity Marketing Promotion,5160 - Advertising,31/07/2012,2098972-1,1620,REDACTED PERSONAL DATA,REDACTED PERSONAL DATA
Tendring DC,http://statistics.data.gov.uk/id/local-authority-district/22UN,Life Opportunities,7520 - Tourism Publicity Marketing Promotion,5160 - Advertising,31/07/2012,2098974-1,240,REDACTED PERSONAL DATA,REDACTED PERSONAL DATA
Tendring DC,http://statistics.data.gov.uk/id/local-authority-district/22UN,Life Opportunities,5800 - Brightlingsea Sports Centre,5160 - Advertising,17/07/2012,2098417-1,69,2103454 - Simad Publications,Look Magazine
Tendring DC,http://statistics.data.gov.uk/id/local-authority-district/22UN,Life Opportunities,6160 - Princes Theatre,4200 - Clothing & Uniforms,03/07/2012,2097907-1,115.79,2101285 - Simon Jersey Limited,Floppy Bow
Tendring DC,http://statistics.data.gov.uk/id/local-authority-district/22UN,Life Opportunities,7000 - CCTV,4718 - Fixed Communication Lines,17/07/2012,1049210-1,63.9,2108907 - Southern Communications Ltd,SOUTHERN COMMS-JUNE 12
Tendring DC,http://statistics.data.gov.uk/id/local-authority-district/22UN,Life Opportunities,5360 - HRA - Sheltered Units,4710 - Telephones - Charges,17/07/2012,1049210-2,31.54,2108907 - Southern Communications Ltd,SOUTHERN COMMS-JUNE 12
Tendring DC,http://statistics.data.gov.uk/id/local-authority-district/22UN,Life Opportunities,5360 - HRA - Sheltered Units,4710 - Telephones - Charges,17/07/2012,1049210-3,32.29,2108907 - Southern Communications Ltd,SOUTHERN COMMS-JUNE 12
Tendring DC,http://statistics.data.gov.uk/id/local-authority-district/22UN,Life Opportunities,5360 - HRA - Sheltered Units,4710 - Telephones - Charges,17/07/2012,1049210-4,35.11,2108907 - Southern Communications Ltd,SOUTHERN COMMS-JUNE 12
Tendring DC,http://statistics.data.gov.uk/id/local-authority-district/22UN,Life Opportunities,5360 - HRA - Sheltered Units,4710 - Telephones - Charges,17/07/2012,1049210-5,22.5,2108907 - Southern Communications Ltd,SOUTHERN COMMS-JUNE 12
Tendring DC,http://statistics.data.gov.uk/id/local-authority-district/22UN,Life Opportunities,5360 - HRA - Sheltered Units,4710 - Telephones - Charges,17/07/2012,1049210-6,64.15,2108907 - Southern Communications Ltd,SOUTHERN COMMS-JUNE 12
Tendring DC,http://statistics.data.gov.uk/id/local-authority-district/22UN,Life Opportunities,5360 - HRA - Sheltered Units,4710 - Telephones - Charges,17/07/2012,1049210-7,32.01,2108907 - Southern Communications Ltd,SOUTHERN COMMS-JUNE 12
Tendring DC,http://statistics.data.gov.uk/id/local-authority-district/22UN,Life Opportunities,5360 - HRA - Sheltered Units,4710 - Telephones - Charges,17/07/2012,1049210-8,28.13,2108907 - Southern Communications Ltd,SOUTHERN COMMS-JUNE 12
Tendring DC,http://statistics.data.gov.uk/id/local-authority-district/22UN,Life Opportunities,6040 - Miscellaneous Seafront Activities,4040 - Equipment & Tools,03/07/2012,1047256-1,-370,2101297 - SP Services,RETURNED ITEMS
Tendring DC,http://statistics.data.gov.uk/id/local-authority-district/22UN,Life Opportunities,8520 - Frinton & Walton Swimming Pool,2700 - Cleaning Materials,03/07/2012,1048996-1,40.5,2101297 - SP Services,FRINTON WALTON POOL
Tendring DC,http://statistics.data.gov.uk/id/local-authority-district/22UN,Life Opportunities,5480 - HRA - Repair & Maintenance,2019 - Repair & Maintenance - Keys,03/07/2012,2097979-1,53.42,REDACTED PERSONAL DATA,REDACTED PERSONAL DATA
Tendring DC,http://statistics.data.gov.uk/id/local-authority-district/22UN,Life Opportunities,5480 - HRA - Repair & Maintenance,2019 - Repair & Maintenance - Keys,03/07/2012,2097982-1,52.75,REDACTED PERSONAL DATA,REDACTED PERSONAL DATA
Tendring DC,http://statistics.data.gov.uk/id/local-authority-district/22UN,Life Opportunities,5480 - HRA - Repair & Maintenance,2019 - Repair & Maintenance - Keys,10/07/2012,2098251-1,105.33,REDACTED PERSONAL DATA,REDACTED PERSONAL DATA
Tendring DC,http://statistics.data.gov.uk/id/local-authority-district/22UN,Life Opportunities,8540 - Leisure Centre Clacton,2100 - Building Repairs,03/07/2012,2097923-1,210,2101278 - Sportsafe UK Ltd,
Tendring DC,http://statistics.data.gov.uk/id/local-authority-district/22UN,Life Opportunities,8540 - Leisure Centre Clacton,2100 - Building Repairs,10/07/2012,2098368-1,2012,2101278 - Sportsafe UK Ltd,
Tendring DC,http://statistics.data.gov.uk/id/local-authority-district/22UN,Life Opportunities,6160 - Princes Theatre,4040 - Equipment & Tools,03/07/2012,2097906-1,216.96,2101300 - Stage Electrics,Lighting Equipment
Tendring DC,http://statistics.data.gov.uk/id/local-authority-district/22UN,Life Opportunities,6160 - Princes Theatre,4040 - Equipment & Tools,17/07/2012,2098418-1,129.73,2101300 - Stage Electrics,Lighting Equipment
Tendring DC,http://statistics.data.gov.uk/id/local-authority-district/22UN,Life Opportunities,5480 - HRA - Repair & Maintenance,2069 - Lift/Stairlift Servicing,10/07/2012,1049170-1,1474.34,2101360 - Stannah Lift Services Limited,LIFT SERVICE AND REPAIR
Tendring DC,http://statistics.data.gov.uk/id/local-authority-district/22UN,Life Opportunities,5480 - HRA - Repair & Maintenance,2070 - Lift/Stairlift Repairs,10/07/2012,1049170-2,358.47,2101360 - Stannah Lift Services Limited,LIFT SERVICE AND REPAIR
Tendring DC,http://statistics.data.gov.uk/id/local-authority-district/22UN,Life Opportunities,5240 - HRA - Managing Tenancies,5242 - Tenant Relations,10/07/2012,2098231-1,10,2109360 - Stephen Zouvanis,
Tendring DC,http://statistics.data.gov.uk/id/local-authority-district/22UN,Life Opportunities,5240 - HRA - Managing Tenancies,5242 - Tenant Relations,17/07/2012,2098600-1,37,REDACTED PERSONAL DATA,REDACTED PERSONAL DATA
Tendring DC,http://statistics.data.gov.uk/id/local-authority-district/22UN,Life Opportunities,5240 - HRA - Managing Tenancies,5242 - Tenant Relations,24/07/2012,2098817-1,10,REDACTED PERSONAL DATA,REDACTED PERSONAL DATA
Tendring DC,http://statistics.data.gov.uk/id/local-authority-district/22UN,Life Opportunities,H920 - DFGs,C400 - Grant payments,03/07/2012,2097963-1,50,REDACTED PERSONAL DATA,REDACTED PERSONAL DATA
Tendring DC,http://statistics.data.gov.uk/id/local-authority-district/22UN,Life Opportunities,H920 - DFGs,C400 - Grant payments,03/07/2012,2098108-1,33.95,REDACTED PERSONAL DATA,REDACTED PERSONAL DATA
Tendring DC,http://statistics.data.gov.uk/id/local-authority-district/22UN,Life Opportunities,H920 - DFGs,C400 - Grant payments,03/07/2012,2098113-1,182.84,REDACTED PERSONAL DATA,REDACTED PERSONAL DATA
Tendring DC,http://statistics.data.gov.uk/id/local-authority-district/22UN,Life Opportunities,H920 - DFGs,C400 - Grant payments,03/07/2012,2098114-1,542.55,REDACTED PERSONAL DATA,REDACTED PERSONAL DATA
Tendring DC,http://statistics.data.gov.uk/id/local-authority-district/22UN,Life Opportunities,H920 - DFGs,C400 - Grant payments,03/07/2012,2098115-1,563.58,REDACTED PERSONAL DATA,REDACTED PERSONAL DATA
Tendring DC,http://statistics.data.gov.uk/id/local-authority-district/22UN,Life Opportunities,H920 - DFGs,C400 - Grant payments,24/07/2012,2098801-1,82.39,REDACTED PERSONAL DATA,REDACTED PERSONAL DATA
Tendring DC,http://statistics.data.gov.uk/id/local-authority-district/22UN,Life Opportunities,H920 - DFGs,C400 - Grant payments,24/07/2012,2098802-1,220.84,REDACTED PERSONAL DATA,REDACTED PERSONAL DATA
Tendring DC,http://statistics.data.gov.uk/id/local-authority-district/22UN,Life Opportunities,H920 - DFGs,C400 - Grant payments,31/07/2012,2098897-1,211.15,REDACTED PERSONAL DATA,REDACTED PERSONAL DATA
Tendring DC,http://statistics.data.gov.uk/id/local-authority-district/22UN,Life Opportunities,H810 - Electrical Re-wiring,C200 - Main Contractor,03/07/2012,2097978-1,190,REDACTED PERSONAL DATA,REDACTED PERSONAL DATA
Tendring DC,http://statistics.data.gov.uk/id/local-authority-district/22UN,Life Opportunities,5480 - HRA - Repair & Maintenance,2088 - Disabled Adaptations,31/07/2012,2098886-1,230,REDACTED PERSONAL DATA,REDACTED PERSONAL DATA
Tendring DC,http://statistics.data.gov.uk/id/local-authority-district/22UN,Life Opportunities,5480 - HRA - Repair & Maintenance,2088 - Disabled Adaptations,31/07/2012,2098887-1,340,REDACTED PERSONAL DATA,REDACTED PERSONAL DATA
Tendring DC,http://statistics.data.gov.uk/id/local-authority-district/22UN,Life Opportunities,8540 - Leisure Centre Clacton,4050 - Technogym Keys,10/07/2012,2098367-1,6530,2106188 - Technogym UK Ltd,
Tendring DC,http://statistics.data.gov.uk/id/local-authority-district/22UN,Life Opportunities,8540 - Leisure Centre Clacton,4000 - Furniture,10/07/2012,2098369-1,55,2106188 - Technogym UK Ltd,
Tendring DC,http://statistics.data.gov.uk/id/local-authority-district/22UN,Life Opportunities,8540 - Leisure Centre Clacton,4000 - Furniture,10/07/2012,2098374-1,575.65,2106188 - Technogym UK Ltd,
Tendring DC,http://statistics.data.gov.uk/id/local-authority-district/22UN,Life Opportunities,8510 - Dovercourt Swimming Pool & All Weather Facilities,4300 - Printing & Stationery,31/07/2012,1049432-1,4.08,2101357 - Tendring District Council,DSP
Tendring DC,http://statistics.data.gov.uk/id/local-authority-district/22UN,Life Opportunities,8510 - Dovercourt Swimming Pool & All Weather Facilities,2100 - Building Repairs,31/07/2012,1049432-10,7.5,2101357 - Tendring District Council,DSP
Tendring DC,http://statistics.data.gov.uk/id/local-authority-district/22UN,Life Opportunities,8510 - Dovercourt Swimming Pool & All Weather Facilities,2100 - Building Repairs,31/07/2012,1049432-11,0.83,2101357 - Tendring District Council,DSP
Tendring DC,http://statistics.data.gov.uk/id/local-authority-district/22UN,Life Opportunities,8510 - Dovercourt Swimming Pool & All Weather Facilities,2100 - Building Repairs,31/07/2012,1049432-12,2.5,2101357 - Tendring District Council,DSP
Tendring DC,http://statistics.data.gov.uk/id/local-authority-district/22UN,Life Opportunities,8510 - Dovercourt Swimming Pool & All Weather Facilities,2100 - Building Repairs,31/07/2012,1049432-13,3.32,2101357 - Tendring District Council,DSP
Tendring DC,http://statistics.data.gov.uk/id/local-authority-district/22UN,Life Opportunities,8510 - Dovercourt Swimming Pool & All Weather Facilities,2100 - Building Repairs,31/07/2012,1049432-14,19.5,2101357 - Tendring District Council,DSP
Tendring DC,http://statistics.data.gov.uk/id/local-authority-district/22UN,Life Opportunities,8510 - Dovercourt Swimming Pool & All Weather Facilities,4300 - Printing & Stationery,31/07/2012,1049432-2,5.46,2101357 - Tendring District Council,DSP
Tendring DC,http://statistics.data.gov.uk/id/local-authority-district/22UN,Life Opportunities,8510 - Dovercourt Swimming Pool & All Weather Facilities,4000 - Furniture,31/07/2012,1049432-3,1.24,2101357 - Tendring District Council,DSP
Tendring DC,http://statistics.data.gov.uk/id/local-authority-district/22UN,Life Opportunities,8510 - Dovercourt Swimming Pool & All Weather Facilities,4300 - Printing & Stationery,31/07/2012,1049432-4,1.67,2101357 - Tendring District Council,DSP
Tendring DC,http://statistics.data.gov.uk/id/local-authority-district/22UN,Life Opportunities,8510 - Dovercourt Swimming Pool & All Weather Facilities,2100 - Building Repairs,31/07/2012,1049432-5,3.82,2101357 - Tendring District Council,DSP
Tendring DC,http://statistics.data.gov.uk/id/local-authority-district/22UN,Life Opportunities,8510 - Dovercourt Swimming Pool & All Weather Facilities,2100 - Building Repairs,31/07/2012,1049432-6,4.49,2101357 - Tendring District Council,DSP
Tendring DC,http://statistics.data.gov.uk/id/local-authority-district/22UN,Life Opportunities,8510 - Dovercourt Swimming Pool & All Weather Facilities,2100 - Building Repairs,31/07/2012,1049432-7,3.99,2101357 - Tendring District Council,DSP
